Body,Body Name,Transaction No,Invoice Ref.,Supplier Name,Expense Code,Expense Type,Date,Amount
http://statistics.data.gov.uk/id/local-authority-district/23UB,Cheltenham Borough Council,444871,1870,ACHIEVE BREAKTHROUGH LTD,C-D12310-0205,Corporate Trg-Training fees/exp (Corp),23-Mar-11,"3,500.00"
http://statistics.data.gov.uk/id/local-authority-district/23UB,Cheltenham Borough Council,444603,947,WORKMAN & PARTNERS,C-E21400-4905,Shopmobility-Beechwood Pl C/P fees,16-Mar-11,300.00
http://statistics.data.gov.uk/id/local-authority-district/23UB,Cheltenham Borough Council,444605,917,WORKMAN & PARTNERS,C-E21400-4905,Shopmobility-Beechwood Pl C/P fees,16-Mar-11,378.00
http://statistics.data.gov.uk/id/local-authority-district/23UB,Cheltenham Borough Council,444744,1011-025,A P DELL,C-0T09L1-3151,The Blues Band-Specialist Equipment,23-Mar-11,130.00
http://statistics.data.gov.uk/id/local-authority-district/23UB,Cheltenham Borough Council,444744,1011-025,A P DELL,C-0T17L1-3151,Russell Kane-Specialist Equipment,23-Mar-11,140.00
http://statistics.data.gov.uk/id/local-authority-district/23UB,Cheltenham Borough Council,444744,1011-025,A P DELL,C-0T18L1-3151,Jenny Eclair-Specialist Equipment,23-Mar-11,130.00
http://statistics.data.gov.uk/id/local-authority-district/23UB,Cheltenham Borough Council,444744,1011-025,A P DELL,C-0T24K1-3151,Brendan Cole-Specialist Equipment,23-Mar-11,130.00
http://statistics.data.gov.uk/id/local-authority-district/23UB,Cheltenham Borough Council,444744,1011-025,A P DELL,C-0T24K1-3151,Brendan Cole-Specialist Equipment,23-Mar-11,130.00
http://statistics.data.gov.uk/id/local-authority-district/23UB,Cheltenham Borough Council,444744,1011-025,A P DELL,C-0T26L1-3151,J Lloyd Webber-Specialist Equipment,23-Mar-11,130.00
http://statistics.data.gov.uk/id/local-authority-district/23UB,Cheltenham Borough Council,444744,1011-025,A P DELL,C-0T70L0-3151,Folk Festival-Specialist Equipment,23-Mar-11,140.00
http://statistics.data.gov.uk/id/local-authority-district/23UB,Cheltenham Borough Council,444744,1011-025,A P DELL,C-0T70L0-3151,Folk Festival-Specialist Equipment,23-Mar-11,140.00
http://statistics.data.gov.uk/id/local-authority-district/23UB,Cheltenham Borough Council,444467,138533,A&E FIRE EQUIPMENT LTD,C-H44600-1104,J D Court-Council House repairs,24-Mar-11,48.88
http://statistics.data.gov.uk/id/local-authority-district/23UB,Cheltenham Borough Council,444506,138476,A&E FIRE EQUIPMENT LTD,C-H46200-1104,Fire. Syst.Serv-Council House repairs,24-Mar-11,49.96
http://statistics.data.gov.uk/id/local-authority-district/23UB,Cheltenham Borough Council,444507,138527,A&E FIRE EQUIPMENT LTD,C-H46200-1104,Fire. Syst.Serv-Council House repairs,24-Mar-11,15.04
http://statistics.data.gov.uk/id/local-authority-district/23UB,Cheltenham Borough Council,444508,138529,A&E FIRE EQUIPMENT LTD,C-H46200-1104,Fire. Syst.Serv-Council House repairs,24-Mar-11,15.04
http://statistics.data.gov.uk/id/local-authority-district/23UB,Cheltenham Borough Council,444448,139491,A&E FIRE EQUIPMENT LTD,C-H46200-1104,Fire. Syst.Serv-Council House repairs,24-Mar-11,22.95
http://statistics.data.gov.uk/id/local-authority-district/23UB,Cheltenham Borough Council,444450,139940,A&E FIRE EQUIPMENT LTD,C-H46200-1104,Fire. Syst.Serv-Council House repairs,24-Mar-11,31.96
http://statistics.data.gov.uk/id/local-authority-district/23UB,Cheltenham Borough Council,444452,139942,A&E FIRE EQUIPMENT LTD,C-H46200-1104,Fire. Syst.Serv-Council House repairs,24-Mar-11,65.42
http://statistics.data.gov.uk/id/local-authority-district/23UB,Cheltenham Borough Council,444454,139373,A&E FIRE EQUIPMENT LTD,C-H46200-1104,Fire. Syst.Serv-Council House repairs,24-Mar-11,11.80
http://statistics.data.gov.uk/id/local-authority-district/23UB,Cheltenham Borough Council,444472,138647,A&E FIRE EQUIPMENT LTD,C-H46200-1104,Fire. Syst.Serv-Council House repairs,24-Mar-11,60.16
http://statistics.data.gov.uk/id/local-authority-district/23UB,Cheltenham Borough Council,444471,138648,A&E FIRE EQUIPMENT LTD,C-H46200-1104,Fire. Syst.Serv-Council House repairs,24-Mar-11,15.04
http://statistics.data.gov.uk/id/local-authority-district/23UB,Cheltenham Borough Council,444470,138645,A&E FIRE EQUIPMENT LTD,C-H46200-1104,Fire. Syst.Serv-Council House repairs,24-Mar-11,18.80
http://statistics.data.gov.uk/id/local-authority-district/23UB,Cheltenham Borough Council,444469,138544,A&E FIRE EQUIPMENT LTD,C-H46200-1104,Fire. Syst.Serv-Council House repairs,24-Mar-11,81.96
http://statistics.data.gov.uk/id/local-authority-district/23UB,Cheltenham Borough Council,444468,138542,A&E FIRE EQUIPMENT LTD,C-H46200-1104,Fire. Syst.Serv-Council House repairs,24-Mar-11,102.42
http://statistics.data.gov.uk/id/local-authority-district/23UB,Cheltenham Borough Council,444466,138532,A&E FIRE EQUIPMENT LTD,C-H46200-1104,Fire. Syst.Serv-Council House repairs,24-Mar-11,16.92
http://statistics.data.gov.uk/id/local-authority-district/23UB,Cheltenham Borough Council,444465,138531,A&E FIRE EQUIPMENT LTD,C-H46200-1104,Fire. Syst.Serv-Council House repairs,24-Mar-11,2.82
http://statistics.data.gov.uk/id/local-authority-district/23UB,Cheltenham Borough Council,444464,139839,A&E FIRE EQUIPMENT LTD,C-H46200-1104,Fire. Syst.Serv-Council House repairs,24-Mar-11,15.20
http://statistics.data.gov.uk/id/local-authority-district/23UB,Cheltenham Borough Council,444463,139427,A&E FIRE EQUIPMENT LTD,C-H46200-1104,Fire. Syst.Serv-Council House repairs,24-Mar-11,14.40
http://statistics.data.gov.uk/id/local-authority-district/23UB,Cheltenham Borough Council,444481,140242,A&E FIRE EQUIPMENT LTD,C-H46200-1104,Fire. Syst.Serv-Council House repairs,24-Mar-11,10.34
http://statistics.data.gov.uk/id/local-authority-district/23UB,Cheltenham Borough Council,444480,139511,A&E FIRE EQUIPMENT LTD,C-H46200-1104,Fire. Syst.Serv-Council House repairs,24-Mar-11,68.46
http://statistics.data.gov.uk/id/local-authority-district/23UB,Cheltenham Borough Council,444479,139510,A&E FIRE EQUIPMENT LTD,C-H46200-1104,Fire. Syst.Serv-Council House repairs,24-Mar-11,11.80
http://statistics.data.gov.uk/id/local-authority-district/23UB,Cheltenham Borough Council,444478,139586,A&E FIRE EQUIPMENT LTD,C-H46200-1104,Fire. Syst.Serv-Council House repairs,24-Mar-11,13.10
http://statistics.data.gov.uk/id/local-authority-district/23UB,Cheltenham Borough Council,444477,138651,A&E FIRE EQUIPMENT LTD,C-H46200-1104,Fire. Syst.Serv-Council House repairs,24-Mar-11,31.96
http://statistics.data.gov.uk/id/local-authority-district/23UB,Cheltenham Borough Council,444476,138652,A&E FIRE EQUIPMENT LTD,C-H46200-1104,Fire. Syst.Serv-Council House repairs,24-Mar-11,1.88
http://statistics.data.gov.uk/id/local-authority-district/23UB,Cheltenham Borough Council,444475,138650,A&E FIRE EQUIPMENT LTD,C-H46200-1104,Fire. Syst.Serv-Council House repairs,24-Mar-11,23.50
http://statistics.data.gov.uk/id/local-authority-district/23UB,Cheltenham Borough Council,444474,138649,A&E FIRE EQUIPMENT LTD,C-H46200-1104,Fire. Syst.Serv-Council House repairs,24-Mar-11,43.24
http://statistics.data.gov.uk/id/local-authority-district/23UB,Cheltenham Borough Council,444473,138646,A&E FIRE EQUIPMENT LTD,C-H46200-1104,Fire. Syst.Serv-Council House repairs,24-Mar-11,10.34
http://statistics.data.gov.uk/id/local-authority-district/23UB,Cheltenham Borough Council,444490,140244,A&E FIRE EQUIPMENT LTD,C-H46200-1104,Fire. Syst.Serv-Council House repairs,24-Mar-11,20.33
http://statistics.data.gov.uk/id/local-authority-district/23UB,Cheltenham Borough Council,444489,140245,A&E FIRE EQUIPMENT LTD,C-H46200-1104,Fire. Syst.Serv-Council House repairs,24-Mar-11,20.33
http://statistics.data.gov.uk/id/local-authority-district/23UB,Cheltenham Borough Council,444488,140239,A&E FIRE EQUIPMENT LTD,C-H46200-1104,Fire. Syst.Serv-Council House repairs,24-Mar-11,15.04
http://statistics.data.gov.uk/id/local-authority-district/23UB,Cheltenham Borough Council,444487,140240,A&E FIRE EQUIPMENT LTD,C-H46200-1104,Fire. Syst.Serv-Council House repairs,24-Mar-11,1.88
http://statistics.data.gov.uk/id/local-authority-district/23UB,Cheltenham Borough Council,444486,140237,A&E FIRE EQUIPMENT LTD,C-H46200-1104,Fire. Syst.Serv-Council House repairs,24-Mar-11,15.04
http://statistics.data.gov.uk/id/local-authority-district/23UB,Cheltenham Borough Council,444485,140236,A&E FIRE EQUIPMENT LTD,C-H46200-1104,Fire. Syst.Serv-Council House repairs,24-Mar-11,15.04
http://statistics.data.gov.uk/id/local-authority-district/23UB,Cheltenham Borough Council,444484,140246,A&E FIRE EQUIPMENT LTD,C-H46200-1104,Fire. Syst.Serv-Council House repairs,24-Mar-11,24.88
http://statistics.data.gov.uk/id/local-authority-district/23UB,Cheltenham Borough Council,444483,140243,A&E FIRE EQUIPMENT LTD,C-H46200-1104,Fire. Syst.Serv-Council House repairs,24-Mar-11,71.04
http://statistics.data.gov.uk/id/local-authority-district/23UB,Cheltenham Borough Council,444482,140241,A&E FIRE EQUIPMENT LTD,C-H46200-1104,Fire. Syst.Serv-Council House repairs,24-Mar-11,2.82
http://statistics.data.gov.uk/id/local-authority-district/23UB,Cheltenham Borough Council,444503,138327,A&E FIRE EQUIPMENT LTD,C-H46200-1104,Fire. Syst.Serv-Council House repairs,24-Mar-11,96.40
http://statistics.data.gov.uk/id/local-authority-district/23UB,Cheltenham Borough Council,444502,138326,A&E FIRE EQUIPMENT LTD,C-H46200-1104,Fire. Syst.Serv-Council House repairs,24-Mar-11,151.02
http://statistics.data.gov.uk/id/local-authority-district/23UB,Cheltenham Borough Council,444501,138325,A&E FIRE EQUIPMENT LTD,C-H46200-1104,Fire. Syst.Serv-Council House repairs,24-Mar-11,20.33
http://statistics.data.gov.uk/id/local-authority-district/23UB,Cheltenham Borough Council,444500,138662,A&E FIRE EQUIPMENT LTD,C-H46200-1104,Fire. Syst.Serv-Council House repairs,24-Mar-11,49.96
http://statistics.data.gov.uk/id/local-authority-district/23UB,Cheltenham Borough Council,444499,138324,A&E FIRE EQUIPMENT LTD,C-H46200-1104,Fire. Syst.Serv-Council House repairs,24-Mar-11,20.33
http://statistics.data.gov.uk/id/local-authority-district/23UB,Cheltenham Borough Council,444498,140082,A&E FIRE EQUIPMENT LTD,C-H46200-1104,Fire. Syst.Serv-Council House repairs,24-Mar-11,9.00
http://statistics.data.gov.uk/id/local-authority-district/23UB,Cheltenham Borough Council,444497,139426,A&E FIRE EQUIPMENT LTD,C-H46200-1104,Fire. Syst.Serv-Council House repairs,24-Mar-11,14.40
http://statistics.data.gov.uk/id/local-authority-district/23UB,Cheltenham Borough Council,444496,140086,A&E FIRE EQUIPMENT LTD,C-H46200-1104,Fire. Syst.Serv-Council House repairs,24-Mar-11,7.52
http://statistics.data.gov.uk/id/local-authority-district/23UB,Cheltenham Borough Council,444495,139968,A&E FIRE EQUIPMENT LTD,C-H46200-1104,Fire. Syst.Serv-Council House repairs,24-Mar-11,30.00
http://statistics.data.gov.uk/id/local-authority-district/23UB,Cheltenham Borough Council,444494,140081,A&E FIRE EQUIPMENT LTD,C-H46200-1104,Fire. Syst.Serv-Council House repairs,24-Mar-11,15.00
http://statistics.data.gov.uk/id/local-authority-district/23UB,Cheltenham Borough Council,444493,140114,A&E FIRE EQUIPMENT LTD,C-H46200-1104,Fire. Syst.Serv-Council House repairs,24-Mar-11,16.92
http://statistics.data.gov.uk/id/local-authority-district/23UB,Cheltenham Borough Council,444492,1401111,A&E FIRE EQUIPMENT LTD,C-H46200-1104,Fire. Syst.Serv-Council House repairs,24-Mar-11,9.40
http://statistics.data.gov.uk/id/local-authority-district/23UB,Cheltenham Borough Council,444491,140113,A&E FIRE EQUIPMENT LTD,C-H46200-1104,Fire. Syst.Serv-Council House repairs,24-Mar-11,101.14
http://statistics.data.gov.uk/id/local-authority-district/23UB,Cheltenham Borough Council,444462,139496,A&E FIRE EQUIPMENT LTD,C-H46200-1104,Fire. Syst.Serv-Council House repairs,24-Mar-11,16.93
http://statistics.data.gov.uk/id/local-authority-district/23UB,Cheltenham Borough Council,444461,139428,A&E FIRE EQUIPMENT LTD,C-H46200-1104,Fire. Syst.Serv-Council House repairs,24-Mar-11,15.70
http://statistics.data.gov.uk/id/local-authority-district/23UB,Cheltenham Borough Council,444460,139429,A&E FIRE EQUIPMENT LTD,C-H46200-1104,Fire. Syst.Serv-Council House repairs,24-Mar-11,13.10
http://statistics.data.gov.uk/id/local-authority-district/23UB,Cheltenham Borough Council,444459,139430,A&E FIRE EQUIPMENT LTD,C-H46200-1104,Fire. Syst.Serv-Council House repairs,24-Mar-11,15.05
http://statistics.data.gov.uk/id/local-authority-district/23UB,Cheltenham Borough Council,444458,139370,A&E FIRE EQUIPMENT LTD,C-H46200-1104,Fire. Syst.Serv-Council House repairs,24-Mar-11,11.80
http://statistics.data.gov.uk/id/local-authority-district/23UB,Cheltenham Borough Council,444457,139372,A&E FIRE EQUIPMENT LTD,C-H46200-1104,Fire. Syst.Serv-Council House repairs,24-Mar-11,11.80
http://statistics.data.gov.uk/id/local-authority-district/23UB,Cheltenham Borough Council,444456,139374,A&E FIRE EQUIPMENT LTD,C-H46200-1104,Fire. Syst.Serv-Council House repairs,24-Mar-11,11.80
http://statistics.data.gov.uk/id/local-authority-district/23UB,Cheltenham Borough Council,444455,139492,A&E FIRE EQUIPMENT LTD,C-H46200-1104,Fire. Syst.Serv-Council House repairs,24-Mar-11,12.45
http://statistics.data.gov.uk/id/local-authority-district/23UB,Cheltenham Borough Council,444453,139490,A&E FIRE EQUIPMENT LTD,C-H46200-1104,Fire. Syst.Serv-Council House repairs,24-Mar-11,12.45
http://statistics.data.gov.uk/id/local-authority-district/23UB,Cheltenham Borough Council,444451,139941,A&E FIRE EQUIPMENT LTD,C-H46200-1104,Fire. Syst.Serv-Council House repairs,24-Mar-11,162.42
http://statistics.data.gov.uk/id/local-authority-district/23UB,Cheltenham Borough Council,444449,139595,A&E FIRE EQUIPMENT LTD,C-H46200-1104,Fire. Syst.Serv-Council House repairs,24-Mar-11,60.34
http://statistics.data.gov.uk/id/local-authority-district/23UB,Cheltenham Borough Council,444447,139371,A&E FIRE EQUIPMENT LTD,C-H46200-1104,Fire. Syst.Serv-Council House repairs,24-Mar-11,11.80
http://statistics.data.gov.uk/id/local-authority-district/23UB,Cheltenham Borough Council,444509,138530,A&E FIRE EQUIPMENT LTD,C-H46200-1104,Fire. Syst.Serv-Council House repairs,24-Mar-11,1.88
http://statistics.data.gov.uk/id/local-authority-district/23UB,Cheltenham Borough Council,444505,138440,A&E FIRE EQUIPMENT LTD,C-H46200-1104,Fire. Syst.Serv-Council House repairs,24-Mar-11,48.30
http://statistics.data.gov.uk/id/local-authority-district/23UB,Cheltenham Borough Council,445361,138597,A&E FIRE EQUIPMENT LTD,C-H46200-1104,Fire. Syst.Serv-Council House repairs,30-Mar-11,24.98
http://statistics.data.gov.uk/id/local-authority-district/23UB,Cheltenham Borough Council,445363,138571,A&E FIRE EQUIPMENT LTD,C-H46200-1104,Fire. Syst.Serv-Council House repairs,30-Mar-11,239.34
http://statistics.data.gov.uk/id/local-authority-district/23UB,Cheltenham Borough Council,445362,139878,A&E FIRE EQUIPMENT LTD,C-H46200-1104,Fire. Syst.Serv-Council House repairs,30-Mar-11,329.55
http://statistics.data.gov.uk/id/local-authority-district/23UB,Cheltenham Borough Council,443336,F02891,AIREY CONSULTANCY SERVICES LTD,C-D12420-3608,Bens jnt train-Trainers Fees,04-Mar-11,"1,860.00"
http://statistics.data.gov.uk/id/local-authority-district/23UB,Cheltenham Borough Council,443478,J01449,AIREY CONSULTANCY SERVICES LTD,C-D12420-3608,Bens jnt train-Trainers Fees,04-Mar-11,620.00
http://statistics.data.gov.uk/id/local-authority-district/23UB,Cheltenham Borough Council,444850,M03992,AIREY CONSULTANCY SERVICES LTD,C-D12420-3608,Bens jnt train-Trainers Fees,23-Mar-11,620.00
http://statistics.data.gov.uk/id/local-authority-district/23UB,Cheltenham Borough Council,443875,50214,ALPHA COLOUR PRINTERS LTD,C-D12440-3401,Coun Tax overhe-Printing - general,09-Mar-11,519.00
http://statistics.data.gov.uk/id/local-authority-district/23UB,Cheltenham Borough Council,443876,50290,ALPHA COLOUR PRINTERS LTD,C-D12440-3401,Coun Tax overhe-Printing - general,09-Mar-11,52.00
http://statistics.data.gov.uk/id/local-authority-district/23UB,Cheltenham Borough Council,443830,50277,ALPHA COLOUR PRINTERS LTD,C-D21190-3403,O&S Committees-Printing-Committee Papers,09-Mar-11,"1,111.00"
http://statistics.data.gov.uk/id/local-authority-district/23UB,Cheltenham Borough Council,443902,50286,ALPHA COLOUR PRINTERS LTD,C-E72500-3401,Built Env Div-Printing - general,09-Mar-11,613.00
http://statistics.data.gov.uk/id/local-authority-district/23UB,Cheltenham Borough Council,444424,50215,ALPHA COLOUR PRINTERS LTD,C-D24230-3501,Gott Big Party-Hire of outside services,24-Mar-11,288.00
http://statistics.data.gov.uk/id/local-authority-district/23UB,Cheltenham Borough Council,444652,50305,ALPHA COLOUR PRINTERS LTD,C-Z12440-AG91,AGM Exhibitions-Horse in Art,24-Mar-11,94.00
http://statistics.data.gov.uk/id/local-authority-district/23UB,Cheltenham Borough Council,444652,50305,ALPHA COLOUR PRINTERS LTD,C-Z12440-AG91,AGM Exhibitions-Horse in Art,24-Mar-11,145.00
http://statistics.data.gov.uk/id/local-authority-district/23UB,Cheltenham Borough Council,444652,50305,ALPHA COLOUR PRINTERS LTD,C-Z12440-AG91,AGM Exhibitions-Horse in Art,24-Mar-11,242.00
http://statistics.data.gov.uk/id/local-authority-district/23UB,Cheltenham Borough Council,443321,11666,ALTITUDE SCAFFOLDING,C-D13100-1804,Muni Off Blgs-RM-External structures,04-Mar-11,800.00
http://statistics.data.gov.uk/id/local-authority-district/23UB,Cheltenham Borough Council,445729,369670,ANDYLOOS LIMITED,C-C23140-3501,Public Convnces-Hire of outside services,31-Mar-11,"1,805.00"
http://statistics.data.gov.uk/id/local-authority-district/23UB,Cheltenham Borough Council,445730,369671,ANDYLOOS LIMITED,C-C23140-3501,Public Convnces-Hire of outside services,31-Mar-11,"1,300.00"
http://statistics.data.gov.uk/id/local-authority-district/23UB,Cheltenham Borough Council,444600,0728,ANDERSON CIVIL ENGINEERING UK LIMITED,C-D21250-3974,Civil Emergency-Multi-agency funding,16-Mar-11,"6,332.00"
http://statistics.data.gov.uk/id/local-authority-district/23UB,Cheltenham Borough Council,444600,0728,ANDERSON CIVIL ENGINEERING UK LIMITED,C-N11250-9227,EXCLUDED,16-Mar-11,-280.00
http://statistics.data.gov.uk/id/local-authority-district/23UB,Cheltenham Borough Council,445386,1495-11,ARCHITECTON,C-PM0030-R060,Pitt.Pump Room-Stage Repairs,30-Mar-11,"2,598.66"
http://statistics.data.gov.uk/id/local-authority-district/23UB,Cheltenham Borough Council,443893,00757884,ARGOS BUSINESS SOLUTIONS,C-L16100-3104,Holiday Rec-Sports & play equipment,09-Mar-11,349.98
http://statistics.data.gov.uk/id/local-authority-district/23UB,Cheltenham Borough Council,443893,00757884,ARGOS BUSINESS SOLUTIONS,C-L16100-3104,Holiday Rec-Sports & play equipment,09-Mar-11,29.16
http://statistics.data.gov.uk/id/local-authority-district/23UB,Cheltenham Borough Council,443893,00757884,ARGOS BUSINESS SOLUTIONS,C-L16100-3104,Holiday Rec-Sports & play equipment,09-Mar-11,46.66
http://statistics.data.gov.uk/id/local-authority-district/23UB,Cheltenham Borough Council,443893,00757884,ARGOS BUSINESS SOLUTIONS,C-L16100-3104,Holiday Rec-Sports & play equipment,09-Mar-11,38.32
http://statistics.data.gov.uk/id/local-authority-district/23UB,Cheltenham Borough Council,443893,00757884,ARGOS BUSINESS SOLUTIONS,C-L16100-3104,Holiday Rec-Sports & play equipment,09-Mar-11,25.62
http://statistics.data.gov.uk/id/local-authority-district/23UB,Cheltenham Borough Council,443893,00757884,ARGOS BUSINESS SOLUTIONS,C-L16100-3104,Holiday Rec-Sports & play equipment,09-Mar-11,41.66
http://statistics.data.gov.uk/id/local-authority-district/23UB,Cheltenham Borough Council,443893,00757884,ARGOS BUSINESS SOLUTIONS,C-L16100-3104,Holiday Rec-Sports & play equipment,09-Mar-11,12.50
http://statistics.data.gov.uk/id/local-authority-district/23UB,Cheltenham Borough Council,443893,00757884,ARGOS BUSINESS SOLUTIONS,C-L16100-3104,Holiday Rec-Sports & play equipment,09-Mar-11,-16.89
http://statistics.data.gov.uk/id/local-authority-district/23UB,Cheltenham Borough Council,443893,00757884,ARGOS BUSINESS SOLUTIONS,C-L16100-3104,Holiday Rec-Sports & play equipment,09-Mar-11,41.66
http://statistics.data.gov.uk/id/local-authority-district/23UB,Cheltenham Borough Council,443893,00757884,ARGOS BUSINESS SOLUTIONS,C-L16100-3104,Holiday Rec-Sports & play equipment,09-Mar-11,12.50
http://statistics.data.gov.uk/id/local-authority-district/23UB,Cheltenham Borough Council,443893,00757884,ARGOS BUSINESS SOLUTIONS,C-L16100-3104,Holiday Rec-Sports & play equipment,09-Mar-11,21.66
http://statistics.data.gov.uk/id/local-authority-district/23UB,Cheltenham Borough Council,443893,00757884,ARGOS BUSINESS SOLUTIONS,C-L16100-3104,Holiday Rec-Sports & play equipment,09-Mar-11,24.98
http://statistics.data.gov.uk/id/local-authority-district/23UB,Cheltenham Borough Council,443893,00757884,ARGOS BUSINESS SOLUTIONS,C-L16100-3104,Holiday Rec-Sports & play equipment,09-Mar-11,12.50
http://statistics.data.gov.uk/id/local-authority-district/23UB,Cheltenham Borough Council,443893,00757884,ARGOS BUSINESS SOLUTIONS,C-L16100-3104,Holiday Rec-Sports & play equipment,09-Mar-11,24.98
http://statistics.data.gov.uk/id/local-authority-district/23UB,Cheltenham Borough Council,443893,00757884,ARGOS BUSINESS SOLUTIONS,C-L16100-3104,Holiday Rec-Sports & play equipment,09-Mar-11,49.98
http://statistics.data.gov.uk/id/local-authority-district/23UB,Cheltenham Borough Council,443893,00757884,ARGOS BUSINESS SOLUTIONS,C-L16100-3104,Holiday Rec-Sports & play equipment,09-Mar-11,29.16
http://statistics.data.gov.uk/id/local-authority-district/23UB,Cheltenham Borough Council,443893,00757884,ARGOS BUSINESS SOLUTIONS,C-L16100-3104,Holiday Rec-Sports & play equipment,09-Mar-11,83.32
http://statistics.data.gov.uk/id/local-authority-district/23UB,Cheltenham Borough Council,443949,24974,ARKELL AND HURCOMBE BRONZE WORK LTD,C-E63100-3111,Cemetery & Crem-Goods purch for resale,09-Mar-11,137.50
http://statistics.data.gov.uk/id/local-authority-district/23UB,Cheltenham Borough Council,443950,24971,ARKELL AND HURCOMBE BRONZE WORK LTD,C-E63100-3111,Cemetery & Crem-Goods purch for resale,09-Mar-11,144.00
http://statistics.data.gov.uk/id/local-authority-district/23UB,Cheltenham Borough Council,443952,24972,ARKELL AND HURCOMBE BRONZE WORK LTD,C-E63100-3111,Cemetery & Crem-Goods purch for resale,09-Mar-11,396.00
http://statistics.data.gov.uk/id/local-authority-district/23UB,Cheltenham Borough Council,443951,24973,ARKELL AND HURCOMBE BRONZE WORK LTD,C-E63100-3111,Cemetery & Crem-Goods purch for resale,09-Mar-11,360.00
http://statistics.data.gov.uk/id/local-authority-district/23UB,Cheltenham Borough Council,443901,10417,ARTFUL LIMITED,C-B51120-3920,Develt Con-Advertising,09-Mar-11,"1,966.64"
http://statistics.data.gov.uk/id/local-authority-district/23UB,Cheltenham Borough Council,443777,1403,ARTFUL LIMITED,C-D21400-3920,Electoral Regn-Advertising,09-Mar-11,258.60
http://statistics.data.gov.uk/id/local-authority-district/23UB,Cheltenham Borough Council,444591,SETTLEMENT,ARTSHAPE,C-Z12210-9138,Box Off A/C-TH Hirers Tkt Pd out,16-Mar-11,570.00
http://statistics.data.gov.uk/id/local-authority-district/23UB,Cheltenham Borough Council,444825,541609a,ART SHAPE,C-L23500-3156,Arts Grant/Enab-Arts Development,23-Mar-11,"1,000.00"
http://statistics.data.gov.uk/id/local-authority-district/23UB,Cheltenham Borough Council,443726,25942,ATH HYDRAULICS LTD,C-L21200-3103,Pump Room-Equipment repairs & maint,04-Mar-11,876.20
http://statistics.data.gov.uk/id/local-authority-district/23UB,Cheltenham Borough Council,443816,72700,ATS EUROMASTER LTD,C-C24100-3501,Fleet Maint-Hire of outside services,09-Mar-11,"4,576.16"
http://statistics.data.gov.uk/id/local-authority-district/23UB,Cheltenham Borough Council,445240,SIN002405,AVALON PROMOTIONS LIMITED,C-0T18L1-3568,Jenny Eclair-Artist Fees,24-Mar-11,"5,233.30"
http://statistics.data.gov.uk/id/local-authority-district/23UB,Cheltenham Borough Council,445240,SIN002405,AVALON PROMOTIONS LIMITED,C-Z12210-9271,Box Off A/C-CBC Invoices Paid,24-Mar-11,-92.50
http://statistics.data.gov.uk/id/local-authority-district/23UB,Cheltenham Borough Council,445240,SIN002405,AVALON PROMOTIONS LIMITED,C-Z12210-9271,Box Off A/C-CBC Invoices Paid,24-Mar-11,"-1,276.50"
http://statistics.data.gov.uk/id/local-authority-district/23UB,Cheltenham Borough Council,444154,SIN002322,AVALON PROMOTIONS LIMITED,C-0T17L1-3568,Russell Kane-Artist Fees,11-Mar-11,"4,641.23"
http://statistics.data.gov.uk/id/local-authority-district/23UB,Cheltenham Borough Council,444153,SIN002364,AVALON PROMOTIONS LIMITED,C-0T21L1-3568,Richard Herring-Artist Fees,11-Mar-11,"2,551.34"
http://statistics.data.gov.uk/id/local-authority-district/23UB,Cheltenham Borough Council,444590,SIN002366,AVALON PROMOTIONS LIMITED,C-0T11L1-3568,Craig Campbell-Artist Fees,16-Mar-11,"1,337.36"
http://statistics.data.gov.uk/id/local-authority-district/23UB,Cheltenham Borough Council,444590,SIN002366,AVALON PROMOTIONS LIMITED,C-Z12210-9271,Box Off A/C-CBC Invoices Paid,16-Mar-11,-96.00
http://statistics.data.gov.uk/id/local-authority-district/23UB,Cheltenham Borough Council,388645,CC122834,AVM,C-C24100-3582,Fleet Maint-DSO Invoices,09-Mar-11,-10.00
http://statistics.data.gov.uk/id/local-authority-district/23UB,Cheltenham Borough Council,444023,7132,AVM,C-H22400-3501,Homelessness-Hire of outside services,09-Mar-11,180.00
http://statistics.data.gov.uk/id/local-authority-district/23UB,Cheltenham Borough Council,444025,7144,AVM,C-H22400-3501,Homelessness-Hire of outside services,09-Mar-11,343.00
http://statistics.data.gov.uk/id/local-authority-district/23UB,Cheltenham Borough Council,444027,7135,AVM,C-H22400-3501,Homelessness-Hire of outside services,09-Mar-11,180.00
http://statistics.data.gov.uk/id/local-authority-district/23UB,Cheltenham Borough Council,444026,7155,AVM,C-H22400-3501,Homelessness-Hire of outside services,09-Mar-11,245.00
http://statistics.data.gov.uk/id/local-authority-district/23UB,Cheltenham Borough Council,444024,7133,AVM,C-H22400-3501,Homelessness-Hire of outside services,09-Mar-11,223.29
http://statistics.data.gov.uk/id/local-authority-district/23UB,Cheltenham Borough Council,444022,7134,AVM,C-H22400-3501,Homelessness-Hire of outside services,09-Mar-11,180.00
http://statistics.data.gov.uk/id/local-authority-district/23UB,Cheltenham Borough Council,445042,REDACTED,REDACTED,C-H22400-3828,Homelessness-Prevention Fund,23-Mar-11,600.00
http://statistics.data.gov.uk/id/local-authority-district/23UB,Cheltenham Borough Council,445685,5948/10,BATRICAR INDEPENDANT MOBILITY,C-E21400-3101,Shopmobility-Equipment purchases,31-Mar-11,750.00
http://statistics.data.gov.uk/id/local-authority-district/23UB,Cheltenham Borough Council,445685,5948/10,BATRICAR INDEPENDANT MOBILITY,C-E21400-3101,Shopmobility-Equipment purchases,31-Mar-11,"2,700.00"
http://statistics.data.gov.uk/id/local-authority-district/23UB,Cheltenham Borough Council,445199,2807,BATTLE SPORTS GLOUCESTER,C-L16100-3501,Holiday Rec-Hire of outside services,24-Mar-11,700.00
http://statistics.data.gov.uk/id/local-authority-district/23UB,Cheltenham Borough Council,443778,1218961,BEACROFT LLP,C-L21100-3934,Town Hall-TP Gen-Imprest/Excess,09-Mar-11,949.20
http://statistics.data.gov.uk/id/local-authority-district/23UB,Cheltenham Borough Council,444810,22680,BPF INSTRUMENTS LTD,C-D13120-3636,Mail Room-Area Offs Courier Service,23-Mar-11,330.00
http://statistics.data.gov.uk/id/local-authority-district/23UB,Cheltenham Borough Council,444810,22680,BPF INSTRUMENTS LTD,C-D21100-3501,Dem Process-Hire of outside services,23-Mar-11,336.20
http://statistics.data.gov.uk/id/local-authority-district/23UB,Cheltenham Borough Council,444810,22680,BPF INSTRUMENTS LTD,C-E72500-3501,Built Env Div-Hire of outside services,23-Mar-11,53.30
http://statistics.data.gov.uk/id/local-authority-district/23UB,Cheltenham Borough Council,444810,22680,BPF INSTRUMENTS LTD,C-E72500-3602,Built Env Div-Postages - frkng machine,23-Mar-11,4.10
http://statistics.data.gov.uk/id/local-authority-district/23UB,Cheltenham Borough Council,444810,22680,BPF INSTRUMENTS LTD,C-H22300-3877,Housing Grants-Grants - One-Stop-Shop,23-Mar-11,33.60
http://statistics.data.gov.uk/id/local-authority-district/23UB,Cheltenham Borough Council,445116,210710,BHGS LTD,C-C22140-3127,Nursery-Materials-Bedding,23-Mar-11,885.02
http://statistics.data.gov.uk/id/local-authority-district/23UB,Cheltenham Borough Council,445116,210710,BHGS LTD,C-C22140-3127,Nursery-Materials-Bedding,23-Mar-11,806.50
http://statistics.data.gov.uk/id/local-authority-district/23UB,Cheltenham Borough Council,445116,210710,BHGS LTD,C-C22140-3127,Nursery-Materials-Bedding,23-Mar-11,110.40
http://statistics.data.gov.uk/id/local-authority-district/23UB,Cheltenham Borough Council,445116,210710,BHGS LTD,C-C22140-3127,Nursery-Materials-Bedding,23-Mar-11,110.40
http://statistics.data.gov.uk/id/local-authority-district/23UB,Cheltenham Borough Council,445116,210710,BHGS LTD,C-C22140-3127,Nursery-Materials-Bedding,23-Mar-11,537.67
http://statistics.data.gov.uk/id/local-authority-district/23UB,Cheltenham Borough Council,445120,212339,BHGS LTD,C-PM0092-R163,Central Nursery-Equipment,23-Mar-11,100.00
http://statistics.data.gov.uk/id/local-authority-district/23UB,Cheltenham Borough Council,445120,212339,BHGS LTD,C-PM0092-R163,Central Nursery-Equipment,23-Mar-11,150.00
http://statistics.data.gov.uk/id/local-authority-district/23UB,Cheltenham Borough Council,443721,11-140211,THE BIG SLEEP HOTEL,C-0T70L0-3569,Folk Festival-Artist Expenses(TravAccomR,04-Mar-11,"1,100.00"
http://statistics.data.gov.uk/id/local-authority-district/23UB,Cheltenham Borough Council,445521,43358,BIOLAB U K LTD,C-L11500-1714,Rec Facilities-Chemicals,30-Mar-11,123.24
http://statistics.data.gov.uk/id/local-authority-district/23UB,Cheltenham Borough Council,445521,43358,BIOLAB U K LTD,C-L11500-1714,Rec Facilities-Chemicals,30-Mar-11,46.60
http://statistics.data.gov.uk/id/local-authority-district/23UB,Cheltenham Borough Council,445521,43358,BIOLAB U K LTD,C-L11500-1714,Rec Facilities-Chemicals,30-Mar-11,6.00
http://statistics.data.gov.uk/id/local-authority-district/23UB,Cheltenham Borough Council,445521,43358,BIOLAB U K LTD,C-L11500-1714,Rec Facilities-Chemicals,30-Mar-11,18.08
http://statistics.data.gov.uk/id/local-authority-district/23UB,Cheltenham Borough Council,445521,43358,BIOLAB U K LTD,C-L11500-1714,Rec Facilities-Chemicals,30-Mar-11,11.50
http://statistics.data.gov.uk/id/local-authority-district/23UB,Cheltenham Borough Council,445521,43358,BIOLAB U K LTD,C-L11500-1714,Rec Facilities-Chemicals,30-Mar-11,11.13
http://statistics.data.gov.uk/id/local-authority-district/23UB,Cheltenham Borough Council,445521,43358,BIOLAB U K LTD,C-L11500-1714,Rec Facilities-Chemicals,30-Mar-11,11.79
http://statistics.data.gov.uk/id/local-authority-district/23UB,Cheltenham Borough Council,445521,43358,BIOLAB U K LTD,C-L11500-1714,Rec Facilities-Chemicals,30-Mar-11,165.00
http://statistics.data.gov.uk/id/local-authority-district/23UB,Cheltenham Borough Council,445521,43358,BIOLAB U K LTD,C-L11500-1714,Rec Facilities-Chemicals,30-Mar-11,100.88
http://statistics.data.gov.uk/id/local-authority-district/23UB,Cheltenham Borough Council,445521,43358,BIOLAB U K LTD,C-L11500-1714,Rec Facilities-Chemicals,30-Mar-11,169.47
http://statistics.data.gov.uk/id/local-authority-district/23UB,Cheltenham Borough Council,445596,2357,REX BISHOP AND SON,C-H44075-1104,Asbestos-Council House repairs,30-Mar-11,95.00
http://statistics.data.gov.uk/id/local-authority-district/23UB,Cheltenham Borough Council,445597,2359,REX BISHOP AND SON,C-H44075-1104,Asbestos-Council House repairs,30-Mar-11,685.00
http://statistics.data.gov.uk/id/local-authority-district/23UB,Cheltenham Borough Council,445598,2358,REX BISHOP AND SON,C-H44075-1104,Asbestos-Council House repairs,30-Mar-11,585.00
http://statistics.data.gov.uk/id/local-authority-district/23UB,Cheltenham Borough Council,445667,CHEL05SM01,BJK INSURANCE BROKERS LIMITED,C-NBS000-BI70,B/S-GRF Payments in Advance,31-Mar-11,"2,909.53"
http://statistics.data.gov.uk/id/local-authority-district/23UB,Cheltenham Borough Council,444648,224194,BLINK IMAGE,C-L41100-3816,AG & M-RIBA - Competition,24-Mar-11,"2,030.00"
http://statistics.data.gov.uk/id/local-authority-district/23UB,Cheltenham Borough Council,444649,224177,BLINK IMAGE,C-L41100-3816,AG & M-RIBA - Competition,24-Mar-11,"2,970.00"
http://statistics.data.gov.uk/id/local-authority-district/23UB,Cheltenham Borough Council,443723,0065,DEREK BLOCK ARTISTES AGENCY LIMITED,C-0T15L1-3568,Sally Morgan-Artist Fees,04-Mar-11,"1,721.20"
http://statistics.data.gov.uk/id/local-authority-district/23UB,Cheltenham Borough Council,444891,GTABB 090211,THE BLUES BAND,C-0T09L1-3568,The Blues Band-Artist Fees,23-Mar-11,"3,109.87"
http://statistics.data.gov.uk/id/local-authority-district/23UB,Cheltenham Borough Council,443809,AMW/LWH/18472,BPE SOLICITORS,C-E21100-3934,Car Prks-Off St-TP Gen-Imprest/Excess,09-Mar-11,"9,000.00"
http://statistics.data.gov.uk/id/local-authority-district/23UB,Cheltenham Borough Council,445416,070311,HUGH KOCH ASSOCIATES,C-D21950-3193,Community Plan-Health grant,30-Mar-11,"2,000.00"
http://statistics.data.gov.uk/id/local-authority-district/23UB,Cheltenham Borough Council,443353,47SI 619237,BRENNTAG UK,C-L11500-1714,Rec Facilities-Chemicals,04-Mar-11,40.90
http://statistics.data.gov.uk/id/local-authority-district/23UB,Cheltenham Borough Council,443353,47SI 619237,BRENNTAG UK,C-L11500-1714,Rec Facilities-Chemicals,04-Mar-11,732.00
http://statistics.data.gov.uk/id/local-authority-district/23UB,Cheltenham Borough Council,445502,8515/3004,BRITANNIA CONSTRUCTION LIMITED,C-PM0150-R145,Bridges-Malvern Road Bridge,30-Mar-11,"20,579.53"
http://statistics.data.gov.uk/id/local-authority-district/23UB,Cheltenham Borough Council,445086,0062,THE BRIZEN YOUNG PEOPLES CENTRE,C-Z13500-3501,LAA - ASBO Rev-Hire of outside services,23-Mar-11,"2,013.00"
http://statistics.data.gov.uk/id/local-authority-district/23UB,Cheltenham Borough Council,443752,FOOTBALL PROJ,BROMFORD HOUSING GROUP,C-Z13500-3501,LAA - ASBO Rev-Hire of outside services,04-Mar-11,500.00
http://statistics.data.gov.uk/id/local-authority-district/23UB,Cheltenham Borough Council,445420,SLB/LH/EH/BAK0,SIMON BURNS SOLICITORS,C-A21500-3504,Licensing-Legal exp & court costs,30-Mar-11,"1,666.67"
http://statistics.data.gov.uk/id/local-authority-district/23UB,Cheltenham Borough Council,445018,SETTLEMENT,VERITY BUTLER,C-N13125-9206,ASH Ledger-PPR Invoices Paid,23-Mar-11,-315.59
http://statistics.data.gov.uk/id/local-authority-district/23UB,Cheltenham Borough Council,445018,SETTLEMENT,VERITY BUTLER,C-Z12210-9137,Box Off A/C-PPR Hirers Tkt Pd out,23-Mar-11,984.50
http://statistics.data.gov.uk/id/local-authority-district/23UB,Cheltenham Borough Council,445695,00990171,CANFORD AUDIO PLC,C-E61650-3103,Air Quality-Equipment repairs & maint,31-Mar-11,"1,300.00"
http://statistics.data.gov.uk/id/local-authority-district/23UB,Cheltenham Borough Council,445695,00990171,CANFORD AUDIO PLC,C-E61650-3103,Air Quality-Equipment repairs & maint,31-Mar-11,84.00
http://statistics.data.gov.uk/id/local-authority-district/23UB,Cheltenham Borough Council,445695,00990171,CANFORD AUDIO PLC,C-E61650-3103,Air Quality-Equipment repairs & maint,31-Mar-11,110.00
http://statistics.data.gov.uk/id/local-authority-district/23UB,Cheltenham Borough Council,445695,00990171,CANFORD AUDIO PLC,C-E61650-3103,Air Quality-Equipment repairs & maint,31-Mar-11,79.97
http://statistics.data.gov.uk/id/local-authority-district/23UB,Cheltenham Borough Council,445695,00990171,CANFORD AUDIO PLC,C-E61650-3103,Air Quality-Equipment repairs & maint,31-Mar-11,18.50
http://statistics.data.gov.uk/id/local-authority-district/23UB,Cheltenham Borough Council,443472,4310,C AND R DECORATORS,C-H4201V-1104,Voids 2201-Council House repairs,04-Mar-11,116.63
http://statistics.data.gov.uk/id/local-authority-district/23UB,Cheltenham Borough Council,443477,4311,C AND R DECORATORS,C-H4201V-1104,Voids 2201-Council House repairs,04-Mar-11,141.47
http://statistics.data.gov.uk/id/local-authority-district/23UB,Cheltenham Borough Council,443507,4314,C AND R DECORATORS,C-H4203V-1104,Voids 2203-Council House repairs,04-Mar-11,381.72
http://statistics.data.gov.uk/id/local-authority-district/23UB,Cheltenham Borough Council,443501,4312,C AND R DECORATORS,C-H4207V-1104,Voids 2207-Council House repairs,04-Mar-11,154.52
http://statistics.data.gov.uk/id/local-authority-district/23UB,Cheltenham Borough Council,443502,4296,C AND R DECORATORS,C-H4207V-1104,Voids 2207-Council House repairs,04-Mar-11,189.00
http://statistics.data.gov.uk/id/local-authority-district/23UB,Cheltenham Borough Council,443500,4309,C AND R DECORATORS,C-H4209V-1104,Voids 2209-Council House repairs,04-Mar-11,91.88
http://statistics.data.gov.uk/id/local-authority-district/23UB,Cheltenham Borough Council,443505,4302,C AND R DECORATORS,C-H4211V-1104,Voids 2211-Council House repairs,04-Mar-11,137.03
http://statistics.data.gov.uk/id/local-authority-district/23UB,Cheltenham Borough Council,443504,4301,C AND R DECORATORS,C-H4213V-1104,Voids 2213-Council House repairs,04-Mar-11,117.45
http://statistics.data.gov.uk/id/local-authority-district/23UB,Cheltenham Borough Council,443503,4300,C AND R DECORATORS,C-H4214V-1104,Voids 2214-Council House repairs,04-Mar-11,87.00
http://statistics.data.gov.uk/id/local-authority-district/23UB,Cheltenham Borough Council,443506,4313,C AND R DECORATORS,C-H4214V-1104,Voids 2214-Council House repairs,04-Mar-11,642.03
http://statistics.data.gov.uk/id/local-authority-district/23UB,Cheltenham Borough Council,443308,4295,C AND R DECORATORS,C-HC4053-C302,Internal Imp-Building Contractor,04-Mar-11,"2,819.34"
http://statistics.data.gov.uk/id/local-authority-district/23UB,Cheltenham Borough Council,443708,4323,C AND R DECORATORS,C-PM0080-R004,Cemetery-External Building Repairs,04-Mar-11,"1,195.80"
http://statistics.data.gov.uk/id/local-authority-district/23UB,Cheltenham Borough Council,443920,4308,C AND R DECORATORS,C-H4201G-1104,Gen Wks 2201-Council House repairs,09-Mar-11,"1,536.42"
http://statistics.data.gov.uk/id/local-authority-district/23UB,Cheltenham Borough Council,443919,4299,C AND R DECORATORS,C-H4207G-1104,Gen Wks 2207-Council House repairs,09-Mar-11,502.19
http://statistics.data.gov.uk/id/local-authority-district/23UB,Cheltenham Borough Council,443916,4298,C AND R DECORATORS,C-H4214V-1104,Voids 2214-Council House repairs,09-Mar-11,647.66
http://statistics.data.gov.uk/id/local-authority-district/23UB,Cheltenham Borough Council,443917,4297,C AND R DECORATORS,C-H4214V-1104,Voids 2214-Council House repairs,09-Mar-11,943.98
http://statistics.data.gov.uk/id/local-authority-district/23UB,Cheltenham Borough Council,443918,4322,C AND R DECORATORS,C-HC4071-C302,Struct/Damp Wks-Building Contractor,09-Mar-11,"1,194.00"
http://statistics.data.gov.uk/id/local-authority-district/23UB,Cheltenham Borough Council,444434,4317,C AND R DECORATORS,C-H33700-1162,Estate Services-St Pauls St Peters The M,24-Mar-11,41.25
http://statistics.data.gov.uk/id/local-authority-district/23UB,Cheltenham Borough Council,444428,4332,C AND R DECORATORS,C-H4204V-1104,Voids 2204-Council House repairs,24-Mar-11,156.60
http://statistics.data.gov.uk/id/local-authority-district/23UB,Cheltenham Borough Council,444429,4334,C AND R DECORATORS,C-H4206V-1104,Voids 2206-Council House repairs,24-Mar-11,762.44
http://statistics.data.gov.uk/id/local-authority-district/23UB,Cheltenham Borough Council,444430,431,C AND R DECORATORS,C-H4209V-1104,Voids 2209-Council House repairs,24-Mar-11,134.13
http://statistics.data.gov.uk/id/local-authority-district/23UB,Cheltenham Borough Council,444431,4333,C AND R DECORATORS,C-H4209V-1104,Voids 2209-Council House repairs,24-Mar-11,156.60
http://statistics.data.gov.uk/id/local-authority-district/23UB,Cheltenham Borough Council,444435,4336,C AND R DECORATORS,C-H4214G-1104,Gen Wks 2214-Council House repairs,24-Mar-11,756.00
http://statistics.data.gov.uk/id/local-authority-district/23UB,Cheltenham Borough Council,444432,4319,C AND R DECORATORS,C-H4214V-1104,Voids 2214-Council House repairs,24-Mar-11,"1,880.48"
http://statistics.data.gov.uk/id/local-authority-district/23UB,Cheltenham Borough Council,444433,4318,C AND R DECORATORS,C-H4214V-1104,Voids 2214-Council House repairs,24-Mar-11,"1,030.71"
http://statistics.data.gov.uk/id/local-authority-district/23UB,Cheltenham Borough Council,445583,4364,C AND R DECORATORS,C-H4213G-1104,Gen Wks 2213-Council House repairs,30-Mar-11,756.00
http://statistics.data.gov.uk/id/local-authority-district/23UB,Cheltenham Borough Council,445584,4343,C AND R DECORATORS,C-H4214G-1104,Gen Wks 2214-Council House repairs,30-Mar-11,204.00
http://statistics.data.gov.uk/id/local-authority-district/23UB,Cheltenham Borough Council,445579,4338,C AND R DECORATORS,C-H44752-1104,Dis Adapts-Tech-Council House repairs,30-Mar-11,750.00
http://statistics.data.gov.uk/id/local-authority-district/23UB,Cheltenham Borough Council,445582,4347,C AND R DECORATORS,C-H44752-1104,Dis Adapts-Tech-Council House repairs,30-Mar-11,369.75
http://statistics.data.gov.uk/id/local-authority-district/23UB,Cheltenham Borough Council,445581,4291,C AND R DECORATORS,C-H44752-1104,Dis Adapts-Tech-Council House repairs,30-Mar-11,"1,343.00"
http://statistics.data.gov.uk/id/local-authority-district/23UB,Cheltenham Borough Council,445580,4290,C AND R DECORATORS,C-HC4071-C302,Struct/Damp Wks-Building Contractor,30-Mar-11,339.71
http://statistics.data.gov.uk/id/local-authority-district/23UB,Cheltenham Borough Council,445387,4366,C AND R DECORATORS,C-PM0030-R003,Pitt.Pump Room-External Re-decoration,30-Mar-11,"1,260.00"
http://statistics.data.gov.uk/id/local-authority-district/23UB,Cheltenham Borough Council,445388,4369,C AND R DECORATORS,C-PM0160-R100,Public Toilets-General Public Toilets,30-Mar-11,"2,488.50"
http://statistics.data.gov.uk/id/local-authority-district/23UB,Cheltenham Borough Council,445389,4370,C AND R DECORATORS,C-PM0160-R100,Public Toilets-General Public Toilets,30-Mar-11,433.00
http://statistics.data.gov.uk/id/local-authority-district/23UB,Cheltenham Borough Council,445686,5362270,CBS OUTDOOR LIMITED,C-E21400-3920,Shopmobility-Advertising,31-Mar-11,"1,333.00"
http://statistics.data.gov.uk/id/local-authority-district/23UB,Cheltenham Borough Council,445687,5362269,CBS OUTDOOR LIMITED,C-E21400-3920,Shopmobility-Advertising,31-Mar-11,"1,740.00"
http://statistics.data.gov.uk/id/local-authority-district/23UB,Cheltenham Borough Council,445399,1730,CENTRELINE ARCHITECTURAL SCULPTURE,C-PM0099-R160,Statues & Memor-General Surveys,30-Mar-11,"1,850.00"
http://statistics.data.gov.uk/id/local-authority-district/23UB,Cheltenham Borough Council,445402,grant,CHARLTON KINGS OLD PEOPLES WELFARE CTTEE,C-D32400-4126,Elderly Trspt-Paymts to Bus Cos-Full Far,30-Mar-11,812.50
http://statistics.data.gov.uk/id/local-authority-district/23UB,Cheltenham Borough Council,444414,30180C,CHARTERHOUSE SECURITY MANAGEMENT,C-H46400-1104,Door Entry-Council House repairs,24-Mar-11,-37.50
http://statistics.data.gov.uk/id/local-authority-district/23UB,Cheltenham Borough Council,444419,30955,CHARTERHOUSE SECURITY MANAGEMENT,C-H46400-1104,Door Entry-Council House repairs,24-Mar-11,"1,174.50"
http://statistics.data.gov.uk/id/local-authority-district/23UB,Cheltenham Borough Council,444415,30166c,CHARTERHOUSE SECURITY MANAGEMENT,C-H46400-1104,Door Entry-Council House repairs,24-Mar-11,-30.00
http://statistics.data.gov.uk/id/local-authority-district/23UB,Cheltenham Borough Council,443728,HC6067,CHAMBERS MANAGEMENT CLIENT ACCOUNT,C-0T13K1-3568,Sarah Millican-Artist Fees   ,04-Mar-11,"8,000.00"
http://statistics.data.gov.uk/id/local-authority-district/23UB,Cheltenham Borough Council,444753,CHELTDW/1/2011,CHELTENHAM ANIMAL SHELTER,C-E61300-8428,Animal Welfare-Fees for services,23-Mar-11,638.00
http://statistics.data.gov.uk/id/local-authority-district/23UB,Cheltenham Borough Council,445765,CHELTDW/2/2011,CHELTENHAM ANIMAL SHELTER,C-E61300-3501,Animal Welfare-Hire of outside services,31-Mar-11,534.00
http://statistics.data.gov.uk/id/local-authority-district/23UB,Cheltenham Borough Council,445102,APPINV150311,CHELTENHAM TREE SERVICES,C-C22120-1305,Spts/Open Space-Tree surgery,23-Mar-11,350.00
http://statistics.data.gov.uk/id/local-authority-district/23UB,Cheltenham Borough Council,445101,APPIWV150311,CHELTENHAM TREE SERVICES,C-C22190-1301,Allotments-Routine grounds maint,23-Mar-11,895.00
http://statistics.data.gov.uk/id/local-authority-district/23UB,Cheltenham Borough Council,444769,CAB ADVICE 11/1,"CHELTENHAM,CIRENCESTER AND TEWKS CAB",C-NBS000-BI70,CAB Advice Contract 11/12,23-Mar-11,"77,465.66"
http://statistics.data.gov.uk/id/local-authority-district/23UB,Cheltenham Borough Council,445038,COMMUNITY PRI,CHELTENHAM CONNECT,C-D21970-3677,Parish Pride-Parish Council - Community,23-Mar-11,500.00
http://statistics.data.gov.uk/id/local-authority-district/23UB,Cheltenham Borough Council,443690,3104,CHRIST COLLEGE,C-L16100-3501,Holiday Rec-Hire of outside services,04-Mar-11,175.00
http://statistics.data.gov.uk/id/local-authority-district/23UB,Cheltenham Borough Council,443603,SETTLEMENT,CHRIST COLLEGE,C-N13125-9205,ASH Ledger-Town Hall Invoices Paid,04-Mar-11,"-1,046.70"
http://statistics.data.gov.uk/id/local-authority-district/23UB,Cheltenham Borough Council,443603,SETTLEMENT,CHRIST COLLEGE,C-Z12210-9138,Box Off A/C-TH Hirers Tkt Pd out,04-Mar-11,"2,548.00"
http://statistics.data.gov.uk/id/local-authority-district/23UB,Cheltenham Borough Council,445249,SETTLEMENT,CHRIST COLLEGE SPORTS PARTNERSHIP,C-N13125-9205,ASH Ledger-Town Hall Invoices Paid,24-Mar-11,-858.23
http://statistics.data.gov.uk/id/local-authority-district/23UB,Cheltenham Borough Council,445249,SETTLEMENT,CHRIST COLLEGE SPORTS PARTNERSHIP,C-Z12210-9138,Box Off A/C-TH Hirers Tkt Pd out,24-Mar-11,"2,848.00"
http://statistics.data.gov.uk/id/local-authority-district/23UB,Cheltenham Borough Council,445422,CDH 20088,CIRCUS OF HORRORS LIMITED,C-0T04M1-3568,Circus Horrors-Artist Fees,30-Mar-11,"4,731.23"
http://statistics.data.gov.uk/id/local-authority-district/23UB,Cheltenham Borough Council,444031,M/1C003942,CIVICA UK LIMITED,C-NBS000-BI70,Licence Support  11/12,09-Mar-11,"11,731.79"
http://statistics.data.gov.uk/id/local-authority-district/23UB,Cheltenham Borough Council,444031,M/1C003942,CIVICA UK LIMITED,C-NBS000-BI70,Licence Support  11/12,09-Mar-11,"6,108.57"
http://statistics.data.gov.uk/id/local-authority-district/23UB,Cheltenham Borough Council,444676,C/RB101997,CIVICA UK LIMITED,C-D12435-3626,Local Housing A-I.T.Release Costs,24-Mar-11,"1,500.00"
http://statistics.data.gov.uk/id/local-authority-district/23UB,Cheltenham Borough Council,444677,C/RB102278,CIVICA UK LIMITED,C-D12435-3626,Local Housing A-I.T.Release Costs,24-Mar-11,"10,000.00"
http://statistics.data.gov.uk/id/local-authority-district/23UB,Cheltenham Borough Council,445621,C/T7102594,CIVICA UK LIMITED,C-C24100-3501,Fleet Maint-Hire of outside services,30-Mar-11,"3,400.00"
http://statistics.data.gov.uk/id/local-authority-district/23UB,Cheltenham Borough Council,445697,C/RB102628,CIVICA UK LIMITED,C-D11700-3501,Pol & Info Mgmt-Hire of outside services,31-Mar-11,150.00
http://statistics.data.gov.uk/id/local-authority-district/23UB,Cheltenham Borough Council,445698,C/RB102317,CIVICA UK LIMITED,C-D12435-3626,Local Housing A-I.T.Release Costs,31-Mar-11,"4,568.27"
http://statistics.data.gov.uk/id/local-authority-district/23UB,Cheltenham Borough Council,445699,C/RB102318,CIVICA UK LIMITED,C-D12435-3626,Local Housing A-I.T.Release Costs,31-Mar-11,"2,920.00"
http://statistics.data.gov.uk/id/local-authority-district/23UB,Cheltenham Borough Council,445697,C/RB102628,CIVICA UK LIMITED,C-D12440-3623,Coun Tax overhe-Cmpter-sftwre lic purch,31-Mar-11,150.00
http://statistics.data.gov.uk/id/local-authority-district/23UB,Cheltenham Borough Council,445041,REDACTED,ALEX CLARKE RESIDENTIAL LETTINGS,C-H22400-3828,Homelessness-Prevention Fund,23-Mar-11,600.00
http://statistics.data.gov.uk/id/local-authority-district/23UB,Cheltenham Borough Council,443943,18604,COLLETT TRANSPORT SERVICES LIMITED,C-C24100-2702,Fleet Maint-Additional vehicle hire,09-Mar-11,850.00
http://statistics.data.gov.uk/id/local-authority-district/23UB,Cheltenham Borough Council,443883,168664,COMMERCIAL LIMITED,C-D11820-3660,IT Infrastructu-Hardware PC & Servers,09-Mar-11,"1,182.00"
http://statistics.data.gov.uk/id/local-authority-district/23UB,Cheltenham Borough Council,443907,168667,COMMERCIAL LIMITED,C-D11820-3660,IT Infrastructu-Hardware PC & Servers,09-Mar-11,"2,950.00"
http://statistics.data.gov.uk/id/local-authority-district/23UB,Cheltenham Borough Council,443907,168667,COMMERCIAL LIMITED,C-D11820-3660,IT Infrastructu-Hardware PC & Servers,09-Mar-11,"5,201.00"
http://statistics.data.gov.uk/id/local-authority-district/23UB,Cheltenham Borough Council,443907,168667,COMMERCIAL LIMITED,C-D11820-3660,IT Infrastructu-Hardware PC & Servers,09-Mar-11,"3,626.00"
http://statistics.data.gov.uk/id/local-authority-district/23UB,Cheltenham Borough Council,443907,168667,COMMERCIAL LIMITED,C-D11820-3660,IT Infrastructu-Hardware PC & Servers,09-Mar-11,"5,758.00"
http://statistics.data.gov.uk/id/local-authority-district/23UB,Cheltenham Borough Council,443906,168687,COMMERCIAL LIMITED,C-D11820-3660,IT Infrastructu-Hardware PC & Servers,09-Mar-11,364.00
http://statistics.data.gov.uk/id/local-authority-district/23UB,Cheltenham Borough Council,443906,168687,COMMERCIAL LIMITED,C-D11820-3660,IT Infrastructu-Hardware PC & Servers,09-Mar-11,124.00
http://statistics.data.gov.uk/id/local-authority-district/23UB,Cheltenham Borough Council,443906,168687,COMMERCIAL LIMITED,C-D11820-3660,IT Infrastructu-Hardware PC & Servers,09-Mar-11,"4,940.00"
http://statistics.data.gov.uk/id/local-authority-district/23UB,Cheltenham Borough Council,443906,168687,COMMERCIAL LIMITED,C-D11820-3660,IT Infrastructu-Hardware PC & Servers,09-Mar-11,"2,360.00"
http://statistics.data.gov.uk/id/local-authority-district/23UB,Cheltenham Borough Council,443906,168687,COMMERCIAL LIMITED,C-D11820-3660,IT Infrastructu-Hardware PC & Servers,09-Mar-11,444.00
http://statistics.data.gov.uk/id/local-authority-district/23UB,Cheltenham Borough Council,443906,168687,COMMERCIAL LIMITED,C-D11820-3660,IT Infrastructu-Hardware PC & Servers,09-Mar-11,"11,736.00"
http://statistics.data.gov.uk/id/local-authority-district/23UB,Cheltenham Borough Council,443906,168687,COMMERCIAL LIMITED,C-D11820-3660,IT Infrastructu-Hardware PC & Servers,09-Mar-11,"12,220.00"
http://statistics.data.gov.uk/id/local-authority-district/23UB,Cheltenham Borough Council,443905,168672,COMMERCIAL LIMITED,C-D11820-3660,IT Infrastructu-Hardware PC & Servers,09-Mar-11,"6,040.00"
http://statistics.data.gov.uk/id/local-authority-district/23UB,Cheltenham Borough Council,443905,168672,COMMERCIAL LIMITED,C-D11820-3660,IT Infrastructu-Hardware PC & Servers,09-Mar-11,"15,048.00"
http://statistics.data.gov.uk/id/local-authority-district/23UB,Cheltenham Borough Council,443904,168682,COMMERCIAL LIMITED,C-D11820-3660,IT Infrastructu-Hardware PC & Servers,09-Mar-11,"4,872.00"
http://statistics.data.gov.uk/id/local-authority-district/23UB,Cheltenham Borough Council,443904,168682,COMMERCIAL LIMITED,C-D11820-3660,IT Infrastructu-Hardware PC & Servers,09-Mar-11,"6,876.00"
http://statistics.data.gov.uk/id/local-authority-district/23UB,Cheltenham Borough Council,443904,168682,COMMERCIAL LIMITED,C-D11820-3660,IT Infrastructu-Hardware PC & Servers,09-Mar-11,"4,272.00"
http://statistics.data.gov.uk/id/local-authority-district/23UB,Cheltenham Borough Council,443904,168682,COMMERCIAL LIMITED,C-D11820-3660,IT Infrastructu-Hardware PC & Servers,09-Mar-11,"18,626.00"
http://statistics.data.gov.uk/id/local-authority-district/23UB,Cheltenham Borough Council,443908,168690,COMMERCIAL LIMITED,C-D11820-3660,IT Infrastructu-Hardware PC & Servers,09-Mar-11,447.50
http://statistics.data.gov.uk/id/local-authority-district/23UB,Cheltenham Borough Council,443908,168690,COMMERCIAL LIMITED,C-D11820-3660,IT Infrastructu-Hardware PC & Servers,09-Mar-11,447.50
http://statistics.data.gov.uk/id/local-authority-district/23UB,Cheltenham Borough Council,443908,168690,COMMERCIAL LIMITED,C-D11820-3660,IT Infrastructu-Hardware PC & Servers,09-Mar-11,447.50
http://statistics.data.gov.uk/id/local-authority-district/23UB,Cheltenham Borough Council,443908,168690,COMMERCIAL LIMITED,C-D11820-3660,IT Infrastructu-Hardware PC & Servers,09-Mar-11,"1,342.50"
http://statistics.data.gov.uk/id/local-authority-district/23UB,Cheltenham Borough Council,443908,168690,COMMERCIAL LIMITED,C-D11820-3660,IT Infrastructu-Hardware PC & Servers,09-Mar-11,447.50
http://statistics.data.gov.uk/id/local-authority-district/23UB,Cheltenham Borough Council,443908,168690,COMMERCIAL LIMITED,C-D11820-3660,IT Infrastructu-Hardware PC & Servers,09-Mar-11,895.00
http://statistics.data.gov.uk/id/local-authority-district/23UB,Cheltenham Borough Council,443908,168690,COMMERCIAL LIMITED,C-D11820-3660,IT Infrastructu-Hardware PC & Servers,09-Mar-11,895.00
http://statistics.data.gov.uk/id/local-authority-district/23UB,Cheltenham Borough Council,443908,168690,COMMERCIAL LIMITED,C-D11820-3660,IT Infrastructu-Hardware PC & Servers,09-Mar-11,"2,685.00"
http://statistics.data.gov.uk/id/local-authority-district/23UB,Cheltenham Borough Council,443907,168667,COMMERCIAL LIMITED,C-D11820-3660,IT Infrastructu-Hardware PC & Servers,09-Mar-11,96.00
http://statistics.data.gov.uk/id/local-authority-district/23UB,Cheltenham Borough Council,443909,C168692,COMMERCIAL LIMITED,C-D11820-3660,IT Infrastructu-Hardware PC & Servers,09-Mar-11,"7,890.00"
http://statistics.data.gov.uk/id/local-authority-district/23UB,Cheltenham Borough Council,443908,168690,COMMERCIAL LIMITED,C-D11820-3660,IT Infrastructu-Hardware PC & Servers,09-Mar-11,"1,342.50"
http://statistics.data.gov.uk/id/local-authority-district/23UB,Cheltenham Borough Council,443908,168690,COMMERCIAL LIMITED,C-D11820-3660,IT Infrastructu-Hardware PC & Servers,09-Mar-11,895.00
http://statistics.data.gov.uk/id/local-authority-district/23UB,Cheltenham Borough Council,443908,168690,COMMERCIAL LIMITED,C-D11820-3660,IT Infrastructu-Hardware PC & Servers,09-Mar-11,"1,342.50"
http://statistics.data.gov.uk/id/local-authority-district/23UB,Cheltenham Borough Council,443908,168690,COMMERCIAL LIMITED,C-D11820-3660,IT Infrastructu-Hardware PC & Servers,09-Mar-11,"1,342.50"
http://statistics.data.gov.uk/id/local-authority-district/23UB,Cheltenham Borough Council,443908,168690,COMMERCIAL LIMITED,C-D11820-3660,IT Infrastructu-Hardware PC & Servers,09-Mar-11,895.00
http://statistics.data.gov.uk/id/local-authority-district/23UB,Cheltenham Borough Council,443908,168690,COMMERCIAL LIMITED,C-D11820-3660,IT Infrastructu-Hardware PC & Servers,09-Mar-11,447.50
http://statistics.data.gov.uk/id/local-authority-district/23UB,Cheltenham Borough Council,443908,168690,COMMERCIAL LIMITED,C-D11820-3660,IT Infrastructu-Hardware PC & Servers,09-Mar-11,447.50
http://statistics.data.gov.uk/id/local-authority-district/23UB,Cheltenham Borough Council,443883,168664,COMMERCIAL LIMITED,C-D11820-3660,IT Infrastructu-Hardware PC & Servers,09-Mar-11,"52,492.00"
http://statistics.data.gov.uk/id/local-authority-district/23UB,Cheltenham Borough Council,443883,168664,COMMERCIAL LIMITED,C-D11820-3660,IT Infrastructu-Hardware PC & Servers,09-Mar-11,"8,852.00"
http://statistics.data.gov.uk/id/local-authority-district/23UB,Cheltenham Borough Council,443883,168664,COMMERCIAL LIMITED,C-D11820-3660,IT Infrastructu-Hardware PC & Servers,09-Mar-11,"1,308.00"
http://statistics.data.gov.uk/id/local-authority-district/23UB,Cheltenham Borough Council,443883,168664,COMMERCIAL LIMITED,C-D11820-3660,IT Infrastructu-Hardware PC & Servers,09-Mar-11,290.00
http://statistics.data.gov.uk/id/local-authority-district/23UB,Cheltenham Borough Council,444638,7385373,COMPUTACENTER UK LIMITED,C-D11800-3623,IT Services-Cmpter-sftwre lic purch,24-Mar-11,"3,257.67"
http://statistics.data.gov.uk/id/local-authority-district/23UB,Cheltenham Borough Council,443716,1528,COMMERCIAL MOWER SUPPLIES,C-C24100-3582,Fleet Maint-DSO Invoices,04-Mar-11,374.04
http://statistics.data.gov.uk/id/local-authority-district/23UB,Cheltenham Borough Council,443483,1532,COMMERCIAL MOWER SUPPLIES,C-C24100-3582,Fleet Maint-DSO Invoices,04-Mar-11,282.21
http://statistics.data.gov.uk/id/local-authority-district/23UB,Cheltenham Borough Council,443768,503635,COMENSURA LIMITED,C-C22100-0115,Green Env Div-Temporary Agency Staff,04-Mar-11,279.20
http://statistics.data.gov.uk/id/local-authority-district/23UB,Cheltenham Borough Council,443768,503635,COMENSURA LIMITED,C-C22100-0115,Green Env Div-Temporary Agency Staff,04-Mar-11,279.20
http://statistics.data.gov.uk/id/local-authority-district/23UB,Cheltenham Borough Council,443769,503843,COMENSURA LIMITED,C-C22110-0115,Parks & Gardens-Temporary Agency Staff,04-Mar-11,574.56
http://statistics.data.gov.uk/id/local-authority-district/23UB,Cheltenham Borough Council,443768,503635,COMENSURA LIMITED,C-C22110-0115,Parks & Gardens-Temporary Agency Staff,04-Mar-11,585.97
http://statistics.data.gov.uk/id/local-authority-district/23UB,Cheltenham Borough Council,443769,503843,COMENSURA LIMITED,C-C23100-0115,Refuse Collection-Temporary Agency Staff,04-Mar-11,122.67
http://statistics.data.gov.uk/id/local-authority-district/23UB,Cheltenham Borough Council,443769,503843,COMENSURA LIMITED,C-C23100-0115,Refuse Collection-Temporary Agency Staff,04-Mar-11,135.36
http://statistics.data.gov.uk/id/local-authority-district/23UB,Cheltenham Borough Council,443769,503843,COMENSURA LIMITED,C-C23100-0115,Refuse Collection-Temporary Agency Staff,04-Mar-11,81.88
http://statistics.data.gov.uk/id/local-authority-district/23UB,Cheltenham Borough Council,443769,503843,COMENSURA LIMITED,C-C23100-0115,Refuse Collection-Temporary Agency Staff,04-Mar-11,313.02
http://statistics.data.gov.uk/id/local-authority-district/23UB,Cheltenham Borough Council,443769,503843,COMENSURA LIMITED,C-C23100-0115,Refuse Collection-Temporary Agency Staff,04-Mar-11,212.28
http://statistics.data.gov.uk/id/local-authority-district/23UB,Cheltenham Borough Council,443769,503843,COMENSURA LIMITED,C-C23100-0115,Refuse Collection-Temporary Agency Staff,04-Mar-11,241.12
http://statistics.data.gov.uk/id/local-authority-district/23UB,Cheltenham Borough Council,443769,503843,COMENSURA LIMITED,C-C23100-0115,Refuse Collection-Temporary Agency Staff,04-Mar-11,194.08
http://statistics.data.gov.uk/id/local-authority-district/23UB,Cheltenham Borough Council,443768,503635,COMENSURA LIMITED,C-C23100-0115,Refuse Collection-Temporary Agency Staff,04-Mar-11,351.77
http://statistics.data.gov.uk/id/local-authority-district/23UB,Cheltenham Borough Council,443768,503635,COMENSURA LIMITED,C-C23100-0115,Refuse Collection-Temporary Agency Staff,04-Mar-11,253.80
http://statistics.data.gov.uk/id/local-authority-district/23UB,Cheltenham Borough Council,443768,503635,COMENSURA LIMITED,C-C23100-0115,Refuse Collection-Temporary Agency Staff,04-Mar-11,63.45
http://statistics.data.gov.uk/id/local-authority-district/23UB,Cheltenham Borough Council,443768,503635,COMENSURA LIMITED,C-C23100-0115,Refuse Collection-Temporary Agency Staff,04-Mar-11,323.60
http://statistics.data.gov.uk/id/local-authority-district/23UB,Cheltenham Borough Council,443768,503635,COMENSURA LIMITED,C-C23100-0115,Refuse Collection-Temporary Agency Staff,04-Mar-11,283.41
http://statistics.data.gov.uk/id/local-authority-district/23UB,Cheltenham Borough Council,443768,503635,COMENSURA LIMITED,C-C23100-0115,Refuse Collection-Temporary Agency Staff,04-Mar-11,97.04
http://statistics.data.gov.uk/id/local-authority-district/23UB,Cheltenham Borough Council,443768,503635,COMENSURA LIMITED,C-C23100-0115,Refuse Collection-Temporary Agency Staff,04-Mar-11,403.32
http://statistics.data.gov.uk/id/local-authority-district/23UB,Cheltenham Borough Council,443768,503635,COMENSURA LIMITED,C-C23100-0115,Refuse Collection-Temporary Agency Staff,04-Mar-11,241.11
http://statistics.data.gov.uk/id/local-authority-district/23UB,Cheltenham Borough Council,443768,503635,COMENSURA LIMITED,C-C23100-0115,Refuse Collection-Temporary Agency Staff,04-Mar-11,539.78
http://statistics.data.gov.uk/id/local-authority-district/23UB,Cheltenham Borough Council,443768,503635,COMENSURA LIMITED,C-C23100-0115,Refuse Collection-Temporary Agency Staff,04-Mar-11,103.10
http://statistics.data.gov.uk/id/local-authority-district/23UB,Cheltenham Borough Council,443768,503635,COMENSURA LIMITED,C-C23100-0115,Refuse Collection-Temporary Agency Staff,04-Mar-11,194.58
http://statistics.data.gov.uk/id/local-authority-district/23UB,Cheltenham Borough Council,443768,503635,COMENSURA LIMITED,C-C23100-0115,Refuse Collection-Temporary Agency Staff,04-Mar-11,105.75
http://statistics.data.gov.uk/id/local-authority-district/23UB,Cheltenham Borough Council,443768,503635,COMENSURA LIMITED,C-C23100-0115,Refuse Collection-Temporary Agency Staff,04-Mar-11,509.45
http://statistics.data.gov.uk/id/local-authority-district/23UB,Cheltenham Borough Council,443768,503635,COMENSURA LIMITED,C-C23100-0115,Refuse Collection-Temporary Agency Staff,04-Mar-11,503.39
http://statistics.data.gov.uk/id/local-authority-district/23UB,Cheltenham Borough Council,443768,503635,COMENSURA LIMITED,C-C23100-0115,Refuse Collection-Temporary Agency Staff,04-Mar-11,515.52
http://statistics.data.gov.uk/id/local-authority-district/23UB,Cheltenham Borough Council,443768,503635,COMENSURA LIMITED,C-C23100-0115,Refuse Collection-Temporary Agency Staff,04-Mar-11,243.22
http://statistics.data.gov.uk/id/local-authority-district/23UB,Cheltenham Borough Council,443768,503635,COMENSURA LIMITED,C-C23100-0115,Refuse Collection-Temporary Agency Staff,04-Mar-11,266.48
http://statistics.data.gov.uk/id/local-authority-district/23UB,Cheltenham Borough Council,443768,503635,COMENSURA LIMITED,C-C23100-0115,Refuse Collection-Temporary Agency Staff,04-Mar-11,313.02
http://statistics.data.gov.uk/id/local-authority-district/23UB,Cheltenham Borough Council,443768,503635,COMENSURA LIMITED,C-C23100-0115,Refuse Collection-Temporary Agency Staff,04-Mar-11,207.69
http://statistics.data.gov.uk/id/local-authority-district/23UB,Cheltenham Borough Council,443769,503843,COMENSURA LIMITED,C-C23100-0115,Refuse Collection-Temporary Agency Staff,04-Mar-11,369.98
http://statistics.data.gov.uk/id/local-authority-district/23UB,Cheltenham Borough Council,443769,503843,COMENSURA LIMITED,C-C23100-0115,Refuse Collection-Temporary Agency Staff,04-Mar-11,219.96
http://statistics.data.gov.uk/id/local-authority-district/23UB,Cheltenham Borough Council,443769,503843,COMENSURA LIMITED,C-C23100-0115,Refuse Collection-Temporary Agency Staff,04-Mar-11,109.98
http://statistics.data.gov.uk/id/local-authority-district/23UB,Cheltenham Borough Council,443769,503843,COMENSURA LIMITED,C-C23100-0115,Refuse Collection-Temporary Agency Staff,04-Mar-11,325.71
http://statistics.data.gov.uk/id/local-authority-district/23UB,Cheltenham Borough Council,443769,503843,COMENSURA LIMITED,C-C23100-0115,Refuse Collection-Temporary Agency Staff,04-Mar-11,293.98
http://statistics.data.gov.uk/id/local-authority-district/23UB,Cheltenham Borough Council,443769,503843,COMENSURA LIMITED,C-C23100-0115,Refuse Collection-Temporary Agency Staff,04-Mar-11,241.11
http://statistics.data.gov.uk/id/local-authority-district/23UB,Cheltenham Borough Council,443769,503843,COMENSURA LIMITED,C-C23100-0115,Refuse Collection-Temporary Agency Staff,04-Mar-11,485.20
http://statistics.data.gov.uk/id/local-authority-district/23UB,Cheltenham Borough Council,443769,503843,COMENSURA LIMITED,C-C23100-0115,Refuse Collection-Temporary Agency Staff,04-Mar-11,503.38
http://statistics.data.gov.uk/id/local-authority-district/23UB,Cheltenham Borough Council,443769,503843,COMENSURA LIMITED,C-C23100-0115,Refuse Collection-Temporary Agency Staff,04-Mar-11,152.28
http://statistics.data.gov.uk/id/local-authority-district/23UB,Cheltenham Borough Council,443769,503843,COMENSURA LIMITED,C-C23100-0115,Refuse Collection-Temporary Agency Staff,04-Mar-11,186.12
http://statistics.data.gov.uk/id/local-authority-district/23UB,Cheltenham Borough Council,443769,503843,COMENSURA LIMITED,C-C23100-0115,Refuse Collection-Temporary Agency Staff,04-Mar-11,109.17
http://statistics.data.gov.uk/id/local-authority-district/23UB,Cheltenham Borough Council,443769,503843,COMENSURA LIMITED,C-C23110-0115,Street Cleaning-Temporary Agency Staff,04-Mar-11,368.01
http://statistics.data.gov.uk/id/local-authority-district/23UB,Cheltenham Borough Council,443769,503843,COMENSURA LIMITED,C-C23110-0115,Street Cleaning-Temporary Agency Staff,04-Mar-11,325.71
http://statistics.data.gov.uk/id/local-authority-district/23UB,Cheltenham Borough Council,443769,503843,COMENSURA LIMITED,C-C23110-0115,Street Cleaning-Temporary Agency Staff,04-Mar-11,351.09
http://statistics.data.gov.uk/id/local-authority-district/23UB,Cheltenham Borough Council,443768,503635,COMENSURA LIMITED,C-C23110-0115,Street Cleaning-Temporary Agency Staff,04-Mar-11,245.34
http://statistics.data.gov.uk/id/local-authority-district/23UB,Cheltenham Borough Council,443768,503635,COMENSURA LIMITED,C-C23110-0115,Street Cleaning-Temporary Agency Staff,04-Mar-11,122.67
http://statistics.data.gov.uk/id/local-authority-district/23UB,Cheltenham Borough Council,443768,503635,COMENSURA LIMITED,C-C23110-0115,Street Cleaning-Temporary Agency Staff,04-Mar-11,232.65
http://statistics.data.gov.uk/id/local-authority-district/23UB,Cheltenham Borough Council,443768,503635,COMENSURA LIMITED,C-C23110-0115,Street Cleaning-Temporary Agency Staff,04-Mar-11,63.45
http://statistics.data.gov.uk/id/local-authority-district/23UB,Cheltenham Borough Council,443768,503635,COMENSURA LIMITED,C-C23110-0115,Street Cleaning-Temporary Agency Staff,04-Mar-11,376.42
http://statistics.data.gov.uk/id/local-authority-district/23UB,Cheltenham Borough Council,443769,503843,COMENSURA LIMITED,C-C23110-0115,Street Cleaning-Temporary Agency Staff,04-Mar-11,340.51
http://statistics.data.gov.uk/id/local-authority-district/23UB,Cheltenham Borough Council,443768,503635,COMENSURA LIMITED,C-C23125-0115,Recyl Bring Schms-Temporary Agency Staff,04-Mar-11,297.18
http://statistics.data.gov.uk/id/local-authority-district/23UB,Cheltenham Borough Council,443768,503635,COMENSURA LIMITED,C-C23140-0115,Public Convnces-Temporary Agency Staff,04-Mar-11,340.45
http://statistics.data.gov.uk/id/local-authority-district/23UB,Cheltenham Borough Council,443768,503635,COMENSURA LIMITED,C-C23140-0115,Public Convnces-Temporary Agency Staff,04-Mar-11,317.25
http://statistics.data.gov.uk/id/local-authority-district/23UB,Cheltenham Borough Council,443769,503843,COMENSURA LIMITED,C-C23160-0115,Env Maint Div-Temporary Agency Staff,04-Mar-11,39.56
http://statistics.data.gov.uk/id/local-authority-district/23UB,Cheltenham Borough Council,443769,503843,COMENSURA LIMITED,C-C23160-0115,Env Maint Div-Temporary Agency Staff,04-Mar-11,341.20
http://statistics.data.gov.uk/id/local-authority-district/23UB,Cheltenham Borough Council,443768,503635,COMENSURA LIMITED,C-C23160-0115,Env Maint Div-Temporary Agency Staff,04-Mar-11,341.20
http://statistics.data.gov.uk/id/local-authority-district/23UB,Cheltenham Borough Council,443768,503635,COMENSURA LIMITED,C-C23160-0115,Env Maint Div-Temporary Agency Staff,04-Mar-11,346.15
http://statistics.data.gov.uk/id/local-authority-district/23UB,Cheltenham Borough Council,443768,503635,COMENSURA LIMITED,C-C23160-0115,Env Maint Div-Temporary Agency Staff,04-Mar-11,316.48
http://statistics.data.gov.uk/id/local-authority-district/23UB,Cheltenham Borough Council,443769,503843,COMENSURA LIMITED,C-C23160-0115,Env Maint Div-Temporary Agency Staff,04-Mar-11,331.31
http://statistics.data.gov.uk/id/local-authority-district/23UB,Cheltenham Borough Council,443768,503635,COMENSURA LIMITED,C-C23160-0115,Env Maint Div-Temporary Agency Staff,04-Mar-11,346.15
http://statistics.data.gov.uk/id/local-authority-district/23UB,Cheltenham Borough Council,443768,503635,COMENSURA LIMITED,C-C23160-0115,Env Maint Div-Temporary Agency Staff,04-Mar-11,276.92
http://statistics.data.gov.uk/id/local-authority-district/23UB,Cheltenham Borough Council,443769,503843,COMENSURA LIMITED,C-C23180-0115,Rcycl Coltn Schms-Temporary Agency Staff,04-Mar-11,112.20
http://statistics.data.gov.uk/id/local-authority-district/23UB,Cheltenham Borough Council,443768,503635,COMENSURA LIMITED,C-C23180-0115,Rcycl Coltn Schms-Temporary Agency Staff,04-Mar-11,54.99
http://statistics.data.gov.uk/id/local-authority-district/23UB,Cheltenham Borough Council,443768,503635,COMENSURA LIMITED,C-C23180-0115,Rcycl Coltn Schms-Temporary Agency Staff,04-Mar-11,245.34
http://statistics.data.gov.uk/id/local-authority-district/23UB,Cheltenham Borough Council,443768,503635,COMENSURA LIMITED,C-C23180-0115,Rcycl Coltn Schms-Temporary Agency Staff,04-Mar-11,283.41
http://statistics.data.gov.uk/id/local-authority-district/23UB,Cheltenham Borough Council,443768,503635,COMENSURA LIMITED,C-C23180-0115,Rcycl Coltn Schms-Temporary Agency Staff,04-Mar-11,57.10
http://statistics.data.gov.uk/id/local-authority-district/23UB,Cheltenham Borough Council,443768,503635,COMENSURA LIMITED,C-C23180-0115,Rcycl Coltn Schms-Temporary Agency Staff,04-Mar-11,219.96
http://statistics.data.gov.uk/id/local-authority-district/23UB,Cheltenham Borough Council,443768,503635,COMENSURA LIMITED,C-C23180-0115,Rcycl Coltn Schms-Temporary Agency Staff,04-Mar-11,150.16
http://statistics.data.gov.uk/id/local-authority-district/23UB,Cheltenham Borough Council,443768,503635,COMENSURA LIMITED,C-C23180-0115,Rcycl Coltn Schms-Temporary Agency Staff,04-Mar-11,255.92
http://statistics.data.gov.uk/id/local-authority-district/23UB,Cheltenham Borough Council,443768,503635,COMENSURA LIMITED,C-C23180-0115,Rcycl Coltn Schms-Temporary Agency Staff,04-Mar-11,54.99
http://statistics.data.gov.uk/id/local-authority-district/23UB,Cheltenham Borough Council,443768,503635,COMENSURA LIMITED,C-C23180-0115,Rcycl Coltn Schms-Temporary Agency Staff,04-Mar-11,59.22
http://statistics.data.gov.uk/id/local-authority-district/23UB,Cheltenham Borough Council,443768,503635,COMENSURA LIMITED,C-C23180-0115,Rcycl Coltn Schms-Temporary Agency Staff,04-Mar-11,264.64
http://statistics.data.gov.uk/id/local-authority-district/23UB,Cheltenham Borough Council,443768,503635,COMENSURA LIMITED,C-C23180-0115,Rcycl Coltn Schms-Temporary Agency Staff,04-Mar-11,490.86
http://statistics.data.gov.uk/id/local-authority-district/23UB,Cheltenham Borough Council,443769,503843,COMENSURA LIMITED,C-C23180-0115,Rcycl Coltn Schms-Temporary Agency Staff,04-Mar-11,122.67
http://statistics.data.gov.uk/id/local-authority-district/23UB,Cheltenham Borough Council,443769,503843,COMENSURA LIMITED,C-C23180-0115,Rcycl Coltn Schms-Temporary Agency Staff,04-Mar-11,317.25
http://statistics.data.gov.uk/id/local-authority-district/23UB,Cheltenham Borough Council,443769,503843,COMENSURA LIMITED,C-C23180-0115,Rcycl Coltn Schms-Temporary Agency Staff,04-Mar-11,173.43
http://statistics.data.gov.uk/id/local-authority-district/23UB,Cheltenham Borough Council,443769,503843,COMENSURA LIMITED,C-C23180-0115,Rcycl Coltn Schms-Temporary Agency Staff,04-Mar-11,120.55
http://statistics.data.gov.uk/id/local-authority-district/23UB,Cheltenham Borough Council,443769,503843,COMENSURA LIMITED,C-C23180-0115,Rcycl Coltn Schms-Temporary Agency Staff,04-Mar-11,228.42
http://statistics.data.gov.uk/id/local-authority-district/23UB,Cheltenham Borough Council,443769,503843,COMENSURA LIMITED,C-C23180-0115,Rcycl Coltn Schms-Temporary Agency Staff,04-Mar-11,224.18
http://statistics.data.gov.uk/id/local-authority-district/23UB,Cheltenham Borough Council,443769,503843,COMENSURA LIMITED,C-C23180-0115,Rcycl Coltn Schms-Temporary Agency Staff,04-Mar-11,109.98
http://statistics.data.gov.uk/id/local-authority-district/23UB,Cheltenham Borough Council,443769,503843,COMENSURA LIMITED,C-C23180-0115,Rcycl Coltn Schms-Temporary Agency Staff,04-Mar-11,100.07
http://statistics.data.gov.uk/id/local-authority-district/23UB,Cheltenham Borough Council,443769,503843,COMENSURA LIMITED,C-C23180-0115,Rcycl Coltn Schms-Temporary Agency Staff,04-Mar-11,291.53
http://statistics.data.gov.uk/id/local-authority-district/23UB,Cheltenham Borough Council,443769,503843,COMENSURA LIMITED,C-C23180-0115,Rcycl Coltn Schms-Temporary Agency Staff,04-Mar-11,484.80
http://statistics.data.gov.uk/id/local-authority-district/23UB,Cheltenham Borough Council,443769,503843,COMENSURA LIMITED,C-C23180-0115,Rcycl Coltn Schms-Temporary Agency Staff,04-Mar-11,63.45
http://statistics.data.gov.uk/id/local-authority-district/23UB,Cheltenham Borough Council,443769,503843,COMENSURA LIMITED,C-C23190-0115,Garden Collectn-Temporary Agency Staff,04-Mar-11,-300.33
http://statistics.data.gov.uk/id/local-authority-district/23UB,Cheltenham Borough Council,443769,503843,COMENSURA LIMITED,C-C23190-0115,Garden Collectn-Temporary Agency Staff,04-Mar-11,376.67
http://statistics.data.gov.uk/id/local-authority-district/23UB,Cheltenham Borough Council,443769,503843,COMENSURA LIMITED,C-C23190-0115,Garden Collectn-Temporary Agency Staff,04-Mar-11,121.30
http://statistics.data.gov.uk/id/local-authority-district/23UB,Cheltenham Borough Council,443769,503843,COMENSURA LIMITED,C-C23190-0115,Garden Collectn-Temporary Agency Staff,04-Mar-11,270.72
http://statistics.data.gov.uk/id/local-authority-district/23UB,Cheltenham Borough Council,443769,503843,COMENSURA LIMITED,C-C23190-0115,Garden Collectn-Temporary Agency Staff,04-Mar-11,109.98
http://statistics.data.gov.uk/id/local-authority-district/23UB,Cheltenham Borough Council,443769,503843,COMENSURA LIMITED,C-C23190-0115,Garden Collectn-Temporary Agency Staff,04-Mar-11,305.05
http://statistics.data.gov.uk/id/local-authority-district/23UB,Cheltenham Borough Council,443769,503843,COMENSURA LIMITED,C-C23190-0115,Garden Collectn-Temporary Agency Staff,04-Mar-11,177.66
http://statistics.data.gov.uk/id/local-authority-district/23UB,Cheltenham Borough Council,443769,503843,COMENSURA LIMITED,C-C23190-0115,Garden Collectn-Temporary Agency Staff,04-Mar-11,467.02
http://statistics.data.gov.uk/id/local-authority-district/23UB,Cheltenham Borough Council,443769,503843,COMENSURA LIMITED,C-C23190-0115,Garden Collectn-Temporary Agency Staff,04-Mar-11,126.90
http://statistics.data.gov.uk/id/local-authority-district/23UB,Cheltenham Borough Council,443769,503843,COMENSURA LIMITED,C-C23190-0115,Garden Collectn-Temporary Agency Staff,04-Mar-11,122.67
http://statistics.data.gov.uk/id/local-authority-district/23UB,Cheltenham Borough Council,443769,503843,COMENSURA LIMITED,C-C23190-0115,Garden Collectn-Temporary Agency Staff,04-Mar-11,397.26
http://statistics.data.gov.uk/id/local-authority-district/23UB,Cheltenham Borough Council,443769,503843,COMENSURA LIMITED,C-C23190-0115,Garden Collectn-Temporary Agency Staff,04-Mar-11,485.20
http://statistics.data.gov.uk/id/local-authority-district/23UB,Cheltenham Borough Council,443768,503635,COMENSURA LIMITED,C-C23190-0115,Garden Collectn-Temporary Agency Staff,04-Mar-11,300.33
http://statistics.data.gov.uk/id/local-authority-district/23UB,Cheltenham Borough Council,443768,503635,COMENSURA LIMITED,C-C23190-0115,Garden Collectn-Temporary Agency Staff,04-Mar-11,66.72
http://statistics.data.gov.uk/id/local-authority-district/23UB,Cheltenham Borough Council,443768,503635,COMENSURA LIMITED,C-C23190-0115,Garden Collectn-Temporary Agency Staff,04-Mar-11,122.67
http://statistics.data.gov.uk/id/local-authority-district/23UB,Cheltenham Borough Council,443768,503635,COMENSURA LIMITED,C-C23190-0115,Garden Collectn-Temporary Agency Staff,04-Mar-11,334.17
http://statistics.data.gov.uk/id/local-authority-district/23UB,Cheltenham Borough Council,443769,503843,COMENSURA LIMITED,C-C23190-0115,Garden Collectn-Temporary Agency Staff,04-Mar-11,321.44
http://statistics.data.gov.uk/id/local-authority-district/23UB,Cheltenham Borough Council,443769,503843,COMENSURA LIMITED,C-C23190-0115,Garden Collectn-Temporary Agency Staff,04-Mar-11,30.32
http://statistics.data.gov.uk/id/local-authority-district/23UB,Cheltenham Borough Council,443769,503843,COMENSURA LIMITED,C-D13100-0115,Muni Off Blgs-Temporary Agency Staff,04-Mar-11,105.75
http://statistics.data.gov.uk/id/local-authority-district/23UB,Cheltenham Borough Council,443768,503635,COMENSURA LIMITED,C-D13100-0115,Muni Off Blgs-Temporary Agency Staff,04-Mar-11,105.75
http://statistics.data.gov.uk/id/local-authority-district/23UB,Cheltenham Borough Council,443769,503843,COMENSURA LIMITED,C-E63100-0115,Cemetery & Crem-Temporary Agency Staff,04-Mar-11,219.76
http://statistics.data.gov.uk/id/local-authority-district/23UB,Cheltenham Borough Council,443768,503635,COMENSURA LIMITED,C-E63100-0115,Cemetery & Crem-Temporary Agency Staff,04-Mar-11,313.02
http://statistics.data.gov.uk/id/local-authority-district/23UB,Cheltenham Borough Council,443768,503635,COMENSURA LIMITED,C-E63100-0115,Cemetery & Crem-Temporary Agency Staff,04-Mar-11,195.64
http://statistics.data.gov.uk/id/local-authority-district/23UB,Cheltenham Borough Council,443768,503635,COMENSURA LIMITED,C-E63100-0115,Cemetery & Crem-Temporary Agency Staff,04-Mar-11,313.02
http://statistics.data.gov.uk/id/local-authority-district/23UB,Cheltenham Borough Council,443769,503843,COMENSURA LIMITED,C-E63100-0115,Cemetery & Crem-Temporary Agency Staff,04-Mar-11,313.02
http://statistics.data.gov.uk/id/local-authority-district/23UB,Cheltenham Borough Council,443769,503843,COMENSURA LIMITED,C-E75500-0115,Intgd Tran Div-Temporary Agency Staff,04-Mar-11,504.08
http://statistics.data.gov.uk/id/local-authority-district/23UB,Cheltenham Borough Council,443768,503635,COMENSURA LIMITED,C-E75500-0115,Intgd Tran Div-Temporary Agency Staff,04-Mar-11,516.44
http://statistics.data.gov.uk/id/local-authority-district/23UB,Cheltenham Borough Council,443768,503635,COMENSURA LIMITED,C-E75500-0115,Intgd Tran Div-Temporary Agency Staff,04-Mar-11,513.36
http://statistics.data.gov.uk/id/local-authority-district/23UB,Cheltenham Borough Council,443806,504038,COMENSURA LIMITED,C-C22100-0115,Green Env Div-Temporary Agency Staff,09-Mar-11,279.20
http://statistics.data.gov.uk/id/local-authority-district/23UB,Cheltenham Borough Council,443806,504038,COMENSURA LIMITED,C-C22100-0115,Green Env Div-Temporary Agency Staff,09-Mar-11,279.20
http://statistics.data.gov.uk/id/local-authority-district/23UB,Cheltenham Borough Council,443977,504193,COMENSURA LIMITED,C-C22100-0115,Green Env Div-Temporary Agency Staff,09-Mar-11,279.20
http://statistics.data.gov.uk/id/local-authority-district/23UB,Cheltenham Borough Council,443977,504193,COMENSURA LIMITED,C-C22100-0115,Green Env Div-Temporary Agency Staff,09-Mar-11,279.20
http://statistics.data.gov.uk/id/local-authority-district/23UB,Cheltenham Borough Council,443806,504038,COMENSURA LIMITED,C-C22100-0115,Green Env Div-Temporary Agency Staff,09-Mar-11,279.20
http://statistics.data.gov.uk/id/local-authority-district/23UB,Cheltenham Borough Council,443806,504038,COMENSURA LIMITED,C-C22110-0115,Parks & Gardens-Temporary Agency Staff,09-Mar-11,608.80
http://statistics.data.gov.uk/id/local-authority-district/23UB,Cheltenham Borough Council,443977,504193,COMENSURA LIMITED,C-C22110-0115,Parks & Gardens-Temporary Agency Staff,09-Mar-11,631.63
http://statistics.data.gov.uk/id/local-authority-district/23UB,Cheltenham Borough Council,443806,504038,COMENSURA LIMITED,C-C22140-0115,Nursery-Temporary Agency Staff,09-Mar-11,327.82
http://statistics.data.gov.uk/id/local-authority-district/23UB,Cheltenham Borough Council,443806,504038,COMENSURA LIMITED,C-C22140-0115,Nursery-Temporary Agency Staff,09-Mar-11,338.40
http://statistics.data.gov.uk/id/local-authority-district/23UB,Cheltenham Borough Council,443806,504038,COMENSURA LIMITED,C-C22140-0115,Nursery-Temporary Agency Staff,09-Mar-11,414.54
http://statistics.data.gov.uk/id/local-authority-district/23UB,Cheltenham Borough Council,443806,504038,COMENSURA LIMITED,C-C22140-0115,Nursery-Temporary Agency Staff,09-Mar-11,346.86
http://statistics.data.gov.uk/id/local-authority-district/23UB,Cheltenham Borough Council,443806,504038,COMENSURA LIMITED,C-C22140-0115,Nursery-Temporary Agency Staff,09-Mar-11,207.27
http://statistics.data.gov.uk/id/local-authority-district/23UB,Cheltenham Borough Council,443806,504038,COMENSURA LIMITED,C-C22140-0115,Nursery-Temporary Agency Staff,09-Mar-11,338.40
http://statistics.data.gov.uk/id/local-authority-district/23UB,Cheltenham Borough Council,443806,504038,COMENSURA LIMITED,C-C23100-0115,Refuse Collection-Temporary Agency Staff,09-Mar-11,-109.98
http://statistics.data.gov.uk/id/local-authority-district/23UB,Cheltenham Borough Council,443806,504038,COMENSURA LIMITED,C-C23100-0115,Refuse Collection-Temporary Agency Staff,09-Mar-11,109.98
http://statistics.data.gov.uk/id/local-authority-district/23UB,Cheltenham Borough Council,443806,504038,COMENSURA LIMITED,C-C23100-0115,Refuse Collection-Temporary Agency Staff,09-Mar-11,219.96
http://statistics.data.gov.uk/id/local-authority-district/23UB,Cheltenham Borough Council,443806,504038,COMENSURA LIMITED,C-C23100-0115,Refuse Collection-Temporary Agency Staff,09-Mar-11,194.08
http://statistics.data.gov.uk/id/local-authority-district/23UB,Cheltenham Borough Council,443806,504038,COMENSURA LIMITED,C-C23100-0115,Refuse Collection-Temporary Agency Staff,09-Mar-11,205.16
http://statistics.data.gov.uk/id/local-authority-district/23UB,Cheltenham Borough Council,443977,504193,COMENSURA LIMITED,C-C23100-0115,Refuse Collection-Temporary Agency Staff,09-Mar-11,209.40
http://statistics.data.gov.uk/id/local-authority-district/23UB,Cheltenham Borough Council,443977,504193,COMENSURA LIMITED,C-C23100-0115,Refuse Collection-Temporary Agency Staff,09-Mar-11,173.43
http://statistics.data.gov.uk/id/local-authority-district/23UB,Cheltenham Borough Council,443977,504193,COMENSURA LIMITED,C-C23100-0115,Refuse Collection-Temporary Agency Staff,09-Mar-11,557.98
http://statistics.data.gov.uk/id/local-authority-district/23UB,Cheltenham Borough Council,443977,504193,COMENSURA LIMITED,C-C23100-0115,Refuse Collection-Temporary Agency Staff,09-Mar-11,300.33
http://statistics.data.gov.uk/id/local-authority-district/23UB,Cheltenham Borough Council,443977,504193,COMENSURA LIMITED,C-C23100-0115,Refuse Collection-Temporary Agency Staff,09-Mar-11,313.02
http://statistics.data.gov.uk/id/local-authority-district/23UB,Cheltenham Borough Council,443977,504193,COMENSURA LIMITED,C-C23100-0115,Refuse Collection-Temporary Agency Staff,09-Mar-11,336.60
http://statistics.data.gov.uk/id/local-authority-district/23UB,Cheltenham Borough Council,443806,504038,COMENSURA LIMITED,C-C23100-0115,Refuse Collection-Temporary Agency Staff,09-Mar-11,181.89
http://statistics.data.gov.uk/id/local-authority-district/23UB,Cheltenham Borough Council,443806,504038,COMENSURA LIMITED,C-C23100-0115,Refuse Collection-Temporary Agency Staff,09-Mar-11,236.88
http://statistics.data.gov.uk/id/local-authority-district/23UB,Cheltenham Borough Council,443806,504038,COMENSURA LIMITED,C-C23100-0115,Refuse Collection-Temporary Agency Staff,09-Mar-11,300.33
http://statistics.data.gov.uk/id/local-authority-district/23UB,Cheltenham Borough Council,443977,504193,COMENSURA LIMITED,C-C23100-0115,Refuse Collection-Temporary Agency Staff,09-Mar-11,61.34
http://statistics.data.gov.uk/id/local-authority-district/23UB,Cheltenham Borough Council,443977,504193,COMENSURA LIMITED,C-C23100-0115,Refuse Collection-Temporary Agency Staff,09-Mar-11,289.75
http://statistics.data.gov.uk/id/local-authority-district/23UB,Cheltenham Borough Council,443977,504193,COMENSURA LIMITED,C-C23100-0115,Refuse Collection-Temporary Agency Staff,09-Mar-11,245.34
http://statistics.data.gov.uk/id/local-authority-district/23UB,Cheltenham Borough Council,443977,504193,COMENSURA LIMITED,C-C23100-0115,Refuse Collection-Temporary Agency Staff,09-Mar-11,304.56
http://statistics.data.gov.uk/id/local-authority-district/23UB,Cheltenham Borough Council,443977,504193,COMENSURA LIMITED,C-C23100-0115,Refuse Collection-Temporary Agency Staff,09-Mar-11,50.76
http://statistics.data.gov.uk/id/local-authority-district/23UB,Cheltenham Borough Council,443977,504193,COMENSURA LIMITED,C-C23100-0115,Refuse Collection-Temporary Agency Staff,09-Mar-11,306.68
http://statistics.data.gov.uk/id/local-authority-district/23UB,Cheltenham Borough Council,443977,504193,COMENSURA LIMITED,C-C23100-0115,Refuse Collection-Temporary Agency Staff,09-Mar-11,99.40
http://statistics.data.gov.uk/id/local-authority-district/23UB,Cheltenham Borough Council,443977,504193,COMENSURA LIMITED,C-C23100-0115,Refuse Collection-Temporary Agency Staff,09-Mar-11,298.21
http://statistics.data.gov.uk/id/local-authority-district/23UB,Cheltenham Borough Council,443977,504193,COMENSURA LIMITED,C-C23100-0115,Refuse Collection-Temporary Agency Staff,09-Mar-11,485.20
http://statistics.data.gov.uk/id/local-authority-district/23UB,Cheltenham Borough Council,443806,504038,COMENSURA LIMITED,C-C23100-0115,Refuse Collection-Temporary Agency Staff,09-Mar-11,296.10
http://statistics.data.gov.uk/id/local-authority-district/23UB,Cheltenham Borough Council,443806,504038,COMENSURA LIMITED,C-C23100-0115,Refuse Collection-Temporary Agency Staff,09-Mar-11,264.38
http://statistics.data.gov.uk/id/local-authority-district/23UB,Cheltenham Borough Council,443806,504038,COMENSURA LIMITED,C-C23100-0115,Refuse Collection-Temporary Agency Staff,09-Mar-11,63.45
http://statistics.data.gov.uk/id/local-authority-district/23UB,Cheltenham Borough Council,443806,504038,COMENSURA LIMITED,C-C23100-0115,Refuse Collection-Temporary Agency Staff,09-Mar-11,302.45
http://statistics.data.gov.uk/id/local-authority-district/23UB,Cheltenham Borough Council,443806,504038,COMENSURA LIMITED,C-C23100-0115,Refuse Collection-Temporary Agency Staff,09-Mar-11,118.44
http://statistics.data.gov.uk/id/local-authority-district/23UB,Cheltenham Borough Council,443806,504038,COMENSURA LIMITED,C-C23100-0115,Refuse Collection-Temporary Agency Staff,09-Mar-11,317.25
http://statistics.data.gov.uk/id/local-authority-district/23UB,Cheltenham Borough Council,443806,504038,COMENSURA LIMITED,C-C23100-0115,Refuse Collection-Temporary Agency Staff,09-Mar-11,509.45
http://statistics.data.gov.uk/id/local-authority-district/23UB,Cheltenham Borough Council,443806,504038,COMENSURA LIMITED,C-C23100-0115,Refuse Collection-Temporary Agency Staff,09-Mar-11,298.22
http://statistics.data.gov.uk/id/local-authority-district/23UB,Cheltenham Borough Council,443977,504193,COMENSURA LIMITED,C-C23100-0115,Refuse Collection-Temporary Agency Staff,09-Mar-11,67.68
http://statistics.data.gov.uk/id/local-authority-district/23UB,Cheltenham Borough Council,443977,504193,COMENSURA LIMITED,C-C23100-0115,Refuse Collection-Temporary Agency Staff,09-Mar-11,133.25
http://statistics.data.gov.uk/id/local-authority-district/23UB,Cheltenham Borough Council,443806,504038,COMENSURA LIMITED,C-C23100-0115,Refuse Collection-Temporary Agency Staff,09-Mar-11,190.35
http://statistics.data.gov.uk/id/local-authority-district/23UB,Cheltenham Borough Council,443806,504038,COMENSURA LIMITED,C-C23100-0115,Refuse Collection-Temporary Agency Staff,09-Mar-11,260.15
http://statistics.data.gov.uk/id/local-authority-district/23UB,Cheltenham Borough Council,443806,504038,COMENSURA LIMITED,C-C23100-0115,Refuse Collection-Temporary Agency Staff,09-Mar-11,18.18
http://statistics.data.gov.uk/id/local-authority-district/23UB,Cheltenham Borough Council,443806,504038,COMENSURA LIMITED,C-C23110-0115,Street Cleaning-Temporary Agency Staff,09-Mar-11,245.34
http://statistics.data.gov.uk/id/local-authority-district/23UB,Cheltenham Borough Council,443806,504038,COMENSURA LIMITED,C-C23125-0115,Recyl Bring Schms-Temporary Agency Staff,09-Mar-11,485.20
http://statistics.data.gov.uk/id/local-authority-district/23UB,Cheltenham Borough Council,443977,504193,COMENSURA LIMITED,C-C23125-0115,Recyl Bring Schms-Temporary Agency Staff,09-Mar-11,388.16
http://statistics.data.gov.uk/id/local-authority-district/23UB,Cheltenham Borough Council,443806,504038,COMENSURA LIMITED,C-C23160-0115,Env Maint Div-Temporary Agency Staff,09-Mar-11,267.30
http://statistics.data.gov.uk/id/local-authority-district/23UB,Cheltenham Borough Council,443977,504193,COMENSURA LIMITED,C-C23160-0115,Env Maint Div-Temporary Agency Staff,09-Mar-11,341.55
http://statistics.data.gov.uk/id/local-authority-district/23UB,Cheltenham Borough Council,443806,504038,COMENSURA LIMITED,C-C23160-0115,Env Maint Div-Temporary Agency Staff,09-Mar-11,346.50
http://statistics.data.gov.uk/id/local-authority-district/23UB,Cheltenham Borough Council,443806,504038,COMENSURA LIMITED,C-C23160-0115,Env Maint Div-Temporary Agency Staff,09-Mar-11,59.40
http://statistics.data.gov.uk/id/local-authority-district/23UB,Cheltenham Borough Council,443806,504038,COMENSURA LIMITED,C-C23180-0115,Rcycl Coltn Schms-Temporary Agency Staff,09-Mar-11,484.80
http://statistics.data.gov.uk/id/local-authority-district/23UB,Cheltenham Borough Council,443806,504038,COMENSURA LIMITED,C-C23180-0115,Rcycl Coltn Schms-Temporary Agency Staff,09-Mar-11,223.30
http://statistics.data.gov.uk/id/local-authority-district/23UB,Cheltenham Borough Council,443806,504038,COMENSURA LIMITED,C-C23180-0115,Rcycl Coltn Schms-Temporary Agency Staff,09-Mar-11,57.10
http://statistics.data.gov.uk/id/local-authority-district/23UB,Cheltenham Borough Council,443806,504038,COMENSURA LIMITED,C-C23180-0115,Rcycl Coltn Schms-Temporary Agency Staff,09-Mar-11,283.41
http://statistics.data.gov.uk/id/local-authority-district/23UB,Cheltenham Borough Council,443806,504038,COMENSURA LIMITED,C-C23180-0115,Rcycl Coltn Schms-Temporary Agency Staff,09-Mar-11,327.82
http://statistics.data.gov.uk/id/local-authority-district/23UB,Cheltenham Borough Council,443977,504193,COMENSURA LIMITED,C-C23180-0115,Rcycl Coltn Schms-Temporary Agency Staff,09-Mar-11,262.26
http://statistics.data.gov.uk/id/local-authority-district/23UB,Cheltenham Borough Council,443977,504193,COMENSURA LIMITED,C-C23180-0115,Rcycl Coltn Schms-Temporary Agency Staff,09-Mar-11,67.68
http://statistics.data.gov.uk/id/local-authority-district/23UB,Cheltenham Borough Council,443977,504193,COMENSURA LIMITED,C-C23180-0115,Rcycl Coltn Schms-Temporary Agency Staff,09-Mar-11,484.80
http://statistics.data.gov.uk/id/local-authority-district/23UB,Cheltenham Borough Council,443806,504038,COMENSURA LIMITED,C-C23180-0115,Rcycl Coltn Schms-Temporary Agency Staff,09-Mar-11,313.02
http://statistics.data.gov.uk/id/local-authority-district/23UB,Cheltenham Borough Council,443806,504038,COMENSURA LIMITED,C-C23180-0115,Rcycl Coltn Schms-Temporary Agency Staff,09-Mar-11,127.36
http://statistics.data.gov.uk/id/local-authority-district/23UB,Cheltenham Borough Council,443806,504038,COMENSURA LIMITED,C-C23180-0115,Rcycl Coltn Schms-Temporary Agency Staff,09-Mar-11,103.64
http://statistics.data.gov.uk/id/local-authority-district/23UB,Cheltenham Borough Council,443806,504038,COMENSURA LIMITED,C-C23180-0115,Rcycl Coltn Schms-Temporary Agency Staff,09-Mar-11,52.88
http://statistics.data.gov.uk/id/local-authority-district/23UB,Cheltenham Borough Council,443806,504038,COMENSURA LIMITED,C-C23180-0115,Rcycl Coltn Schms-Temporary Agency Staff,09-Mar-11,224.18
http://statistics.data.gov.uk/id/local-authority-district/23UB,Cheltenham Borough Council,443806,504038,COMENSURA LIMITED,C-C23180-0115,Rcycl Coltn Schms-Temporary Agency Staff,09-Mar-11,287.64
http://statistics.data.gov.uk/id/local-authority-district/23UB,Cheltenham Borough Council,443977,504193,COMENSURA LIMITED,C-C23180-0115,Rcycl Coltn Schms-Temporary Agency Staff,09-Mar-11,61.34
http://statistics.data.gov.uk/id/local-authority-district/23UB,Cheltenham Borough Council,443977,504193,COMENSURA LIMITED,C-C23180-0115,Rcycl Coltn Schms-Temporary Agency Staff,09-Mar-11,48.64
http://statistics.data.gov.uk/id/local-authority-district/23UB,Cheltenham Borough Council,443977,504193,COMENSURA LIMITED,C-C23180-0115,Rcycl Coltn Schms-Temporary Agency Staff,09-Mar-11,304.56
http://statistics.data.gov.uk/id/local-authority-district/23UB,Cheltenham Borough Council,443977,504193,COMENSURA LIMITED,C-C23180-0115,Rcycl Coltn Schms-Temporary Agency Staff,09-Mar-11,304.56
http://statistics.data.gov.uk/id/local-authority-district/23UB,Cheltenham Borough Council,443977,504193,COMENSURA LIMITED,C-C23180-0115,Rcycl Coltn Schms-Temporary Agency Staff,09-Mar-11,279.18
http://statistics.data.gov.uk/id/local-authority-district/23UB,Cheltenham Borough Council,443977,504193,COMENSURA LIMITED,C-C23180-0115,Rcycl Coltn Schms-Temporary Agency Staff,09-Mar-11,355.32
http://statistics.data.gov.uk/id/local-authority-district/23UB,Cheltenham Borough Council,443977,504193,COMENSURA LIMITED,C-C23180-0115,Rcycl Coltn Schms-Temporary Agency Staff,09-Mar-11,286.48
http://statistics.data.gov.uk/id/local-authority-district/23UB,Cheltenham Borough Council,443977,504193,COMENSURA LIMITED,C-C23180-0115,Rcycl Coltn Schms-Temporary Agency Staff,09-Mar-11,67.68
http://statistics.data.gov.uk/id/local-authority-district/23UB,Cheltenham Borough Council,443977,504193,COMENSURA LIMITED,C-C23180-0115,Rcycl Coltn Schms-Temporary Agency Staff,09-Mar-11,205.15
http://statistics.data.gov.uk/id/local-authority-district/23UB,Cheltenham Borough Council,443977,504193,COMENSURA LIMITED,C-C23180-0115,Rcycl Coltn Schms-Temporary Agency Staff,09-Mar-11,359.55
http://statistics.data.gov.uk/id/local-authority-district/23UB,Cheltenham Borough Council,443977,504193,COMENSURA LIMITED,C-C23180-0115,Rcycl Coltn Schms-Temporary Agency Staff,09-Mar-11,167.08
http://statistics.data.gov.uk/id/local-authority-district/23UB,Cheltenham Borough Council,443977,504193,COMENSURA LIMITED,C-C23180-0115,Rcycl Coltn Schms-Temporary Agency Staff,09-Mar-11,63.45
http://statistics.data.gov.uk/id/local-authority-district/23UB,Cheltenham Borough Council,443977,504193,COMENSURA LIMITED,C-C23180-0115,Rcycl Coltn Schms-Temporary Agency Staff,09-Mar-11,156.51
http://statistics.data.gov.uk/id/local-authority-district/23UB,Cheltenham Borough Council,443977,504193,COMENSURA LIMITED,C-C23180-0115,Rcycl Coltn Schms-Temporary Agency Staff,09-Mar-11,81.88
http://statistics.data.gov.uk/id/local-authority-district/23UB,Cheltenham Borough Council,443977,504193,COMENSURA LIMITED,C-C23180-0115,Rcycl Coltn Schms-Temporary Agency Staff,09-Mar-11,222.09
http://statistics.data.gov.uk/id/local-authority-district/23UB,Cheltenham Borough Council,443806,504038,COMENSURA LIMITED,C-C23180-0115,Rcycl Coltn Schms-Temporary Agency Staff,09-Mar-11,253.80
http://statistics.data.gov.uk/id/local-authority-district/23UB,Cheltenham Borough Council,443806,504038,COMENSURA LIMITED,C-C23180-0115,Rcycl Coltn Schms-Temporary Agency Staff,09-Mar-11,88.83
http://statistics.data.gov.uk/id/local-authority-district/23UB,Cheltenham Borough Council,443806,504038,COMENSURA LIMITED,C-C23180-0115,Rcycl Coltn Schms-Temporary Agency Staff,09-Mar-11,309.31
http://statistics.data.gov.uk/id/local-authority-district/23UB,Cheltenham Borough Council,443806,504038,COMENSURA LIMITED,C-C23190-0115,Garden Collectn-Temporary Agency Staff,09-Mar-11,-467.02
http://statistics.data.gov.uk/id/local-authority-district/23UB,Cheltenham Borough Council,443806,504038,COMENSURA LIMITED,C-C23190-0115,Garden Collectn-Temporary Agency Staff,09-Mar-11,6.06
http://statistics.data.gov.uk/id/local-authority-district/23UB,Cheltenham Borough Council,443806,504038,COMENSURA LIMITED,C-C23190-0115,Garden Collectn-Temporary Agency Staff,09-Mar-11,485.20
http://statistics.data.gov.uk/id/local-authority-district/23UB,Cheltenham Borough Council,443806,504038,COMENSURA LIMITED,C-C23190-0115,Garden Collectn-Temporary Agency Staff,09-Mar-11,518.56
http://statistics.data.gov.uk/id/local-authority-district/23UB,Cheltenham Borough Council,443806,504038,COMENSURA LIMITED,C-C23190-0115,Garden Collectn-Temporary Agency Staff,09-Mar-11,139.59
http://statistics.data.gov.uk/id/local-authority-district/23UB,Cheltenham Borough Council,443806,504038,COMENSURA LIMITED,C-C23190-0115,Garden Collectn-Temporary Agency Staff,09-Mar-11,274.95
http://statistics.data.gov.uk/id/local-authority-district/23UB,Cheltenham Borough Council,443977,504193,COMENSURA LIMITED,C-C23190-0115,Garden Collectn-Temporary Agency Staff,09-Mar-11,488.23
http://statistics.data.gov.uk/id/local-authority-district/23UB,Cheltenham Borough Council,443977,504193,COMENSURA LIMITED,C-C23190-0115,Garden Collectn-Temporary Agency Staff,09-Mar-11,500.36
http://statistics.data.gov.uk/id/local-authority-district/23UB,Cheltenham Borough Council,443977,504193,COMENSURA LIMITED,C-C23190-0115,Garden Collectn-Temporary Agency Staff,09-Mar-11,313.02
http://statistics.data.gov.uk/id/local-authority-district/23UB,Cheltenham Borough Council,443806,504038,COMENSURA LIMITED,C-C23190-0115,Garden Collectn-Temporary Agency Staff,09-Mar-11,336.88
http://statistics.data.gov.uk/id/local-authority-district/23UB,Cheltenham Borough Council,443806,504038,COMENSURA LIMITED,C-C23190-0115,Garden Collectn-Temporary Agency Staff,09-Mar-11,122.67
http://statistics.data.gov.uk/id/local-authority-district/23UB,Cheltenham Borough Council,443806,504038,COMENSURA LIMITED,C-C23190-0115,Garden Collectn-Temporary Agency Staff,09-Mar-11,209.38
http://statistics.data.gov.uk/id/local-authority-district/23UB,Cheltenham Borough Council,443806,504038,COMENSURA LIMITED,C-C23190-0115,Garden Collectn-Temporary Agency Staff,09-Mar-11,177.66
http://statistics.data.gov.uk/id/local-authority-district/23UB,Cheltenham Borough Council,443806,504038,COMENSURA LIMITED,C-C23190-0115,Garden Collectn-Temporary Agency Staff,09-Mar-11,-177.66
http://statistics.data.gov.uk/id/local-authority-district/23UB,Cheltenham Borough Council,443806,504038,COMENSURA LIMITED,C-C23190-0115,Garden Collectn-Temporary Agency Staff,09-Mar-11,325.71
http://statistics.data.gov.uk/id/local-authority-district/23UB,Cheltenham Borough Council,443806,504038,COMENSURA LIMITED,C-D13100-0115,Muni Off Blgs-Temporary Agency Staff,09-Mar-11,21.15
http://statistics.data.gov.uk/id/local-authority-district/23UB,Cheltenham Borough Council,443977,504193,COMENSURA LIMITED,C-D13100-0115,Muni Off Blgs-Temporary Agency Staff,09-Mar-11,105.75
http://statistics.data.gov.uk/id/local-authority-district/23UB,Cheltenham Borough Council,443806,504038,COMENSURA LIMITED,C-D13100-0115,Muni Off Blgs-Temporary Agency Staff,09-Mar-11,21.15
http://statistics.data.gov.uk/id/local-authority-district/23UB,Cheltenham Borough Council,443806,504038,COMENSURA LIMITED,C-D13100-0115,Muni Off Blgs-Temporary Agency Staff,09-Mar-11,84.60
http://statistics.data.gov.uk/id/local-authority-district/23UB,Cheltenham Borough Council,443806,504038,COMENSURA LIMITED,C-D13100-0115,Muni Off Blgs-Temporary Agency Staff,09-Mar-11,105.75
http://statistics.data.gov.uk/id/local-authority-district/23UB,Cheltenham Borough Council,443806,504038,COMENSURA LIMITED,C-E63100-0115,Cemetery & Crem-Temporary Agency Staff,09-Mar-11,122.67
http://statistics.data.gov.uk/id/local-authority-district/23UB,Cheltenham Borough Council,443977,504193,COMENSURA LIMITED,C-E63100-0115,Cemetery & Crem-Temporary Agency Staff,09-Mar-11,313.02
http://statistics.data.gov.uk/id/local-authority-district/23UB,Cheltenham Borough Council,443977,504193,COMENSURA LIMITED,C-E63100-0115,Cemetery & Crem-Temporary Agency Staff,09-Mar-11,214.40
http://statistics.data.gov.uk/id/local-authority-district/23UB,Cheltenham Borough Council,443977,504193,COMENSURA LIMITED,C-E63100-0115,Cemetery & Crem-Temporary Agency Staff,09-Mar-11,128.64
http://statistics.data.gov.uk/id/local-authority-district/23UB,Cheltenham Borough Council,443806,504038,COMENSURA LIMITED,C-E63100-0115,Cemetery & Crem-Temporary Agency Staff,09-Mar-11,171.52
http://statistics.data.gov.uk/id/local-authority-district/23UB,Cheltenham Borough Council,443806,504038,COMENSURA LIMITED,C-E72500-0115,Built Env Div-Temporary Agency Staff,09-Mar-11,105.75
http://statistics.data.gov.uk/id/local-authority-district/23UB,Cheltenham Borough Council,443977,504193,COMENSURA LIMITED,C-E72500-0115,Built Env Div-Temporary Agency Staff,09-Mar-11,21.15
http://statistics.data.gov.uk/id/local-authority-district/23UB,Cheltenham Borough Council,443977,504193,COMENSURA LIMITED,C-E75500-0115,Intgd Tran Div-Temporary Agency Staff,09-Mar-11,531.90
http://statistics.data.gov.uk/id/local-authority-district/23UB,Cheltenham Borough Council,443977,504193,COMENSURA LIMITED,C-E75500-0115,Intgd Tran Div-Temporary Agency Staff,09-Mar-11,504.07
http://statistics.data.gov.uk/id/local-authority-district/23UB,Cheltenham Borough Council,445652,504393,COMENSURA LIMITED,C-C22100-0115,Green Env Div-Temporary Agency Staff,30-Mar-11,279.20
http://statistics.data.gov.uk/id/local-authority-district/23UB,Cheltenham Borough Council,445658,504599,COMENSURA LIMITED,C-C22100-0115,Green Env Div-Temporary Agency Staff,30-Mar-11,325.73
http://statistics.data.gov.uk/id/local-authority-district/23UB,Cheltenham Borough Council,445658,504599,COMENSURA LIMITED,C-C22100-0115,Green Env Div-Temporary Agency Staff,30-Mar-11,338.42
http://statistics.data.gov.uk/id/local-authority-district/23UB,Cheltenham Borough Council,445658,504599,COMENSURA LIMITED,C-C22100-0115,Green Env Div-Temporary Agency Staff,30-Mar-11,118.44
http://statistics.data.gov.uk/id/local-authority-district/23UB,Cheltenham Borough Council,445652,504393,COMENSURA LIMITED,C-C22100-0115,Green Env Div-Temporary Agency Staff,30-Mar-11,279.20
http://statistics.data.gov.uk/id/local-authority-district/23UB,Cheltenham Borough Council,445652,504393,COMENSURA LIMITED,C-C22110-0115,Parks & Gardens-Temporary Agency Staff,30-Mar-11,593.58
http://statistics.data.gov.uk/id/local-authority-district/23UB,Cheltenham Borough Council,445658,504599,COMENSURA LIMITED,C-C22110-0115,Parks & Gardens-Temporary Agency Staff,30-Mar-11,639.24
http://statistics.data.gov.uk/id/local-authority-district/23UB,Cheltenham Borough Council,445658,504599,COMENSURA LIMITED,C-C22140-0115,Nursery-Temporary Agency Staff,30-Mar-11,69.80
http://statistics.data.gov.uk/id/local-authority-district/23UB,Cheltenham Borough Council,445658,504599,COMENSURA LIMITED,C-C22140-0115,Nursery-Temporary Agency Staff,30-Mar-11,76.14
http://statistics.data.gov.uk/id/local-authority-district/23UB,Cheltenham Borough Council,445658,504599,COMENSURA LIMITED,C-C22140-0115,Nursery-Temporary Agency Staff,30-Mar-11,69.80
http://statistics.data.gov.uk/id/local-authority-district/23UB,Cheltenham Borough Council,445658,504599,COMENSURA LIMITED,C-C22140-0115,Nursery-Temporary Agency Staff,30-Mar-11,253.80
http://statistics.data.gov.uk/id/local-authority-district/23UB,Cheltenham Borough Council,445658,504599,COMENSURA LIMITED,C-C22140-0115,Nursery-Temporary Agency Staff,30-Mar-11,186.12
http://statistics.data.gov.uk/id/local-authority-district/23UB,Cheltenham Borough Council,445658,504599,COMENSURA LIMITED,C-C22140-0115,Nursery-Temporary Agency Staff,30-Mar-11,253.80
http://statistics.data.gov.uk/id/local-authority-district/23UB,Cheltenham Borough Council,445652,504393,COMENSURA LIMITED,C-C23100-0115,Refuse Collection-Temporary Agency Staff,30-Mar-11,439.92
http://statistics.data.gov.uk/id/local-authority-district/23UB,Cheltenham Borough Council,445652,504393,COMENSURA LIMITED,C-C23100-0115,Refuse Collection-Temporary Agency Staff,30-Mar-11,368.01
http://statistics.data.gov.uk/id/local-authority-district/23UB,Cheltenham Borough Council,445652,504393,COMENSURA LIMITED,C-C23100-0115,Refuse Collection-Temporary Agency Staff,30-Mar-11,313.02
http://statistics.data.gov.uk/id/local-authority-district/23UB,Cheltenham Borough Council,445658,504599,COMENSURA LIMITED,C-C23100-0115,Refuse Collection-Temporary Agency Staff,30-Mar-11,376.42
http://statistics.data.gov.uk/id/local-authority-district/23UB,Cheltenham Borough Council,445658,504599,COMENSURA LIMITED,C-C23100-0115,Refuse Collection-Temporary Agency Staff,30-Mar-11,274.95
http://statistics.data.gov.uk/id/local-authority-district/23UB,Cheltenham Borough Council,445658,504599,COMENSURA LIMITED,C-C23100-0115,Refuse Collection-Temporary Agency Staff,30-Mar-11,313.02
http://statistics.data.gov.uk/id/local-authority-district/23UB,Cheltenham Borough Council,445658,504599,COMENSURA LIMITED,C-C23100-0115,Refuse Collection-Temporary Agency Staff,30-Mar-11,313.02
http://statistics.data.gov.uk/id/local-authority-district/23UB,Cheltenham Borough Council,445658,504599,COMENSURA LIMITED,C-C23100-0115,Refuse Collection-Temporary Agency Staff,30-Mar-11,76.14
http://statistics.data.gov.uk/id/local-authority-district/23UB,Cheltenham Borough Council,445658,504599,COMENSURA LIMITED,C-C23100-0115,Refuse Collection-Temporary Agency Staff,30-Mar-11,274.95
http://statistics.data.gov.uk/id/local-authority-district/23UB,Cheltenham Borough Council,445658,504599,COMENSURA LIMITED,C-C23100-0115,Refuse Collection-Temporary Agency Staff,30-Mar-11,264.38
http://statistics.data.gov.uk/id/local-authority-district/23UB,Cheltenham Borough Council,445658,504599,COMENSURA LIMITED,C-C23100-0115,Refuse Collection-Temporary Agency Staff,30-Mar-11,262.26
http://statistics.data.gov.uk/id/local-authority-district/23UB,Cheltenham Borough Council,445658,504599,COMENSURA LIMITED,C-C23100-0115,Refuse Collection-Temporary Agency Staff,30-Mar-11,173.42
http://statistics.data.gov.uk/id/local-authority-district/23UB,Cheltenham Borough Council,445658,504599,COMENSURA LIMITED,C-C23100-0115,Refuse Collection-Temporary Agency Staff,30-Mar-11,67.68
http://statistics.data.gov.uk/id/local-authority-district/23UB,Cheltenham Borough Council,445658,504599,COMENSURA LIMITED,C-C23100-0115,Refuse Collection-Temporary Agency Staff,30-Mar-11,192.47
http://statistics.data.gov.uk/id/local-authority-district/23UB,Cheltenham Borough Council,445658,504599,COMENSURA LIMITED,C-C23100-0115,Refuse Collection-Temporary Agency Staff,30-Mar-11,71.91
http://statistics.data.gov.uk/id/local-authority-district/23UB,Cheltenham Borough Council,445658,504599,COMENSURA LIMITED,C-C23100-0115,Refuse Collection-Temporary Agency Staff,30-Mar-11,300.33
http://statistics.data.gov.uk/id/local-authority-district/23UB,Cheltenham Borough Council,445658,504599,COMENSURA LIMITED,C-C23100-0115,Refuse Collection-Temporary Agency Staff,30-Mar-11,391.19
http://statistics.data.gov.uk/id/local-authority-district/23UB,Cheltenham Borough Council,445658,504599,COMENSURA LIMITED,C-C23100-0115,Refuse Collection-Temporary Agency Staff,30-Mar-11,243.23
http://statistics.data.gov.uk/id/local-authority-district/23UB,Cheltenham Borough Council,445658,504599,COMENSURA LIMITED,C-C23100-0115,Refuse Collection-Temporary Agency Staff,30-Mar-11,388.16
http://statistics.data.gov.uk/id/local-authority-district/23UB,Cheltenham Borough Council,445658,504599,COMENSURA LIMITED,C-C23100-0115,Refuse Collection-Temporary Agency Staff,30-Mar-11,122.67
http://statistics.data.gov.uk/id/local-authority-district/23UB,Cheltenham Borough Council,445658,504599,COMENSURA LIMITED,C-C23100-0115,Refuse Collection-Temporary Agency Staff,30-Mar-11,236.88
http://statistics.data.gov.uk/id/local-authority-district/23UB,Cheltenham Borough Council,445652,504393,COMENSURA LIMITED,C-C23100-0115,Refuse Collection-Temporary Agency Staff,30-Mar-11,93.06
http://statistics.data.gov.uk/id/local-authority-district/23UB,Cheltenham Borough Council,445652,504393,COMENSURA LIMITED,C-C23100-0115,Refuse Collection-Temporary Agency Staff,30-Mar-11,300.33
http://statistics.data.gov.uk/id/local-authority-district/23UB,Cheltenham Borough Council,445652,504393,COMENSURA LIMITED,C-C23100-0115,Refuse Collection-Temporary Agency Staff,30-Mar-11,215.31
http://statistics.data.gov.uk/id/local-authority-district/23UB,Cheltenham Borough Council,445652,504393,COMENSURA LIMITED,C-C23100-0115,Refuse Collection-Temporary Agency Staff,30-Mar-11,485.20
http://statistics.data.gov.uk/id/local-authority-district/23UB,Cheltenham Borough Council,445652,504393,COMENSURA LIMITED,C-C23100-0115,Refuse Collection-Temporary Agency Staff,30-Mar-11,97.04
http://statistics.data.gov.uk/id/local-authority-district/23UB,Cheltenham Borough Council,445652,504393,COMENSURA LIMITED,C-C23100-0115,Refuse Collection-Temporary Agency Staff,30-Mar-11,228.42
http://statistics.data.gov.uk/id/local-authority-district/23UB,Cheltenham Borough Council,445652,504393,COMENSURA LIMITED,C-C23100-0115,Refuse Collection-Temporary Agency Staff,30-Mar-11,260.15
http://statistics.data.gov.uk/id/local-authority-district/23UB,Cheltenham Borough Council,445652,504393,COMENSURA LIMITED,C-C23100-0115,Refuse Collection-Temporary Agency Staff,30-Mar-11,313.02
http://statistics.data.gov.uk/id/local-authority-district/23UB,Cheltenham Borough Council,445652,504393,COMENSURA LIMITED,C-C23100-0115,Refuse Collection-Temporary Agency Staff,30-Mar-11,313.02
http://statistics.data.gov.uk/id/local-authority-district/23UB,Cheltenham Borough Council,445659,504805,COMENSURA LIMITED,C-C23100-0115,Refuse Collection-Temporary Agency Staff,30-Mar-11,283.41
http://statistics.data.gov.uk/id/local-authority-district/23UB,Cheltenham Borough Council,445659,504805,COMENSURA LIMITED,C-C23100-0115,Refuse Collection-Temporary Agency Staff,30-Mar-11,491.26
http://statistics.data.gov.uk/id/local-authority-district/23UB,Cheltenham Borough Council,445659,504805,COMENSURA LIMITED,C-C23100-0115,Refuse Collection-Temporary Agency Staff,30-Mar-11,585.28
http://statistics.data.gov.uk/id/local-authority-district/23UB,Cheltenham Borough Council,445659,504805,COMENSURA LIMITED,C-C23100-0115,Refuse Collection-Temporary Agency Staff,30-Mar-11,268.61
http://statistics.data.gov.uk/id/local-authority-district/23UB,Cheltenham Borough Council,445659,504805,COMENSURA LIMITED,C-C23100-0115,Refuse Collection-Temporary Agency Staff,30-Mar-11,50.76
http://statistics.data.gov.uk/id/local-authority-district/23UB,Cheltenham Borough Council,445659,504805,COMENSURA LIMITED,C-C23100-0115,Refuse Collection-Temporary Agency Staff,30-Mar-11,476.11
http://statistics.data.gov.uk/id/local-authority-district/23UB,Cheltenham Borough Council,445659,504805,COMENSURA LIMITED,C-C23100-0115,Refuse Collection-Temporary Agency Staff,30-Mar-11,156.51
http://statistics.data.gov.uk/id/local-authority-district/23UB,Cheltenham Borough Council,445659,504805,COMENSURA LIMITED,C-C23100-0115,Refuse Collection-Temporary Agency Staff,30-Mar-11,317.25
http://statistics.data.gov.uk/id/local-authority-district/23UB,Cheltenham Borough Council,445659,504805,COMENSURA LIMITED,C-C23100-0115,Refuse Collection-Temporary Agency Staff,30-Mar-11,456.84
http://statistics.data.gov.uk/id/local-authority-district/23UB,Cheltenham Borough Council,445659,504805,COMENSURA LIMITED,C-C23100-0115,Refuse Collection-Temporary Agency Staff,30-Mar-11,50.76
http://statistics.data.gov.uk/id/local-authority-district/23UB,Cheltenham Borough Council,445659,504805,COMENSURA LIMITED,C-C23100-0115,Refuse Collection-Temporary Agency Staff,30-Mar-11,35.96
http://statistics.data.gov.uk/id/local-authority-district/23UB,Cheltenham Borough Council,445659,504805,COMENSURA LIMITED,C-C23100-0115,Refuse Collection-Temporary Agency Staff,30-Mar-11,164.97
http://statistics.data.gov.uk/id/local-authority-district/23UB,Cheltenham Borough Council,445659,504805,COMENSURA LIMITED,C-C23100-0115,Refuse Collection-Temporary Agency Staff,30-Mar-11,249.57
http://statistics.data.gov.uk/id/local-authority-district/23UB,Cheltenham Borough Council,445659,504805,COMENSURA LIMITED,C-C23100-0115,Refuse Collection-Temporary Agency Staff,30-Mar-11,249.58
http://statistics.data.gov.uk/id/local-authority-district/23UB,Cheltenham Borough Council,445659,504805,COMENSURA LIMITED,C-C23100-0115,Refuse Collection-Temporary Agency Staff,30-Mar-11,160.74
http://statistics.data.gov.uk/id/local-authority-district/23UB,Cheltenham Borough Council,445659,504805,COMENSURA LIMITED,C-C23100-0115,Refuse Collection-Temporary Agency Staff,30-Mar-11,222.08
http://statistics.data.gov.uk/id/local-authority-district/23UB,Cheltenham Borough Council,445659,504805,COMENSURA LIMITED,C-C23100-0115,Refuse Collection-Temporary Agency Staff,30-Mar-11,118.44
http://statistics.data.gov.uk/id/local-authority-district/23UB,Cheltenham Borough Council,445659,504805,COMENSURA LIMITED,C-C23100-0115,Refuse Collection-Temporary Agency Staff,30-Mar-11,310.91
http://statistics.data.gov.uk/id/local-authority-district/23UB,Cheltenham Borough Council,445658,504599,COMENSURA LIMITED,C-C23100-0115,Refuse Collection-Temporary Agency Staff,30-Mar-11,403.18
http://statistics.data.gov.uk/id/local-authority-district/23UB,Cheltenham Borough Council,445658,504599,COMENSURA LIMITED,C-C23100-0115,Refuse Collection-Temporary Agency Staff,30-Mar-11,424.40
http://statistics.data.gov.uk/id/local-authority-district/23UB,Cheltenham Borough Council,445658,504599,COMENSURA LIMITED,C-C23100-0115,Refuse Collection-Temporary Agency Staff,30-Mar-11,339.52
http://statistics.data.gov.uk/id/local-authority-district/23UB,Cheltenham Borough Council,445658,504599,COMENSURA LIMITED,C-C23100-0115,Refuse Collection-Temporary Agency Staff,30-Mar-11,313.02
http://statistics.data.gov.uk/id/local-authority-district/23UB,Cheltenham Borough Council,445658,504599,COMENSURA LIMITED,C-C23100-0115,Refuse Collection-Temporary Agency Staff,30-Mar-11,401.85
http://statistics.data.gov.uk/id/local-authority-district/23UB,Cheltenham Borough Council,445658,504599,COMENSURA LIMITED,C-C23100-0115,Refuse Collection-Temporary Agency Staff,30-Mar-11,-460.94
http://statistics.data.gov.uk/id/local-authority-district/23UB,Cheltenham Borough Council,445658,504599,COMENSURA LIMITED,C-C23100-0115,Refuse Collection-Temporary Agency Staff,30-Mar-11,-485.20
http://statistics.data.gov.uk/id/local-authority-district/23UB,Cheltenham Borough Council,445658,504599,COMENSURA LIMITED,C-C23100-0115,Refuse Collection-Temporary Agency Staff,30-Mar-11,-388.16
http://statistics.data.gov.uk/id/local-authority-district/23UB,Cheltenham Borough Council,445659,504805,COMENSURA LIMITED,C-C23100-0115,Refuse Collection-Temporary Agency Staff,30-Mar-11,97.04
http://statistics.data.gov.uk/id/local-authority-district/23UB,Cheltenham Borough Council,445659,504805,COMENSURA LIMITED,C-C23100-0115,Refuse Collection-Temporary Agency Staff,30-Mar-11,313.02
http://statistics.data.gov.uk/id/local-authority-district/23UB,Cheltenham Borough Council,445659,504805,COMENSURA LIMITED,C-C23100-0115,Refuse Collection-Temporary Agency Staff,30-Mar-11,59.22
http://statistics.data.gov.uk/id/local-authority-district/23UB,Cheltenham Borough Council,445659,504805,COMENSURA LIMITED,C-C23100-0115,Refuse Collection-Temporary Agency Staff,30-Mar-11,97.29
http://statistics.data.gov.uk/id/local-authority-district/23UB,Cheltenham Borough Council,445659,504805,COMENSURA LIMITED,C-C23100-0115,Refuse Collection-Temporary Agency Staff,30-Mar-11,313.02
http://statistics.data.gov.uk/id/local-authority-district/23UB,Cheltenham Borough Council,445659,504805,COMENSURA LIMITED,C-C23100-0115,Refuse Collection-Temporary Agency Staff,30-Mar-11,340.45
http://statistics.data.gov.uk/id/local-authority-district/23UB,Cheltenham Borough Council,445652,504393,COMENSURA LIMITED,C-C23100-0115,Refuse Collection-Temporary Agency Staff,30-Mar-11,302.44
http://statistics.data.gov.uk/id/local-authority-district/23UB,Cheltenham Borough Council,445652,504393,COMENSURA LIMITED,C-C23100-0115,Refuse Collection-Temporary Agency Staff,30-Mar-11,304.56
http://statistics.data.gov.uk/id/local-authority-district/23UB,Cheltenham Borough Council,445652,504393,COMENSURA LIMITED,C-C23100-0115,Refuse Collection-Temporary Agency Staff,30-Mar-11,319.37
http://statistics.data.gov.uk/id/local-authority-district/23UB,Cheltenham Borough Council,445652,504393,COMENSURA LIMITED,C-C23100-0115,Refuse Collection-Temporary Agency Staff,30-Mar-11,340.45
http://statistics.data.gov.uk/id/local-authority-district/23UB,Cheltenham Borough Council,445652,504393,COMENSURA LIMITED,C-C23100-0115,Refuse Collection-Temporary Agency Staff,30-Mar-11,461.02
http://statistics.data.gov.uk/id/local-authority-district/23UB,Cheltenham Borough Council,445652,504393,COMENSURA LIMITED,C-C23100-0115,Refuse Collection-Temporary Agency Staff,30-Mar-11,313.02
http://statistics.data.gov.uk/id/local-authority-district/23UB,Cheltenham Borough Council,445652,504393,COMENSURA LIMITED,C-C23100-0115,Refuse Collection-Temporary Agency Staff,30-Mar-11,317.25
http://statistics.data.gov.uk/id/local-authority-district/23UB,Cheltenham Borough Council,445652,504393,COMENSURA LIMITED,C-C23100-0115,Refuse Collection-Temporary Agency Staff,30-Mar-11,313.02
http://statistics.data.gov.uk/id/local-authority-district/23UB,Cheltenham Borough Council,445652,504393,COMENSURA LIMITED,C-C23100-0115,Refuse Collection-Temporary Agency Staff,30-Mar-11,376.47
http://statistics.data.gov.uk/id/local-authority-district/23UB,Cheltenham Borough Council,445652,504393,COMENSURA LIMITED,C-C23100-0115,Refuse Collection-Temporary Agency Staff,30-Mar-11,329.94
http://statistics.data.gov.uk/id/local-authority-district/23UB,Cheltenham Borough Council,445652,504393,COMENSURA LIMITED,C-C23100-0115,Refuse Collection-Temporary Agency Staff,30-Mar-11,368.01
http://statistics.data.gov.uk/id/local-authority-district/23UB,Cheltenham Borough Council,445652,504393,COMENSURA LIMITED,C-C23100-0115,Refuse Collection-Temporary Agency Staff,30-Mar-11,395.44
http://statistics.data.gov.uk/id/local-authority-district/23UB,Cheltenham Borough Council,445652,504393,COMENSURA LIMITED,C-C23110-0115,Street Cleaning-Temporary Agency Staff,30-Mar-11,313.02
http://statistics.data.gov.uk/id/local-authority-district/23UB,Cheltenham Borough Council,445659,504805,COMENSURA LIMITED,C-C23110-0115,Street Cleaning-Temporary Agency Staff,30-Mar-11,126.90
http://statistics.data.gov.uk/id/local-authority-district/23UB,Cheltenham Borough Council,445659,504805,COMENSURA LIMITED,C-C23110-0115,Street Cleaning-Temporary Agency Staff,30-Mar-11,249.57
http://statistics.data.gov.uk/id/local-authority-district/23UB,Cheltenham Borough Council,445659,504805,COMENSURA LIMITED,C-C23110-0115,Street Cleaning-Temporary Agency Staff,30-Mar-11,253.80
http://statistics.data.gov.uk/id/local-authority-district/23UB,Cheltenham Borough Council,445659,504805,COMENSURA LIMITED,C-C23110-0115,Street Cleaning-Temporary Agency Staff,30-Mar-11,346.86
http://statistics.data.gov.uk/id/local-authority-district/23UB,Cheltenham Borough Council,445652,504393,COMENSURA LIMITED,C-C23110-0115,Street Cleaning-Temporary Agency Staff,30-Mar-11,296.10
http://statistics.data.gov.uk/id/local-authority-district/23UB,Cheltenham Borough Council,445659,504805,COMENSURA LIMITED,C-C23120-0115,Recycling Cntr-Temporary Agency Staff,30-Mar-11,249.57
http://statistics.data.gov.uk/id/local-authority-district/23UB,Cheltenham Borough Council,445652,504393,COMENSURA LIMITED,C-C23125-0115,Recyl Bring Schms-Temporary Agency Staff,30-Mar-11,388.16
http://statistics.data.gov.uk/id/local-authority-district/23UB,Cheltenham Borough Council,445659,504805,COMENSURA LIMITED,C-C23125-0115,Recyl Bring Schms-Temporary Agency Staff,30-Mar-11,313.02
http://statistics.data.gov.uk/id/local-authority-district/23UB,Cheltenham Borough Council,445659,504805,COMENSURA LIMITED,C-C23125-0115,Recyl Bring Schms-Temporary Agency Staff,30-Mar-11,194.08
http://statistics.data.gov.uk/id/local-authority-district/23UB,Cheltenham Borough Council,445658,504599,COMENSURA LIMITED,C-C23125-0115,Recyl Bring Schms-Temporary Agency Staff,30-Mar-11,497.32
http://statistics.data.gov.uk/id/local-authority-district/23UB,Cheltenham Borough Council,445659,504805,COMENSURA LIMITED,C-C23125-0115,Recyl Bring Schms-Temporary Agency Staff,30-Mar-11,485.20
http://statistics.data.gov.uk/id/local-authority-district/23UB,Cheltenham Borough Council,445652,504393,COMENSURA LIMITED,C-C23160-0115,Env Maint Div-Temporary Agency Staff,30-Mar-11,276.92
http://statistics.data.gov.uk/id/local-authority-district/23UB,Cheltenham Borough Council,445652,504393,COMENSURA LIMITED,C-C23160-0115,Env Maint Div-Temporary Agency Staff,30-Mar-11,346.15
http://statistics.data.gov.uk/id/local-authority-district/23UB,Cheltenham Borough Council,445652,504393,COMENSURA LIMITED,C-C23160-0115,Env Maint Div-Temporary Agency Staff,30-Mar-11,346.50
http://statistics.data.gov.uk/id/local-authority-district/23UB,Cheltenham Borough Council,445658,504599,COMENSURA LIMITED,C-C23160-0115,Env Maint Div-Temporary Agency Staff,30-Mar-11,207.90
http://statistics.data.gov.uk/id/local-authority-district/23UB,Cheltenham Borough Council,445658,504599,COMENSURA LIMITED,C-C23160-0115,Env Maint Div-Temporary Agency Staff,30-Mar-11,336.60
http://statistics.data.gov.uk/id/local-authority-district/23UB,Cheltenham Borough Council,445658,504599,COMENSURA LIMITED,C-C23160-0115,Env Maint Div-Temporary Agency Staff,30-Mar-11,274.72
http://statistics.data.gov.uk/id/local-authority-district/23UB,Cheltenham Borough Council,445658,504599,COMENSURA LIMITED,C-C23160-0115,Env Maint Div-Temporary Agency Staff,30-Mar-11,346.15
http://statistics.data.gov.uk/id/local-authority-district/23UB,Cheltenham Borough Council,445652,504393,COMENSURA LIMITED,C-C23180-0115,Rcycl Coltn Schms-Temporary Agency Staff,30-Mar-11,-167.08
http://statistics.data.gov.uk/id/local-authority-district/23UB,Cheltenham Borough Council,445652,504393,COMENSURA LIMITED,C-C23180-0115,Rcycl Coltn Schms-Temporary Agency Staff,30-Mar-11,167.08
http://statistics.data.gov.uk/id/local-authority-district/23UB,Cheltenham Borough Council,445652,504393,COMENSURA LIMITED,C-C23180-0115,Rcycl Coltn Schms-Temporary Agency Staff,30-Mar-11,57.10
http://statistics.data.gov.uk/id/local-authority-district/23UB,Cheltenham Borough Council,445652,504393,COMENSURA LIMITED,C-C23180-0115,Rcycl Coltn Schms-Temporary Agency Staff,30-Mar-11,262.26
http://statistics.data.gov.uk/id/local-authority-district/23UB,Cheltenham Borough Council,445652,504393,COMENSURA LIMITED,C-C23180-0115,Rcycl Coltn Schms-Temporary Agency Staff,30-Mar-11,84.60
http://statistics.data.gov.uk/id/local-authority-district/23UB,Cheltenham Borough Council,445652,504393,COMENSURA LIMITED,C-C23180-0115,Rcycl Coltn Schms-Temporary Agency Staff,30-Mar-11,403.96
http://statistics.data.gov.uk/id/local-authority-district/23UB,Cheltenham Borough Council,445652,504393,COMENSURA LIMITED,C-C23180-0115,Rcycl Coltn Schms-Temporary Agency Staff,30-Mar-11,279.18
http://statistics.data.gov.uk/id/local-authority-district/23UB,Cheltenham Borough Council,445652,504393,COMENSURA LIMITED,C-C23180-0115,Rcycl Coltn Schms-Temporary Agency Staff,30-Mar-11,397.62
http://statistics.data.gov.uk/id/local-authority-district/23UB,Cheltenham Borough Council,445652,504393,COMENSURA LIMITED,C-C23180-0115,Rcycl Coltn Schms-Temporary Agency Staff,30-Mar-11,348.98
http://statistics.data.gov.uk/id/local-authority-district/23UB,Cheltenham Borough Council,445652,504393,COMENSURA LIMITED,C-C23180-0115,Rcycl Coltn Schms-Temporary Agency Staff,30-Mar-11,334.17
http://statistics.data.gov.uk/id/local-authority-district/23UB,Cheltenham Borough Council,445652,504393,COMENSURA LIMITED,C-C23180-0115,Rcycl Coltn Schms-Temporary Agency Staff,30-Mar-11,249.57
http://statistics.data.gov.uk/id/local-authority-district/23UB,Cheltenham Borough Council,445652,504393,COMENSURA LIMITED,C-C23180-0115,Rcycl Coltn Schms-Temporary Agency Staff,30-Mar-11,338.40
http://statistics.data.gov.uk/id/local-authority-district/23UB,Cheltenham Borough Council,445652,504393,COMENSURA LIMITED,C-C23180-0115,Rcycl Coltn Schms-Temporary Agency Staff,30-Mar-11,384.93
http://statistics.data.gov.uk/id/local-authority-district/23UB,Cheltenham Borough Council,445652,504393,COMENSURA LIMITED,C-C23180-0115,Rcycl Coltn Schms-Temporary Agency Staff,30-Mar-11,97.04
http://statistics.data.gov.uk/id/local-authority-district/23UB,Cheltenham Borough Council,445652,504393,COMENSURA LIMITED,C-C23180-0115,Rcycl Coltn Schms-Temporary Agency Staff,30-Mar-11,302.44
http://statistics.data.gov.uk/id/local-authority-district/23UB,Cheltenham Borough Council,445652,504393,COMENSURA LIMITED,C-C23180-0115,Rcycl Coltn Schms-Temporary Agency Staff,30-Mar-11,576.18
http://statistics.data.gov.uk/id/local-authority-district/23UB,Cheltenham Borough Council,445652,504393,COMENSURA LIMITED,C-C23180-0115,Rcycl Coltn Schms-Temporary Agency Staff,30-Mar-11,490.86
http://statistics.data.gov.uk/id/local-authority-district/23UB,Cheltenham Borough Council,445652,504393,COMENSURA LIMITED,C-C23180-0115,Rcycl Coltn Schms-Temporary Agency Staff,30-Mar-11,308.79
http://statistics.data.gov.uk/id/local-authority-district/23UB,Cheltenham Borough Council,445652,504393,COMENSURA LIMITED,C-C23180-0115,Rcycl Coltn Schms-Temporary Agency Staff,30-Mar-11,203.04
http://statistics.data.gov.uk/id/local-authority-district/23UB,Cheltenham Borough Council,445652,504393,COMENSURA LIMITED,C-C23180-0115,Rcycl Coltn Schms-Temporary Agency Staff,30-Mar-11,270.72
http://statistics.data.gov.uk/id/local-authority-district/23UB,Cheltenham Borough Council,445652,504393,COMENSURA LIMITED,C-C23180-0115,Rcycl Coltn Schms-Temporary Agency Staff,30-Mar-11,270.72
http://statistics.data.gov.uk/id/local-authority-district/23UB,Cheltenham Borough Council,445652,504393,COMENSURA LIMITED,C-C23180-0115,Rcycl Coltn Schms-Temporary Agency Staff,30-Mar-11,114.21
http://statistics.data.gov.uk/id/local-authority-district/23UB,Cheltenham Borough Council,445658,504599,COMENSURA LIMITED,C-C23180-0115,Rcycl Coltn Schms-Temporary Agency Staff,30-Mar-11,59.22
http://statistics.data.gov.uk/id/local-authority-district/23UB,Cheltenham Borough Council,445658,504599,COMENSURA LIMITED,C-C23180-0115,Rcycl Coltn Schms-Temporary Agency Staff,30-Mar-11,440.31
http://statistics.data.gov.uk/id/local-authority-district/23UB,Cheltenham Borough Council,445658,504599,COMENSURA LIMITED,C-C23180-0115,Rcycl Coltn Schms-Temporary Agency Staff,30-Mar-11,435.00
http://statistics.data.gov.uk/id/local-authority-district/23UB,Cheltenham Borough Council,445658,504599,COMENSURA LIMITED,C-C23180-0115,Rcycl Coltn Schms-Temporary Agency Staff,30-Mar-11,381.96
http://statistics.data.gov.uk/id/local-authority-district/23UB,Cheltenham Borough Council,445658,504599,COMENSURA LIMITED,C-C23180-0115,Rcycl Coltn Schms-Temporary Agency Staff,30-Mar-11,435.69
http://statistics.data.gov.uk/id/local-authority-district/23UB,Cheltenham Borough Council,445658,504599,COMENSURA LIMITED,C-C23180-0115,Rcycl Coltn Schms-Temporary Agency Staff,30-Mar-11,317.25
http://statistics.data.gov.uk/id/local-authority-district/23UB,Cheltenham Borough Council,445658,504599,COMENSURA LIMITED,C-C23180-0115,Rcycl Coltn Schms-Temporary Agency Staff,30-Mar-11,304.57
http://statistics.data.gov.uk/id/local-authority-district/23UB,Cheltenham Borough Council,445658,504599,COMENSURA LIMITED,C-C23180-0115,Rcycl Coltn Schms-Temporary Agency Staff,30-Mar-11,63.45
http://statistics.data.gov.uk/id/local-authority-district/23UB,Cheltenham Borough Council,445658,504599,COMENSURA LIMITED,C-C23180-0115,Rcycl Coltn Schms-Temporary Agency Staff,30-Mar-11,304.57
http://statistics.data.gov.uk/id/local-authority-district/23UB,Cheltenham Borough Council,445658,504599,COMENSURA LIMITED,C-C23180-0115,Rcycl Coltn Schms-Temporary Agency Staff,30-Mar-11,541.10
http://statistics.data.gov.uk/id/local-authority-district/23UB,Cheltenham Borough Council,445658,504599,COMENSURA LIMITED,C-C23180-0115,Rcycl Coltn Schms-Temporary Agency Staff,30-Mar-11,403.19
http://statistics.data.gov.uk/id/local-authority-district/23UB,Cheltenham Borough Council,445658,504599,COMENSURA LIMITED,C-C23180-0115,Rcycl Coltn Schms-Temporary Agency Staff,30-Mar-11,344.82
http://statistics.data.gov.uk/id/local-authority-district/23UB,Cheltenham Borough Council,445658,504599,COMENSURA LIMITED,C-C23180-0115,Rcycl Coltn Schms-Temporary Agency Staff,30-Mar-11,424.40
http://statistics.data.gov.uk/id/local-authority-district/23UB,Cheltenham Borough Council,445658,504599,COMENSURA LIMITED,C-C23180-0115,Rcycl Coltn Schms-Temporary Agency Staff,30-Mar-11,279.18
http://statistics.data.gov.uk/id/local-authority-district/23UB,Cheltenham Borough Council,445658,504599,COMENSURA LIMITED,C-C23180-0115,Rcycl Coltn Schms-Temporary Agency Staff,30-Mar-11,346.86
http://statistics.data.gov.uk/id/local-authority-district/23UB,Cheltenham Borough Council,445658,504599,COMENSURA LIMITED,C-C23180-0115,Rcycl Coltn Schms-Temporary Agency Staff,30-Mar-11,346.86
http://statistics.data.gov.uk/id/local-authority-district/23UB,Cheltenham Borough Council,445658,504599,COMENSURA LIMITED,C-C23180-0115,Rcycl Coltn Schms-Temporary Agency Staff,30-Mar-11,249.57
http://statistics.data.gov.uk/id/local-authority-district/23UB,Cheltenham Borough Council,445658,504599,COMENSURA LIMITED,C-C23180-0115,Rcycl Coltn Schms-Temporary Agency Staff,30-Mar-11,272.84
http://statistics.data.gov.uk/id/local-authority-district/23UB,Cheltenham Borough Council,445658,504599,COMENSURA LIMITED,C-C23180-0115,Rcycl Coltn Schms-Temporary Agency Staff,30-Mar-11,431.46
http://statistics.data.gov.uk/id/local-authority-district/23UB,Cheltenham Borough Council,445658,504599,COMENSURA LIMITED,C-C23180-0115,Rcycl Coltn Schms-Temporary Agency Staff,30-Mar-11,285.53
http://statistics.data.gov.uk/id/local-authority-district/23UB,Cheltenham Borough Council,445658,504599,COMENSURA LIMITED,C-C23180-0115,Rcycl Coltn Schms-Temporary Agency Staff,30-Mar-11,258.03
http://statistics.data.gov.uk/id/local-authority-district/23UB,Cheltenham Borough Council,445658,504599,COMENSURA LIMITED,C-C23180-0115,Rcycl Coltn Schms-Temporary Agency Staff,30-Mar-11,344.75
http://statistics.data.gov.uk/id/local-authority-district/23UB,Cheltenham Borough Council,445658,504599,COMENSURA LIMITED,C-C23180-0115,Rcycl Coltn Schms-Temporary Agency Staff,30-Mar-11,133.24
http://statistics.data.gov.uk/id/local-authority-district/23UB,Cheltenham Borough Council,445658,504599,COMENSURA LIMITED,C-C23180-0115,Rcycl Coltn Schms-Temporary Agency Staff,30-Mar-11,164.97
http://statistics.data.gov.uk/id/local-authority-district/23UB,Cheltenham Borough Council,445658,504599,COMENSURA LIMITED,C-C23180-0115,Rcycl Coltn Schms-Temporary Agency Staff,30-Mar-11,262.26
http://statistics.data.gov.uk/id/local-authority-district/23UB,Cheltenham Borough Council,445658,504599,COMENSURA LIMITED,C-C23180-0115,Rcycl Coltn Schms-Temporary Agency Staff,30-Mar-11,200.93
http://statistics.data.gov.uk/id/local-authority-district/23UB,Cheltenham Borough Council,445658,504599,COMENSURA LIMITED,C-C23180-0115,Rcycl Coltn Schms-Temporary Agency Staff,30-Mar-11,135.36
http://statistics.data.gov.uk/id/local-authority-district/23UB,Cheltenham Borough Council,445658,504599,COMENSURA LIMITED,C-C23180-0115,Rcycl Coltn Schms-Temporary Agency Staff,30-Mar-11,131.13
http://statistics.data.gov.uk/id/local-authority-district/23UB,Cheltenham Borough Council,445658,504599,COMENSURA LIMITED,C-C23180-0115,Rcycl Coltn Schms-Temporary Agency Staff,30-Mar-11,169.20
http://statistics.data.gov.uk/id/local-authority-district/23UB,Cheltenham Borough Council,445658,504599,COMENSURA LIMITED,C-C23180-0115,Rcycl Coltn Schms-Temporary Agency Staff,30-Mar-11,338.40
http://statistics.data.gov.uk/id/local-authority-district/23UB,Cheltenham Borough Council,445658,504599,COMENSURA LIMITED,C-C23180-0115,Rcycl Coltn Schms-Temporary Agency Staff,30-Mar-11,321.48
http://statistics.data.gov.uk/id/local-authority-district/23UB,Cheltenham Borough Council,445658,504599,COMENSURA LIMITED,C-C23180-0115,Rcycl Coltn Schms-Temporary Agency Staff,30-Mar-11,518.55
http://statistics.data.gov.uk/id/local-authority-district/23UB,Cheltenham Borough Council,445658,504599,COMENSURA LIMITED,C-C23180-0115,Rcycl Coltn Schms-Temporary Agency Staff,30-Mar-11,293.99
http://statistics.data.gov.uk/id/local-authority-district/23UB,Cheltenham Borough Council,445658,504599,COMENSURA LIMITED,C-C23180-0115,Rcycl Coltn Schms-Temporary Agency Staff,30-Mar-11,515.53
http://statistics.data.gov.uk/id/local-authority-district/23UB,Cheltenham Borough Council,445658,504599,COMENSURA LIMITED,C-C23180-0115,Rcycl Coltn Schms-Temporary Agency Staff,30-Mar-11,484.80
http://statistics.data.gov.uk/id/local-authority-district/23UB,Cheltenham Borough Council,445658,504599,COMENSURA LIMITED,C-C23180-0115,Rcycl Coltn Schms-Temporary Agency Staff,30-Mar-11,59.22
http://statistics.data.gov.uk/id/local-authority-district/23UB,Cheltenham Borough Council,445658,504599,COMENSURA LIMITED,C-C23180-0115,Rcycl Coltn Schms-Temporary Agency Staff,30-Mar-11,503.98
http://statistics.data.gov.uk/id/local-authority-district/23UB,Cheltenham Borough Council,445658,504599,COMENSURA LIMITED,C-C23180-0115,Rcycl Coltn Schms-Temporary Agency Staff,30-Mar-11,498.66
http://statistics.data.gov.uk/id/local-authority-district/23UB,Cheltenham Borough Council,445658,504599,COMENSURA LIMITED,C-C23180-0115,Rcycl Coltn Schms-Temporary Agency Staff,30-Mar-11,360.72
http://statistics.data.gov.uk/id/local-authority-district/23UB,Cheltenham Borough Council,445658,504599,COMENSURA LIMITED,C-C23180-0115,Rcycl Coltn Schms-Temporary Agency Staff,30-Mar-11,121.30
http://statistics.data.gov.uk/id/local-authority-district/23UB,Cheltenham Borough Council,445658,504599,COMENSURA LIMITED,C-C23180-0115,Rcycl Coltn Schms-Temporary Agency Staff,30-Mar-11,-84.60
http://statistics.data.gov.uk/id/local-authority-district/23UB,Cheltenham Borough Council,445658,504599,COMENSURA LIMITED,C-C23180-0115,Rcycl Coltn Schms-Temporary Agency Staff,30-Mar-11,-397.62
http://statistics.data.gov.uk/id/local-authority-district/23UB,Cheltenham Borough Council,445658,504599,COMENSURA LIMITED,C-C23180-0115,Rcycl Coltn Schms-Temporary Agency Staff,30-Mar-11,-287.64
http://statistics.data.gov.uk/id/local-authority-district/23UB,Cheltenham Borough Council,445658,504599,COMENSURA LIMITED,C-C23180-0115,Rcycl Coltn Schms-Temporary Agency Staff,30-Mar-11,-576.18
http://statistics.data.gov.uk/id/local-authority-district/23UB,Cheltenham Borough Council,445659,504805,COMENSURA LIMITED,C-C23180-0115,Rcycl Coltn Schms-Temporary Agency Staff,30-Mar-11,192.47
http://statistics.data.gov.uk/id/local-authority-district/23UB,Cheltenham Borough Council,445659,504805,COMENSURA LIMITED,C-C23180-0115,Rcycl Coltn Schms-Temporary Agency Staff,30-Mar-11,111.44
http://statistics.data.gov.uk/id/local-authority-district/23UB,Cheltenham Borough Council,445659,504805,COMENSURA LIMITED,C-C23180-0115,Rcycl Coltn Schms-Temporary Agency Staff,30-Mar-11,200.14
http://statistics.data.gov.uk/id/local-authority-district/23UB,Cheltenham Borough Council,445659,504805,COMENSURA LIMITED,C-C23180-0115,Rcycl Coltn Schms-Temporary Agency Staff,30-Mar-11,519.92
http://statistics.data.gov.uk/id/local-authority-district/23UB,Cheltenham Borough Council,445659,504805,COMENSURA LIMITED,C-C23180-0115,Rcycl Coltn Schms-Temporary Agency Staff,30-Mar-11,112.09
http://statistics.data.gov.uk/id/local-authority-district/23UB,Cheltenham Borough Council,445659,504805,COMENSURA LIMITED,C-C23180-0115,Rcycl Coltn Schms-Temporary Agency Staff,30-Mar-11,206.90
http://statistics.data.gov.uk/id/local-authority-district/23UB,Cheltenham Borough Council,445659,504805,COMENSURA LIMITED,C-C23180-0115,Rcycl Coltn Schms-Temporary Agency Staff,30-Mar-11,206.90
http://statistics.data.gov.uk/id/local-authority-district/23UB,Cheltenham Borough Council,445659,504805,COMENSURA LIMITED,C-C23180-0115,Rcycl Coltn Schms-Temporary Agency Staff,30-Mar-11,384.62
http://statistics.data.gov.uk/id/local-authority-district/23UB,Cheltenham Borough Council,445659,504805,COMENSURA LIMITED,C-C23180-0115,Rcycl Coltn Schms-Temporary Agency Staff,30-Mar-11,376.47
http://statistics.data.gov.uk/id/local-authority-district/23UB,Cheltenham Borough Council,445659,504805,COMENSURA LIMITED,C-C23180-0115,Rcycl Coltn Schms-Temporary Agency Staff,30-Mar-11,88.83
http://statistics.data.gov.uk/id/local-authority-district/23UB,Cheltenham Borough Council,445659,504805,COMENSURA LIMITED,C-C23180-0115,Rcycl Coltn Schms-Temporary Agency Staff,30-Mar-11,395.51
http://statistics.data.gov.uk/id/local-authority-district/23UB,Cheltenham Borough Council,445659,504805,COMENSURA LIMITED,C-C23180-0115,Rcycl Coltn Schms-Temporary Agency Staff,30-Mar-11,306.68
http://statistics.data.gov.uk/id/local-authority-district/23UB,Cheltenham Borough Council,445659,504805,COMENSURA LIMITED,C-C23180-0115,Rcycl Coltn Schms-Temporary Agency Staff,30-Mar-11,620.73
http://statistics.data.gov.uk/id/local-authority-district/23UB,Cheltenham Borough Council,445659,504805,COMENSURA LIMITED,C-C23180-0115,Rcycl Coltn Schms-Temporary Agency Staff,30-Mar-11,392.59
http://statistics.data.gov.uk/id/local-authority-district/23UB,Cheltenham Borough Council,445659,504805,COMENSURA LIMITED,C-C23180-0115,Rcycl Coltn Schms-Temporary Agency Staff,30-Mar-11,546.43
http://statistics.data.gov.uk/id/local-authority-district/23UB,Cheltenham Borough Council,445659,504805,COMENSURA LIMITED,C-C23180-0115,Rcycl Coltn Schms-Temporary Agency Staff,30-Mar-11,408.49
http://statistics.data.gov.uk/id/local-authority-district/23UB,Cheltenham Borough Council,445659,504805,COMENSURA LIMITED,C-C23180-0115,Rcycl Coltn Schms-Temporary Agency Staff,30-Mar-11,262.26
http://statistics.data.gov.uk/id/local-authority-district/23UB,Cheltenham Borough Council,445659,504805,COMENSURA LIMITED,C-C23180-0115,Rcycl Coltn Schms-Temporary Agency Staff,30-Mar-11,414.54
http://statistics.data.gov.uk/id/local-authority-district/23UB,Cheltenham Borough Council,445659,504805,COMENSURA LIMITED,C-C23180-0115,Rcycl Coltn Schms-Temporary Agency Staff,30-Mar-11,325.71
http://statistics.data.gov.uk/id/local-authority-district/23UB,Cheltenham Borough Council,445659,504805,COMENSURA LIMITED,C-C23180-0115,Rcycl Coltn Schms-Temporary Agency Staff,30-Mar-11,164.97
http://statistics.data.gov.uk/id/local-authority-district/23UB,Cheltenham Borough Council,445659,504805,COMENSURA LIMITED,C-C23180-0115,Rcycl Coltn Schms-Temporary Agency Staff,30-Mar-11,427.23
http://statistics.data.gov.uk/id/local-authority-district/23UB,Cheltenham Borough Council,445659,504805,COMENSURA LIMITED,C-C23180-0115,Rcycl Coltn Schms-Temporary Agency Staff,30-Mar-11,164.97
http://statistics.data.gov.uk/id/local-authority-district/23UB,Cheltenham Borough Council,445659,504805,COMENSURA LIMITED,C-C23180-0115,Rcycl Coltn Schms-Temporary Agency Staff,30-Mar-11,465.30
http://statistics.data.gov.uk/id/local-authority-district/23UB,Cheltenham Borough Council,445659,504805,COMENSURA LIMITED,C-C23180-0115,Rcycl Coltn Schms-Temporary Agency Staff,30-Mar-11,277.08
http://statistics.data.gov.uk/id/local-authority-district/23UB,Cheltenham Borough Council,445659,504805,COMENSURA LIMITED,C-C23180-0115,Rcycl Coltn Schms-Temporary Agency Staff,30-Mar-11,61.34
http://statistics.data.gov.uk/id/local-authority-district/23UB,Cheltenham Borough Council,445659,504805,COMENSURA LIMITED,C-C23180-0115,Rcycl Coltn Schms-Temporary Agency Staff,30-Mar-11,198.81
http://statistics.data.gov.uk/id/local-authority-district/23UB,Cheltenham Borough Council,445659,504805,COMENSURA LIMITED,C-C23180-0115,Rcycl Coltn Schms-Temporary Agency Staff,30-Mar-11,313.02
http://statistics.data.gov.uk/id/local-authority-district/23UB,Cheltenham Borough Council,445659,504805,COMENSURA LIMITED,C-C23180-0115,Rcycl Coltn Schms-Temporary Agency Staff,30-Mar-11,279.18
http://statistics.data.gov.uk/id/local-authority-district/23UB,Cheltenham Borough Council,445659,504805,COMENSURA LIMITED,C-C23180-0115,Rcycl Coltn Schms-Temporary Agency Staff,30-Mar-11,116.33
http://statistics.data.gov.uk/id/local-authority-district/23UB,Cheltenham Borough Council,445659,504805,COMENSURA LIMITED,C-C23180-0115,Rcycl Coltn Schms-Temporary Agency Staff,30-Mar-11,131.13
http://statistics.data.gov.uk/id/local-authority-district/23UB,Cheltenham Borough Council,445659,504805,COMENSURA LIMITED,C-C23180-0115,Rcycl Coltn Schms-Temporary Agency Staff,30-Mar-11,334.17
http://statistics.data.gov.uk/id/local-authority-district/23UB,Cheltenham Borough Council,445659,504805,COMENSURA LIMITED,C-C23180-0115,Rcycl Coltn Schms-Temporary Agency Staff,30-Mar-11,122.67
http://statistics.data.gov.uk/id/local-authority-district/23UB,Cheltenham Borough Council,445659,504805,COMENSURA LIMITED,C-C23180-0115,Rcycl Coltn Schms-Temporary Agency Staff,30-Mar-11,228.42
http://statistics.data.gov.uk/id/local-authority-district/23UB,Cheltenham Borough Council,445659,504805,COMENSURA LIMITED,C-C23180-0115,Rcycl Coltn Schms-Temporary Agency Staff,30-Mar-11,334.17
http://statistics.data.gov.uk/id/local-authority-district/23UB,Cheltenham Borough Council,445659,504805,COMENSURA LIMITED,C-C23180-0115,Rcycl Coltn Schms-Temporary Agency Staff,30-Mar-11,135.36
http://statistics.data.gov.uk/id/local-authority-district/23UB,Cheltenham Borough Council,445659,504805,COMENSURA LIMITED,C-C23180-0115,Rcycl Coltn Schms-Temporary Agency Staff,30-Mar-11,303.24
http://statistics.data.gov.uk/id/local-authority-district/23UB,Cheltenham Borough Council,445659,504805,COMENSURA LIMITED,C-C23180-0115,Rcycl Coltn Schms-Temporary Agency Staff,30-Mar-11,268.62
http://statistics.data.gov.uk/id/local-authority-district/23UB,Cheltenham Borough Council,445659,504805,COMENSURA LIMITED,C-C23180-0115,Rcycl Coltn Schms-Temporary Agency Staff,30-Mar-11,315.37
http://statistics.data.gov.uk/id/local-authority-district/23UB,Cheltenham Borough Council,445659,504805,COMENSURA LIMITED,C-C23180-0115,Rcycl Coltn Schms-Temporary Agency Staff,30-Mar-11,490.86
http://statistics.data.gov.uk/id/local-authority-district/23UB,Cheltenham Borough Council,445659,504805,COMENSURA LIMITED,C-C23180-0115,Rcycl Coltn Schms-Temporary Agency Staff,30-Mar-11,346.86
http://statistics.data.gov.uk/id/local-authority-district/23UB,Cheltenham Borough Council,445659,504805,COMENSURA LIMITED,C-C23180-0115,Rcycl Coltn Schms-Temporary Agency Staff,30-Mar-11,190.98
http://statistics.data.gov.uk/id/local-authority-district/23UB,Cheltenham Borough Council,445659,504805,COMENSURA LIMITED,C-C23180-0115,Rcycl Coltn Schms-Temporary Agency Staff,30-Mar-11,344.75
http://statistics.data.gov.uk/id/local-authority-district/23UB,Cheltenham Borough Council,445659,504805,COMENSURA LIMITED,C-C23180-0115,Rcycl Coltn Schms-Temporary Agency Staff,30-Mar-11,-344.75
http://statistics.data.gov.uk/id/local-authority-district/23UB,Cheltenham Borough Council,445652,504393,COMENSURA LIMITED,C-C23180-0115,Rcycl Coltn Schms-Temporary Agency Staff,30-Mar-11,328.91
http://statistics.data.gov.uk/id/local-authority-district/23UB,Cheltenham Borough Council,445652,504393,COMENSURA LIMITED,C-C23180-0115,Rcycl Coltn Schms-Temporary Agency Staff,30-Mar-11,403.18
http://statistics.data.gov.uk/id/local-authority-district/23UB,Cheltenham Borough Council,445652,504393,COMENSURA LIMITED,C-C23180-0115,Rcycl Coltn Schms-Temporary Agency Staff,30-Mar-11,342.63
http://statistics.data.gov.uk/id/local-authority-district/23UB,Cheltenham Borough Council,445652,504393,COMENSURA LIMITED,C-C23180-0115,Rcycl Coltn Schms-Temporary Agency Staff,30-Mar-11,224.19
http://statistics.data.gov.uk/id/local-authority-district/23UB,Cheltenham Borough Council,445652,504393,COMENSURA LIMITED,C-C23180-0115,Rcycl Coltn Schms-Temporary Agency Staff,30-Mar-11,401.85
http://statistics.data.gov.uk/id/local-authority-district/23UB,Cheltenham Borough Council,445652,504393,COMENSURA LIMITED,C-C23180-0115,Rcycl Coltn Schms-Temporary Agency Staff,30-Mar-11,338.40
http://statistics.data.gov.uk/id/local-authority-district/23UB,Cheltenham Borough Council,445652,504393,COMENSURA LIMITED,C-C23180-0115,Rcycl Coltn Schms-Temporary Agency Staff,30-Mar-11,59.22
http://statistics.data.gov.uk/id/local-authority-district/23UB,Cheltenham Borough Council,445652,504393,COMENSURA LIMITED,C-C23180-0115,Rcycl Coltn Schms-Temporary Agency Staff,30-Mar-11,249.57
http://statistics.data.gov.uk/id/local-authority-district/23UB,Cheltenham Borough Council,445652,504393,COMENSURA LIMITED,C-C23180-0115,Rcycl Coltn Schms-Temporary Agency Staff,30-Mar-11,397.62
http://statistics.data.gov.uk/id/local-authority-district/23UB,Cheltenham Borough Council,445652,504393,COMENSURA LIMITED,C-C23180-0115,Rcycl Coltn Schms-Temporary Agency Staff,30-Mar-11,270.72
http://statistics.data.gov.uk/id/local-authority-district/23UB,Cheltenham Borough Council,445652,504393,COMENSURA LIMITED,C-C23180-0115,Rcycl Coltn Schms-Temporary Agency Staff,30-Mar-11,118.44
http://statistics.data.gov.uk/id/local-authority-district/23UB,Cheltenham Borough Council,445652,504393,COMENSURA LIMITED,C-C23180-0115,Rcycl Coltn Schms-Temporary Agency Staff,30-Mar-11,262.26
http://statistics.data.gov.uk/id/local-authority-district/23UB,Cheltenham Borough Council,445652,504393,COMENSURA LIMITED,C-C23190-0115,Garden Collectn-Temporary Agency Staff,30-Mar-11,346.15
http://statistics.data.gov.uk/id/local-authority-district/23UB,Cheltenham Borough Council,445652,504393,COMENSURA LIMITED,C-C23190-0115,Garden Collectn-Temporary Agency Staff,30-Mar-11,346.15
http://statistics.data.gov.uk/id/local-authority-district/23UB,Cheltenham Borough Council,445652,504393,COMENSURA LIMITED,C-C23190-0115,Garden Collectn-Temporary Agency Staff,30-Mar-11,378.58
http://statistics.data.gov.uk/id/local-authority-district/23UB,Cheltenham Borough Council,445652,504393,COMENSURA LIMITED,C-C23190-0115,Garden Collectn-Temporary Agency Staff,30-Mar-11,533.72
http://statistics.data.gov.uk/id/local-authority-district/23UB,Cheltenham Borough Council,445659,504805,COMENSURA LIMITED,C-C23190-0115,Garden Collectn-Temporary Agency Staff,30-Mar-11,265.25
http://statistics.data.gov.uk/id/local-authority-district/23UB,Cheltenham Borough Council,445659,504805,COMENSURA LIMITED,C-C23190-0115,Garden Collectn-Temporary Agency Staff,30-Mar-11,500.36
http://statistics.data.gov.uk/id/local-authority-district/23UB,Cheltenham Borough Council,445659,504805,COMENSURA LIMITED,C-C23190-0115,Garden Collectn-Temporary Agency Staff,30-Mar-11,88.83
http://statistics.data.gov.uk/id/local-authority-district/23UB,Cheltenham Borough Council,445658,504599,COMENSURA LIMITED,C-C23190-0115,Garden Collectn-Temporary Agency Staff,30-Mar-11,350.15
http://statistics.data.gov.uk/id/local-authority-district/23UB,Cheltenham Borough Council,445658,504599,COMENSURA LIMITED,C-C23190-0115,Garden Collectn-Temporary Agency Staff,30-Mar-11,573.13
http://statistics.data.gov.uk/id/local-authority-district/23UB,Cheltenham Borough Council,445658,504599,COMENSURA LIMITED,C-C23190-0115,Garden Collectn-Temporary Agency Staff,30-Mar-11,527.65
http://statistics.data.gov.uk/id/local-authority-district/23UB,Cheltenham Borough Council,445658,504599,COMENSURA LIMITED,C-C23190-0115,Garden Collectn-Temporary Agency Staff,30-Mar-11,359.55
http://statistics.data.gov.uk/id/local-authority-district/23UB,Cheltenham Borough Council,445659,504805,COMENSURA LIMITED,C-C23190-0115,Garden Collectn-Temporary Agency Staff,30-Mar-11,494.30
http://statistics.data.gov.uk/id/local-authority-district/23UB,Cheltenham Borough Council,445659,504805,COMENSURA LIMITED,C-C23190-0115,Garden Collectn-Temporary Agency Staff,30-Mar-11,403.20
http://statistics.data.gov.uk/id/local-authority-district/23UB,Cheltenham Borough Council,445659,504805,COMENSURA LIMITED,C-C23190-0115,Garden Collectn-Temporary Agency Staff,30-Mar-11,145.60
http://statistics.data.gov.uk/id/local-authority-district/23UB,Cheltenham Borough Council,445659,504805,COMENSURA LIMITED,C-C23190-0115,Garden Collectn-Temporary Agency Staff,30-Mar-11,342.63
http://statistics.data.gov.uk/id/local-authority-district/23UB,Cheltenham Borough Council,445652,504393,COMENSURA LIMITED,C-C23190-0115,Garden Collectn-Temporary Agency Staff,30-Mar-11,342.17
http://statistics.data.gov.uk/id/local-authority-district/23UB,Cheltenham Borough Council,445652,504393,COMENSURA LIMITED,C-C23190-0115,Garden Collectn-Temporary Agency Staff,30-Mar-11,521.58
http://statistics.data.gov.uk/id/local-authority-district/23UB,Cheltenham Borough Council,445659,504805,COMENSURA LIMITED,C-D13100-0115,Muni Off Blgs-Temporary Agency Staff,30-Mar-11,164.97
http://statistics.data.gov.uk/id/local-authority-district/23UB,Cheltenham Borough Council,445658,504599,COMENSURA LIMITED,C-D13100-0115,Muni Off Blgs-Temporary Agency Staff,30-Mar-11,105.75
http://statistics.data.gov.uk/id/local-authority-district/23UB,Cheltenham Borough Council,445658,504599,COMENSURA LIMITED,C-D13100-0115,Muni Off Blgs-Temporary Agency Staff,30-Mar-11,105.75
http://statistics.data.gov.uk/id/local-authority-district/23UB,Cheltenham Borough Council,445658,504599,COMENSURA LIMITED,C-D13100-0115,Muni Off Blgs-Temporary Agency Staff,30-Mar-11,42.30
http://statistics.data.gov.uk/id/local-authority-district/23UB,Cheltenham Borough Council,445658,504599,COMENSURA LIMITED,C-D13100-0115,Muni Off Blgs-Temporary Agency Staff,30-Mar-11,67.68
http://statistics.data.gov.uk/id/local-authority-district/23UB,Cheltenham Borough Council,445658,504599,COMENSURA LIMITED,C-D13100-0115,Muni Off Blgs-Temporary Agency Staff,30-Mar-11,118.44
http://statistics.data.gov.uk/id/local-authority-district/23UB,Cheltenham Borough Council,445658,504599,COMENSURA LIMITED,C-D13100-0115,Muni Off Blgs-Temporary Agency Staff,30-Mar-11,105.75
http://statistics.data.gov.uk/id/local-authority-district/23UB,Cheltenham Borough Council,445659,504805,COMENSURA LIMITED,C-D13100-0115,Muni Off Blgs-Temporary Agency Staff,30-Mar-11,59.22
http://statistics.data.gov.uk/id/local-authority-district/23UB,Cheltenham Borough Council,445659,504805,COMENSURA LIMITED,C-D13100-0115,Muni Off Blgs-Temporary Agency Staff,30-Mar-11,105.75
http://statistics.data.gov.uk/id/local-authority-district/23UB,Cheltenham Borough Council,445652,504393,COMENSURA LIMITED,C-E63100-0115,Cemetery & Crem-Temporary Agency Staff,30-Mar-11,249.57
http://statistics.data.gov.uk/id/local-authority-district/23UB,Cheltenham Borough Council,445658,504599,COMENSURA LIMITED,C-E63100-0115,Cemetery & Crem-Temporary Agency Staff,30-Mar-11,214.40
http://statistics.data.gov.uk/id/local-authority-district/23UB,Cheltenham Borough Council,445658,504599,COMENSURA LIMITED,C-E63100-0115,Cemetery & Crem-Temporary Agency Staff,30-Mar-11,313.02
http://statistics.data.gov.uk/id/local-authority-district/23UB,Cheltenham Borough Council,445658,504599,COMENSURA LIMITED,C-E63100-0115,Cemetery & Crem-Temporary Agency Staff,30-Mar-11,225.12
http://statistics.data.gov.uk/id/local-authority-district/23UB,Cheltenham Borough Council,445659,504805,COMENSURA LIMITED,C-E63100-0115,Cemetery & Crem-Temporary Agency Staff,30-Mar-11,230.48
http://statistics.data.gov.uk/id/local-authority-district/23UB,Cheltenham Borough Council,445652,504393,COMENSURA LIMITED,C-E63100-0115,Cemetery & Crem-Temporary Agency Staff,30-Mar-11,214.40
http://statistics.data.gov.uk/id/local-authority-district/23UB,Cheltenham Borough Council,445659,504805,COMENSURA LIMITED,C-E63100-0115,Cemetery & Crem-Temporary Agency Staff,30-Mar-11,313.02
http://statistics.data.gov.uk/id/local-authority-district/23UB,Cheltenham Borough Council,445658,504599,COMENSURA LIMITED,C-E72500-0115,Built Env Div-Temporary Agency Staff,30-Mar-11,101.52
http://statistics.data.gov.uk/id/local-authority-district/23UB,Cheltenham Borough Council,445652,504393,COMENSURA LIMITED,C-E75500-0115,Intgd Tran Div-Temporary Agency Staff,30-Mar-11,510.26
http://statistics.data.gov.uk/id/local-authority-district/23UB,Cheltenham Borough Council,445658,504599,COMENSURA LIMITED,C-E75500-0115,Intgd Tran Div-Temporary Agency Staff,30-Mar-11,500.98
http://statistics.data.gov.uk/id/local-authority-district/23UB,Cheltenham Borough Council,443365,3623,CLIVE CONWAY,C-0T26L1-3568,J Lloyd Webber-Artist Fees,04-Mar-11,"3,150.00"
http://statistics.data.gov.uk/id/local-authority-district/23UB,Cheltenham Borough Council,444680,COOMBS 1152,COOMBS PROPERTY SERVICES LTD,C-HC4069-C302,Fire Protection-Building Contractor,23-Mar-11,"10,756.90"
http://statistics.data.gov.uk/id/local-authority-district/23UB,Cheltenham Borough Council,443659,013954,CORY ENVIRONMENTAL LTD,C-C23100-3581,Refuse Collctn-Tipping charges,04-Mar-11,"4,802.27"
http://statistics.data.gov.uk/id/local-authority-district/23UB,Cheltenham Borough Council,443857,014165,CORY ENVIRONMENTAL LTD,C-C23100-3581,Refuse Collctn-Tipping charges,09-Mar-11,"5,095.80"
http://statistics.data.gov.uk/id/local-authority-district/23UB,Cheltenham Borough Council,445090,014117,CORY ENVIRONMENTAL LTD,C-C23100-3581,Refuse Collctn-Tipping charges,23-Mar-11,"4,818.66"
http://statistics.data.gov.uk/id/local-authority-district/23UB,Cheltenham Borough Council,445097,014281,CORY ENVIRONMENTAL LTD,C-C23100-3581,Refuse Collctn-Tipping charges,23-Mar-11,"4,702.44"
http://statistics.data.gov.uk/id/local-authority-district/23UB,Cheltenham Borough Council,445092,014217,CORY ENVIRONMENTAL LTD,C-C23100-3581,Refuse Collctn-Tipping charges,23-Mar-11,"4,532.58"
http://statistics.data.gov.uk/id/local-authority-district/23UB,Cheltenham Borough Council,445672,014336,CORY ENVIRONMENTAL LTD,C-C23100-3581,Refuse Collctn-Tipping charges,31-Mar-11,"4,715.85"
http://statistics.data.gov.uk/id/local-authority-district/23UB,Cheltenham Borough Council,445647,2644,CORNERSTONE LEARNING LTD,C-D12310-0205,Corporate Trg-Training fees/exp (Corp),30-Mar-11,"3,150.00"
http://statistics.data.gov.uk/id/local-authority-district/23UB,Cheltenham Borough Council,445445,A2/2009/1429,MR JAMES CORNWELL,C-D12205-3676,Specialist Legal Advice,30-Mar-11,"4,560.00"
http://statistics.data.gov.uk/id/local-authority-district/23UB,Cheltenham Borough Council,445084,622,SYREETA CORNWALL,C-D38850-3801,Youth Affairs-Grants,23-Mar-11,650.00
http://statistics.data.gov.uk/id/local-authority-district/23UB,Cheltenham Borough Council,445610,CT/NNDR LEAFLE,COTSWOLD DISTRICT  COUNCIL,C-D12445-3920,CT Leaflet-Advertising,30-Mar-11,965.09
http://statistics.data.gov.uk/id/local-authority-district/23UB,Cheltenham Borough Council,443757,OCT A/C,COTSWOLD & GLOS TOURIST GUIDES ASSOC.,C-Z12310-3941,TIC Agency-Coach Tours - Expenses,04-Mar-11,525.00
http://statistics.data.gov.uk/id/local-authority-district/23UB,Cheltenham Borough Council,443757,OCT A/C,COTSWOLD & GLOS TOURIST GUIDES ASSOC.,C-Z12310-3945,TIC Agency-Walking Tours Expenses,04-Mar-11,392.40
http://statistics.data.gov.uk/id/local-authority-district/23UB,Cheltenham Borough Council,444601,26437,COTSWOLD ESTATES & GARDENS,C-LC6015-C405,LeckhamptonHill-Specialist Contractor,16-Mar-11,"38,176.87"
http://statistics.data.gov.uk/id/local-authority-district/23UB,Cheltenham Borough Council,445255,P117 CERT 07,COTSWOLD ESTATES & GARDENS,C-LC6015-C405,LeckhamptonHill-Specialist Contractor,24-Mar-11,"17,884.14"
http://statistics.data.gov.uk/id/local-authority-district/23UB,Cheltenham Borough Council,443367,884,COUNTY COMMUNITY PROJECTS,C-D21950-3501,Community Plan-Hire of outside services,04-Mar-11,"1,572.00"
http://statistics.data.gov.uk/id/local-authority-district/23UB,Cheltenham Borough Council,445415,897,COUNTY COMMUNITY PROJECTS,C-D38850-3801,Youth Affairs-Grants,30-Mar-11,"1,572.00"
http://statistics.data.gov.uk/id/local-authority-district/23UB,Cheltenham Borough Council,445438,903,COUNTY COMMUNITY PROJECTS,C-D38850-3801,Youth Affairs-Grants,30-Mar-11,863.00
http://statistics.data.gov.uk/id/local-authority-district/23UB,Cheltenham Borough Council,444593,SETTLEMENT,MRS R CREED T/A HOWLERS COMEDY CLUB,C-N13125-9205,ASH Ledger-Town Hall Invoices Paid,16-Mar-11,-466.42
http://statistics.data.gov.uk/id/local-authority-district/23UB,Cheltenham Borough Council,444593,SETTLEMENT,MRS R CREED T/A HOWLERS COMEDY CLUB,C-Z12210-9138,Box Off A/C-TH Hirers Tkt Pd out,16-Mar-11,"2,458.00"
http://statistics.data.gov.uk/id/local-authority-district/23UB,Cheltenham Borough Council,444754,782735,CRIMINAL RECORDS BUREAU,C-A21500-3501,Licensing-Hire of outside services,23-Mar-11,612.00
http://statistics.data.gov.uk/id/local-authority-district/23UB,Cheltenham Borough Council,444180,REDACTED,REDACTED,C-P12250-9104,Tenants Rent-Refunds,11-Mar-11,"1,496.55"
http://statistics.data.gov.uk/id/local-authority-district/23UB,Cheltenham Borough Council,445115,110036,DEEPCLEAN HYGIENE SOLUTIONS LTD,C-L21100-3501,Town Hall-Hire of outside services,23-Mar-11,"1,592.00"
http://statistics.data.gov.uk/id/local-authority-district/23UB,Cheltenham Borough Council,445371,39013,DELAWARE COMMUNICATIONS PLC,C-E61500-3103,CCTV/TC Safety-Equipment repairs & maint,30-Mar-11,"1,419.17"
http://statistics.data.gov.uk/id/local-authority-district/23UB,Cheltenham Borough Council,445372,39012,DELAWARE COMMUNICATIONS PLC,C-E61500-3103,CCTV/TC Safety-Equipment repairs & maint,30-Mar-11,"1,419.17"
http://statistics.data.gov.uk/id/local-authority-district/23UB,Cheltenham Borough Council,444608,27802,R DELAMORE LTD,C-C22140-3127,Nursery-Materials-Bedding,18-Mar-11,"1,171.60"
http://statistics.data.gov.uk/id/local-authority-district/23UB,Cheltenham Borough Council,444608,27802,R DELAMORE LTD,C-C22140-3127,Nursery-Materials-Bedding,18-Mar-11,25.00
http://statistics.data.gov.uk/id/local-authority-district/23UB,Cheltenham Borough Council,443740,DE30025581,DENNIS EAGLE,C-C24100-3582,Fleet Maint-DSO Invoices,04-Mar-11,-312.97
http://statistics.data.gov.uk/id/local-authority-district/23UB,Cheltenham Borough Council,443332,DE10536997,DENNIS EAGLE,C-C24100-3582,Fleet Maint-DSO Invoices,04-Mar-11,399.93
http://statistics.data.gov.uk/id/local-authority-district/23UB,Cheltenham Borough Council,443319,DE10536680,DENNIS EAGLE,C-C24100-3582,Fleet Maint-DSO Invoices,04-Mar-11,87.84
http://statistics.data.gov.uk/id/local-authority-district/23UB,Cheltenham Borough Council,443382,DE10537881,DENNIS EAGLE,C-C24100-3582,Fleet Maint-DSO Invoices,04-Mar-11,161.65
http://statistics.data.gov.uk/id/local-authority-district/23UB,Cheltenham Borough Council,443381,DE10538196,DENNIS EAGLE,C-C24100-3582,Fleet Maint-DSO Invoices,04-Mar-11,380.30
http://statistics.data.gov.uk/id/local-authority-district/23UB,Cheltenham Borough Council,443320,DE10537560,DENNIS EAGLE,C-C24100-3582,Fleet Maint-DSO Invoices,04-Mar-11,18.96
http://statistics.data.gov.uk/id/local-authority-district/23UB,Cheltenham Borough Council,443739,DE10539043,DENNIS EAGLE,C-C24100-3582,Fleet Maint-DSO Invoices,04-Mar-11,210.31
http://statistics.data.gov.uk/id/local-authority-district/23UB,Cheltenham Borough Council,445044,D85833,DENNIS EAGLE,C-C24100-2302,Fleet Maint-Vehicle licences,23-Mar-11,747.00
http://statistics.data.gov.uk/id/local-authority-district/23UB,Cheltenham Borough Council,445047,D85830,DENNIS EAGLE,C-C24100-2302,Fleet Maint-Vehicle licences,23-Mar-11,747.00
http://statistics.data.gov.uk/id/local-authority-district/23UB,Cheltenham Borough Council,445046,D85831,DENNIS EAGLE,C-C24100-2302,Fleet Maint-Vehicle licences,23-Mar-11,747.00
http://statistics.data.gov.uk/id/local-authority-district/23UB,Cheltenham Borough Council,445045,D85832,DENNIS EAGLE,C-C24100-2302,Fleet Maint-Vehicle licences,23-Mar-11,747.00
http://statistics.data.gov.uk/id/local-authority-district/23UB,Cheltenham Borough Council,444882,DE10540870,DENNIS EAGLE,C-C24100-3582,Fleet Maint-DSO Invoices,23-Mar-11,30.08
http://statistics.data.gov.uk/id/local-authority-district/23UB,Cheltenham Borough Council,444870,000175,DEVELOPING POTENTIAL UK LIMITED,C-D12310-0205,Corporate Trg-Training fees/exp (Corp),23-Mar-11,"2,500.00"
http://statistics.data.gov.uk/id/local-authority-district/23UB,Cheltenham Borough Council,445242,REDACTED,REDACTED,C-H22400-3244,Homelessness-Supporting People,24-Mar-11,500.00
http://statistics.data.gov.uk/id/local-authority-district/23UB,Cheltenham Borough Council,444325,197703,DOMESTIC AND GENERAL INSULATION LTD,C-HC4076-C302,Loft/Cavity Ins-Building Contractor,24-Mar-11,199.00
http://statistics.data.gov.uk/id/local-authority-district/23UB,Cheltenham Borough Council,444326,197705,DOMESTIC AND GENERAL INSULATION LTD,C-HC4076-C302,Loft/Cavity Ins-Building Contractor,24-Mar-11,199.00
http://statistics.data.gov.uk/id/local-authority-district/23UB,Cheltenham Borough Council,444327,197702,DOMESTIC AND GENERAL INSULATION LTD,C-HC4076-C302,Loft/Cavity Ins-Building Contractor,24-Mar-11,199.00
http://statistics.data.gov.uk/id/local-authority-district/23UB,Cheltenham Borough Council,444328,197704,DOMESTIC AND GENERAL INSULATION LTD,C-HC4076-C302,Loft/Cavity Ins-Building Contractor,24-Mar-11,199.00
http://statistics.data.gov.uk/id/local-authority-district/23UB,Cheltenham Borough Council,444330,197743,DOMESTIC AND GENERAL INSULATION LTD,C-HC4076-C302,Loft/Cavity Ins-Building Contractor,24-Mar-11,199.00
http://statistics.data.gov.uk/id/local-authority-district/23UB,Cheltenham Borough Council,444332,197711,DOMESTIC AND GENERAL INSULATION LTD,C-HC4076-C302,Loft/Cavity Ins-Building Contractor,24-Mar-11,199.00
http://statistics.data.gov.uk/id/local-authority-district/23UB,Cheltenham Borough Council,444338,198963,DOMESTIC AND GENERAL INSULATION LTD,C-HC4076-C302,Loft/Cavity Ins-Building Contractor,24-Mar-11,199.00
http://statistics.data.gov.uk/id/local-authority-district/23UB,Cheltenham Borough Council,444337,198339,DOMESTIC AND GENERAL INSULATION LTD,C-HC4076-C302,Loft/Cavity Ins-Building Contractor,24-Mar-11,199.00
http://statistics.data.gov.uk/id/local-authority-district/23UB,Cheltenham Borough Council,444336,197740,DOMESTIC AND GENERAL INSULATION LTD,C-HC4076-C302,Loft/Cavity Ins-Building Contractor,24-Mar-11,255.00
http://statistics.data.gov.uk/id/local-authority-district/23UB,Cheltenham Borough Council,444335,197699,DOMESTIC AND GENERAL INSULATION LTD,C-HC4076-C302,Loft/Cavity Ins-Building Contractor,24-Mar-11,245.00
http://statistics.data.gov.uk/id/local-authority-district/23UB,Cheltenham Borough Council,444334,197718,DOMESTIC AND GENERAL INSULATION LTD,C-HC4076-C302,Loft/Cavity Ins-Building Contractor,24-Mar-11,189.52
http://statistics.data.gov.uk/id/local-authority-district/23UB,Cheltenham Borough Council,444333,197714,DOMESTIC AND GENERAL INSULATION LTD,C-HC4076-C302,Loft/Cavity Ins-Building Contractor,24-Mar-11,189.52
http://statistics.data.gov.uk/id/local-authority-district/23UB,Cheltenham Borough Council,444331,197708,DOMESTIC AND GENERAL INSULATION LTD,C-HC4076-C302,Loft/Cavity Ins-Building Contractor,24-Mar-11,199.00
http://statistics.data.gov.uk/id/local-authority-district/23UB,Cheltenham Borough Council,444329,197742,DOMESTIC AND GENERAL INSULATION LTD,C-HC4076-C302,Loft/Cavity Ins-Building Contractor,24-Mar-11,199.00
http://statistics.data.gov.uk/id/local-authority-district/23UB,Cheltenham Borough Council,444035,050211,DORCHESTER HOUSE TRUST,C-H22400-5204,Homelessness-Provision of accommo(B&B),09-Mar-11,"1,001.50"
http://statistics.data.gov.uk/id/local-authority-district/23UB,Cheltenham Borough Council,443832,407156,DTZ,C-E21100-1106,Car Prks-Off St-Reg Arcade-fixed mnt cst,09-Mar-11,"14,250.00"
http://statistics.data.gov.uk/id/local-authority-district/23UB,Cheltenham Borough Council,445497,768511,DYFED STEELS LTD,C-C22110-1301,Parks & Gardens-Routine grounds maint,30-Mar-11,"1,619.56"
http://statistics.data.gov.uk/id/local-authority-district/23UB,Cheltenham Borough Council,445498,767140,DYFED STEELS LTD,C-C22110-1301,Parks & Gardens-Routine grounds maint,30-Mar-11,272.00
http://statistics.data.gov.uk/id/local-authority-district/23UB,Cheltenham Borough Council,445500,764127,DYFED STEELS LTD,C-C22110-1301,Parks & Gardens-Routine grounds maint,30-Mar-11,115.90
http://statistics.data.gov.uk/id/local-authority-district/23UB,Cheltenham Borough Council,445501,764797,DYFED STEELS LTD,C-C22110-1301,Parks & Gardens-Routine grounds maint,30-Mar-11,661.00
http://statistics.data.gov.uk/id/local-authority-district/23UB,Cheltenham Borough Council,445499,764796,DYFED STEELS LTD,C-C22110-1301,Parks & Gardens-Routine grounds maint,30-Mar-11,250.10
http://statistics.data.gov.uk/id/local-authority-district/23UB,Cheltenham Borough Council,445498,767140,DYFED STEELS LTD,C-C22110-1301,Parks & Gardens-Routine grounds maint,30-Mar-11,65.00
http://statistics.data.gov.uk/id/local-authority-district/23UB,Cheltenham Borough Council,444790,05,EAST GLOS TENNIS CLUB,C-L17300-3501,Sport Dev-Hire of outside services,23-Mar-11,"2,500.00"
http://statistics.data.gov.uk/id/local-authority-district/23UB,Cheltenham Borough Council,444849,201100000140/977,C B RICHARD ELLIS,C-D13550-1501,Area Off -E.Hse-Rents,23-Mar-11,"17,170.50"
http://statistics.data.gov.uk/id/local-authority-district/23UB,Cheltenham Borough Council,443490,8153,EMMDEE BUILDING SERVICES,C-C22140-1801,Nursery-RM-Electrical repairs,04-Mar-11,27.70
http://statistics.data.gov.uk/id/local-authority-district/23UB,Cheltenham Borough Council,443700,8147,EMMDEE BUILDING SERVICES,C-D13100-1801,Muni Off Blgs-RM-Electrical repairs,04-Mar-11,"2,215.20"
http://statistics.data.gov.uk/id/local-authority-district/23UB,Cheltenham Borough Council,443705,8182,EMMDEE BUILDING SERVICES,C-D13100-1801,Muni Off Blgs-RM-Electrical repairs,04-Mar-11,152.70
http://statistics.data.gov.uk/id/local-authority-district/23UB,Cheltenham Borough Council,443491,8154,EMMDEE BUILDING SERVICES,C-D13500-1801,Area Off -C.Sqr-RM-Electrical repairs,04-Mar-11,194.90
http://statistics.data.gov.uk/id/local-authority-district/23UB,Cheltenham Borough Council,443492,8155,EMMDEE BUILDING SERVICES,C-D14100-1801,Depot Building-RM-Electrical repairs,04-Mar-11,418.30
http://statistics.data.gov.uk/id/local-authority-district/23UB,Cheltenham Borough Council,443703,8158,EMMDEE BUILDING SERVICES,C-E21100-1801,Car Prks-Off St-RM-Electrical repairs,04-Mar-11,59.20
http://statistics.data.gov.uk/id/local-authority-district/23UB,Cheltenham Borough Council,443698,8157,EMMDEE BUILDING SERVICES,C-E21400-1801,Shopmobility-RM-Electrical repairs         ,04-Mar-11,63.00
http://statistics.data.gov.uk/id/local-authority-district/23UB,Cheltenham Borough Council,443493,8156,EMMDEE BUILDING SERVICES,C-E63100-1801,Cemetery & Crem-RM-Electrical repairs,04-Mar-11,116.60
http://statistics.data.gov.uk/id/local-authority-district/23UB,Cheltenham Borough Council,443704,8169,EMMDEE BUILDING SERVICES,C-L11500-1801,Rec Facilities-RM-Electrical repairs,04-Mar-11,78.75
http://statistics.data.gov.uk/id/local-authority-district/23UB,Cheltenham Borough Council,443701,8148,EMMDEE BUILDING SERVICES,C-L21100-1801,Town Hall-RM-Electrical repairs,04-Mar-11,295.30
http://statistics.data.gov.uk/id/local-authority-district/23UB,Cheltenham Borough Council,443702,8149,EMMDEE BUILDING SERVICES,C-L21200-1801,Pump Room-RM-Electrical repairs,04-Mar-11,105.60
http://statistics.data.gov.uk/id/local-authority-district/23UB,Cheltenham Borough Council,443489,8150,EMMDEE BUILDING SERVICES,C-L41100-1801,AG & M-RM-Electrical repairs,04-Mar-11,393.80
http://statistics.data.gov.uk/id/local-authority-district/23UB,Cheltenham Borough Council,444196,CERT H01435 INS,EMMDEE BUILDING SERVICES,C-HC4058-C302,Naseby Hse Gutt-Building Contractor,11-Mar-11,"31,058.06"
http://statistics.data.gov.uk/id/local-authority-district/23UB,Cheltenham Borough Council,444687,8275,EMMDEE BUILDING SERVICES,C-D13100-1801,Muni Off Blgs-RM-Electrical repairs,23-Mar-11,122.50
http://statistics.data.gov.uk/id/local-authority-district/23UB,Cheltenham Borough Council,444688,8228,EMMDEE BUILDING SERVICES,C-D13100-1801,Muni Off Blgs-RM-Electrical repairs,23-Mar-11,232.33
http://statistics.data.gov.uk/id/local-authority-district/23UB,Cheltenham Borough Council,444689,8227,EMMDEE BUILDING SERVICES,C-L11500-1801,Rec Facilities-RM-Electrical repairs,23-Mar-11,78.75
http://statistics.data.gov.uk/id/local-authority-district/23UB,Cheltenham Borough Council,444690,8151,EMMDEE BUILDING SERVICES,C-L11500-1801,Rec Facilities-RM-Electrical repairs,23-Mar-11,410.00
http://statistics.data.gov.uk/id/local-authority-district/23UB,Cheltenham Borough Council,445175,8168,EMMDEE BUILDING SERVICES,C-L21200-3103,Pump Room-Equipment repairs & maint,23-Mar-11,45.00
http://statistics.data.gov.uk/id/local-authority-district/23UB,Cheltenham Borough Council,444875,301267/2/2011,ENER-G,C-L11500-1402,Rec Facilities-Electricity,23-Mar-11,"2,669.03"
http://statistics.data.gov.uk/id/local-authority-district/23UB,Cheltenham Borough Council,445369,1130576,ENVIRONMENT AGENCY,C-E61600-3179,Contaminatd Lnd-Marle Hill revenue expen,30-Mar-11,"12,891.00"
http://statistics.data.gov.uk/id/local-authority-district/23UB,Cheltenham Borough Council,444199,CERT H01437 INS,ENVIRONMENTAL MANAGEMENT SOLUTIONS LTD,C-HC4064-C302,Asbestos Manage-Building Contractor,11-Mar-11,"5,958.07"
http://statistics.data.gov.uk/id/local-authority-district/23UB,Cheltenham Borough Council,445245,H14455,ENVIRONMENTAL MANAGEMENT SOLUTIONS LTD,C-HC4064-C302,Asbestos Manage-Building Contractor,24-Mar-11,"10,796.00"
http://statistics.data.gov.uk/id/local-authority-district/23UB,Cheltenham Borough Council,443931,1533,ERADICURE LIMITED,C-H4213G-1104,Gen Wks 2213-Council House repairs,09-Mar-11,"1,980.00"
http://statistics.data.gov.uk/id/local-authority-district/23UB,Cheltenham Borough Council,443932,1534,ERADICURE LIMITED,C-H4214G-1104,Gen Wks 2214-Council House repairs,09-Mar-11,"1,080.00"
http://statistics.data.gov.uk/id/local-authority-district/23UB,Cheltenham Borough Council,444843,1545,ERADICURE LIMITED,C-H4206G-1104,Gen Wks 2206-Council House repairs,23-Mar-11,50.00
http://statistics.data.gov.uk/id/local-authority-district/23UB,Cheltenham Borough Council,444842,1539,ERADICURE LIMITED,C-H4213G-1104,Gen Wks 2213-Council House repairs,23-Mar-11,850.00
http://statistics.data.gov.uk/id/local-authority-district/23UB,Cheltenham Borough Council,444841,1544,ERADICURE LIMITED,C-H4214G-1104,Gen Wks 2214-Council House repairs,23-Mar-11,50.00
http://statistics.data.gov.uk/id/local-authority-district/23UB,Cheltenham Borough Council,445759,1503,ERADICURE LIMITED,C-HC4071-C302,Struct/Damp Wks-Building Contractor,31-Mar-11,"4,850.00"
http://statistics.data.gov.uk/id/local-authority-district/23UB,Cheltenham Borough Council,445124,1108370,ERMIN PLANT HIRE SERVICE LIMITED,C-C22140-3105,Nursery-Plant/tools(& Hire),23-Mar-11,90.00
http://statistics.data.gov.uk/id/local-authority-district/23UB,Cheltenham Borough Council,444830,1102391,ERMIN PLANT HIRE SERVICE LIMITED,C-C23120-3501,Recycling Cntr-Hire of outside services,23-Mar-11,-83.13
http://statistics.data.gov.uk/id/local-authority-district/23UB,Cheltenham Borough Council,444830,1102391,ERMIN PLANT HIRE SERVICE LIMITED,C-C23120-3501,Recycling Cntr-Hire of outside services,23-Mar-11,835.30
http://statistics.data.gov.uk/id/local-authority-district/23UB,Cheltenham Borough Council,444775,3578,ESI LIMITED,C-E61600-3173,Contaminatd Lnd-Exp-Sandy Lane Playg Fld,23-Mar-11,827.31
http://statistics.data.gov.uk/id/local-authority-district/23UB,Cheltenham Borough Council,444712,3579,ESI LIMITED,C-E61600-3174,Contaminatd Lnd-Exp-Church Piece Plyg Fl,23-Mar-11,"1,168.29"
http://statistics.data.gov.uk/id/local-authority-district/23UB,Cheltenham Borough Council,443765,54692,EUROLINK SECURITY INSTALLATIONS LIMITED,C-E21100-1114,Car Prks-Off St-Security systems,04-Mar-11,210.00
http://statistics.data.gov.uk/id/local-authority-district/23UB,Cheltenham Borough Council,443766,54691,EUROLINK SECURITY INSTALLATIONS LIMITED,C-E21100-1114,Car Prks-Off St-Security systems,04-Mar-11,210.00
http://statistics.data.gov.uk/id/local-authority-district/23UB,Cheltenham Borough Council,443764,54751,EUROLINK SECURITY INSTALLATIONS LIMITED,C-EC0033-C601,Car Parks CCTV-Equipment,04-Mar-11,"7,100.00"
http://statistics.data.gov.uk/id/local-authority-district/23UB,Cheltenham Borough Council,445684,47376191,EXOR CORPORATION LTD,C-C22100-3623,Green Env Div-Cmpter-sftwre lic purch,31-Mar-11,480.13
http://statistics.data.gov.uk/id/local-authority-district/23UB,Cheltenham Borough Council,445684,47376191,EXOR CORPORATION LTD,C-C22100-3623,Green Env Div-Cmpter-sftwre lic purch,31-Mar-11,653.96
http://statistics.data.gov.uk/id/local-authority-district/23UB,Cheltenham Borough Council,445684,47376191,EXOR CORPORATION LTD,C-C23160-3623,Env Maint Div-Cmpter-sftwre lic purch,31-Mar-11,"1,800.00"
http://statistics.data.gov.uk/id/local-authority-district/23UB,Cheltenham Borough Council,445684,47376191,EXOR CORPORATION LTD,C-C23160-3623,Env Maint Div-Cmpter-sftwre lic purch,31-Mar-11,505.00
http://statistics.data.gov.uk/id/local-authority-district/23UB,Cheltenham Borough Council,445684,47376191,EXOR CORPORATION LTD,C-C23160-3623,Env Maint Div-Cmpter-sftwre lic purch,31-Mar-11,"1,149.11"
http://statistics.data.gov.uk/id/local-authority-district/23UB,Cheltenham Borough Council,445684,47376191,EXOR CORPORATION LTD,C-C23160-3623,Env Maint Div-Cmpter-sftwre lic purch,31-Mar-11,"1,278.13"
http://statistics.data.gov.uk/id/local-authority-district/23UB,Cheltenham Borough Council,444867,IEX300899537,EXPERIAN LTD,C-H22400-3833,Homelessness-Credit Referencing,23-Mar-11,872.00
http://statistics.data.gov.uk/id/local-authority-district/23UB,Cheltenham Borough Council,443798,3616/2/11,3D EYE LTD,C-L41100-3256,AG & M-Fine Form Horse Parade exp         ,09-Mar-11,"1,440.00"
http://statistics.data.gov.uk/id/local-authority-district/23UB,Cheltenham Borough Council,445689,954,FAIRFORD TREE SERVICES,C-C22120-1305,Spts/Open Space-Tree surgery,31-Mar-11,"2,000.00"
http://statistics.data.gov.uk/id/local-authority-district/23UB,Cheltenham Borough Council,445689,954,FAIRFORD TREE SERVICES,C-C22120-1314,Spts/Open Space-Reinstatement (Trees),31-Mar-11,825.00
http://statistics.data.gov.uk/id/local-authority-district/23UB,Cheltenham Borough Council,443844,SI118184,FLEET LINE MARKERS LTD,C-C22120-3121,Spts/Open Space-Materials-Contract,09-Mar-11,877.50
http://statistics.data.gov.uk/id/local-authority-district/23UB,Cheltenham Borough Council,445117,51118681,FLEET LINE MARKERS LTD,C-C22120-3121,Spts/Open Space-Materials-Contract,23-Mar-11,877.50
http://statistics.data.gov.uk/id/local-authority-district/23UB,Cheltenham Borough Council,443379,V1416,FLYING ENTERTAINMENT LIMITED,C-0T11K1-3568,Solid Silver 60-Artist Fees                    ,04-Mar-11,"4,000.00"
http://statistics.data.gov.uk/id/local-authority-district/23UB,Cheltenham Borough Council,445609,C/TAX NNDR LEF,FOREST OF DEAN DISTRICT COUNCIL,C-D12445-3920,CT Leaflet-Advertising,30-Mar-11,"1,045.66"
http://statistics.data.gov.uk/id/local-authority-district/23UB,Cheltenham Borough Council,443375,27041,FOSTERS EVENT CATERING,C-0T03L1-3569,Felix Dexter-Artist Expenses(TravAccomRi,04-Mar-11,6.04
http://statistics.data.gov.uk/id/local-authority-district/23UB,Cheltenham Borough Council,443374,27097,FOSTERS EVENT CATERING,C-0T50M0-3569,Lunchtime Recit-Artist Expenses(TravAcco          ,04-Mar-11,7.50
http://statistics.data.gov.uk/id/local-authority-district/23UB,Cheltenham Borough Council,443373,27094,FOSTERS EVENT CATERING,C-0T70L0-3569,Folk Festival-Artist Expenses(TravAccomR,04-Mar-11,605.16
http://statistics.data.gov.uk/id/local-authority-district/23UB,Cheltenham Borough Council,445352,REDACTED,V FRY AND SONS,C-HC7400-C801,H&S Grant-Grants,30-Mar-11,"9,493.20"
http://statistics.data.gov.uk/id/local-authority-district/23UB,Cheltenham Borough Council,445075,5177,FUTRA LTD,C-C24150-3170,Fleet Managemnt-Fuel system maintenance,23-Mar-11,904.00
http://statistics.data.gov.uk/id/local-authority-district/23UB,Cheltenham Borough Council,444625,SIN021197,FWAG,C-C22120-1304,Spts/Open Space-Nature conservation,24-Mar-11,150.00
http://statistics.data.gov.uk/id/local-authority-district/23UB,Cheltenham Borough Council,444626,SIN021518,FWAG,C-C22120-1304,Spts/Open Space-Nature conservation,24-Mar-11,25.00
http://statistics.data.gov.uk/id/local-authority-district/23UB,Cheltenham Borough Council,444626,SIN021518,FWAG,C-C22120-1304,Spts/Open Space-Nature conservation,24-Mar-11,400.00
http://statistics.data.gov.uk/id/local-authority-district/23UB,Cheltenham Borough Council,444625,SIN021197,FWAG,C-C22120-1304,Spts/Open Space-Nature conservation,24-Mar-11,25.00
http://statistics.data.gov.uk/id/local-authority-district/23UB,Cheltenham Borough Council,445100,89,GASKINS,C-C22110-1305,Parks & Gardens-Tree surgery,23-Mar-11,342.00
http://statistics.data.gov.uk/id/local-authority-district/23UB,Cheltenham Borough Council,445098,88,GASKINS,C-C22110-1312,Parks & Gardens-Annual felling prog,23-Mar-11,32.00
http://statistics.data.gov.uk/id/local-authority-district/23UB,Cheltenham Borough Council,445105,90,GASKINS,C-C22120-1305,Spts/Open Space-Tree surgery,23-Mar-11,"1,134.00"
http://statistics.data.gov.uk/id/local-authority-district/23UB,Cheltenham Borough Council,445098,88,GASKINS,C-C22120-1312,Spts/Open Space-Annual felling prog,23-Mar-11,40.00
http://statistics.data.gov.uk/id/local-authority-district/23UB,Cheltenham Borough Council,445190,B57857,GEESINK NORBA,C-C24100-3501,Fleet Maint-Hire of outside services,23-Mar-11,"1,111.90"
http://statistics.data.gov.uk/id/local-authority-district/23UB,Cheltenham Borough Council,445189,B57858,GEESINK NORBA,C-C24100-3501,Fleet Maint-Hire of outside services,23-Mar-11,270.66
http://statistics.data.gov.uk/id/local-authority-district/23UB,Cheltenham Borough Council,445188,B57839,GEESINK NORBA,C-C24100-3582,Fleet Maint-DSO Invoices,23-Mar-11,722.24
http://statistics.data.gov.uk/id/local-authority-district/23UB,Cheltenham Borough Council,445187,B57971,GEESINK NORBA,C-C24100-3582,Fleet Maint-DSO Invoices,23-Mar-11,126.96
http://statistics.data.gov.uk/id/local-authority-district/23UB,Cheltenham Borough Council,444198,CERT H01436 INS,THE GENERAL ASPHALTE COMPANY,C-HC4057-C302,Haywds Rd Roof-Building Contractor,11-Mar-11,"32,289.95"
http://statistics.data.gov.uk/id/local-authority-district/23UB,Cheltenham Borough Council,444937,RND124/02/11,GILLMANS SERVICE,C-H33400-3102,Sheltered.Hsg-Equipment rental,23-Mar-11,31.45
http://statistics.data.gov.uk/id/local-authority-district/23UB,Cheltenham Borough Council,444946,RND125/01/11,GILLMANS SERVICE,C-H33400-3102,Sheltered.Hsg-Equipment rental,23-Mar-11,34.15
http://statistics.data.gov.uk/id/local-authority-district/23UB,Cheltenham Borough Council,444945,RND1126/01/11,GILLMANS SERVICE,C-H33400-3102,Sheltered.Hsg-Equipment rental,23-Mar-11,42.00
http://statistics.data.gov.uk/id/local-authority-district/23UB,Cheltenham Borough Council,444944,RND1107/01/11,GILLMANS SERVICE,C-H33400-3102,Sheltered.Hsg-Equipment rental,23-Mar-11,33.95
http://statistics.data.gov.uk/id/local-authority-district/23UB,Cheltenham Borough Council,444943,RND1126/02/11,GILLMANS SERVICE,C-H33400-3102,Sheltered.Hsg-Equipment rental,23-Mar-11,42.00
http://statistics.data.gov.uk/id/local-authority-district/23UB,Cheltenham Borough Council,444942,RND1107/02/11,GILLMANS SERVICE,C-H33400-3102,Sheltered.Hsg-Equipment rental,23-Mar-11,33.95
http://statistics.data.gov.uk/id/local-authority-district/23UB,Cheltenham Borough Council,444941,RND125/02/11,GILLMANS SERVICE,C-H33400-3102,Sheltered.Hsg-Equipment rental,23-Mar-11,34.15
http://statistics.data.gov.uk/id/local-authority-district/23UB,Cheltenham Borough Council,444940,RND124/01/11,GILLMANS SERVICE,C-H33400-3102,Sheltered.Hsg-Equipment rental,23-Mar-11,31.45
http://statistics.data.gov.uk/id/local-authority-district/23UB,Cheltenham Borough Council,444939,RND1203/01/11,GILLMANS SERVICE,C-H33400-3102,Sheltered.Hsg-Equipment rental,23-Mar-11,59.65
http://statistics.data.gov.uk/id/local-authority-district/23UB,Cheltenham Borough Council,444938,RND1203/02/11,GILLMANS SERVICE,C-H33400-3102,Sheltered.Hsg-Equipment rental,23-Mar-11,59.65
http://statistics.data.gov.uk/id/local-authority-district/23UB,Cheltenham Borough Council,444955,RND1143/01/11,GILLMANS SERVICE,C-H33400-3102,Sheltered.Hsg-Equipment rental,23-Mar-11,46.60
http://statistics.data.gov.uk/id/local-authority-district/23UB,Cheltenham Borough Council,444954,RND1143/02/11,GILLMANS SERVICE,C-H33400-3102,Sheltered.Hsg-Equipment rental,23-Mar-11,46.60
http://statistics.data.gov.uk/id/local-authority-district/23UB,Cheltenham Borough Council,444953,RND1180/02/11,GILLMANS SERVICE,C-H33400-3102,Sheltered.Hsg-Equipment rental,23-Mar-11,50.55
http://statistics.data.gov.uk/id/local-authority-district/23UB,Cheltenham Borough Council,444952,RND1211/01/11,GILLMANS SERVICE,C-H33400-3102,Sheltered.Hsg-Equipment rental,23-Mar-11,60.09
http://statistics.data.gov.uk/id/local-authority-district/23UB,Cheltenham Borough Council,444951,RND1179/0/11,GILLMANS SERVICE,C-H33400-3102,Sheltered.Hsg-Equipment rental,23-Mar-11,60.09
http://statistics.data.gov.uk/id/local-authority-district/23UB,Cheltenham Borough Council,444950,RND190/01/11,GILLMANS SERVICE,C-H33400-3102,Sheltered.Hsg-Equipment rental,23-Mar-11,35.00
http://statistics.data.gov.uk/id/local-authority-district/23UB,Cheltenham Borough Council,444949,RND182/01/11,GILLMANS SERVICE,C-H33400-3102,Sheltered.Hsg-Equipment rental,23-Mar-11,73.65
http://statistics.data.gov.uk/id/local-authority-district/23UB,Cheltenham Borough Council,444948,RND187/01/11,GILLMANS SERVICE,C-H33400-3102,Sheltered.Hsg-Equipment rental,23-Mar-11,141.90
http://statistics.data.gov.uk/id/local-authority-district/23UB,Cheltenham Borough Council,444947,RND187/02/11,GILLMANS SERVICE,C-H33400-3102,Sheltered.Hsg-Equipment rental,23-Mar-11,141.90
http://statistics.data.gov.uk/id/local-authority-district/23UB,Cheltenham Borough Council,444976,RND113/01/11,GILLMANS SERVICE,C-H33400-3102,Sheltered.Hsg-Equipment rental,23-Mar-11,43.00
http://statistics.data.gov.uk/id/local-authority-district/23UB,Cheltenham Borough Council,444975,RND112/01/11,GILLMANS SERVICE,C-H33400-3102,Sheltered.Hsg-Equipment rental,23-Mar-11,72.30
http://statistics.data.gov.uk/id/local-authority-district/23UB,Cheltenham Borough Council,444974,RND1131/02/11,GILLMANS SERVICE,C-H33400-3102,Sheltered.Hsg-Equipment rental,23-Mar-11,43.00
http://statistics.data.gov.uk/id/local-authority-district/23UB,Cheltenham Borough Council,444973,RND112/02/11,GILLMANS SERVICE,C-H33400-3102,Sheltered.Hsg-Equipment rental,23-Mar-11,72.30
http://statistics.data.gov.uk/id/local-authority-district/23UB,Cheltenham Borough Council,444972,RND117/02/11,GILLMANS SERVICE,C-H33400-3102,Sheltered.Hsg-Equipment rental,23-Mar-11,40.13
http://statistics.data.gov.uk/id/local-authority-district/23UB,Cheltenham Borough Council,444971,RND1181/01/11,GILLMANS SERVICE,C-H33400-3102,Sheltered.Hsg-Equipment rental,23-Mar-11,48.15
http://statistics.data.gov.uk/id/local-authority-district/23UB,Cheltenham Borough Council,444970,RND1212/01/11,GILLMANS SERVICE,C-H33400-3102,Sheltered.Hsg-Equipment rental,23-Mar-11,53.52
http://statistics.data.gov.uk/id/local-authority-district/23UB,Cheltenham Borough Council,444969,RND1145/01/11,GILLMANS SERVICE,C-H33400-3102,Sheltered.Hsg-Equipment rental,23-Mar-11,46.60
http://statistics.data.gov.uk/id/local-authority-district/23UB,Cheltenham Borough Council,444968,RND1181/02/11,GILLMANS SERVICE,C-H33400-3102,Sheltered.Hsg-Equipment rental,23-Mar-11,48.15
http://statistics.data.gov.uk/id/local-authority-district/23UB,Cheltenham Borough Council,444967,RND117/01/11,GILLMANS SERVICE,C-H33400-3102,Sheltered.Hsg-Equipment rental,23-Mar-11,40.13
http://statistics.data.gov.uk/id/local-authority-district/23UB,Cheltenham Borough Council,444966,RND1212/02/11,GILLMANS SERVICE,C-H33400-3102,Sheltered.Hsg-Equipment rental,23-Mar-11,53.52
http://statistics.data.gov.uk/id/local-authority-district/23UB,Cheltenham Borough Council,444965,RND1145/02/11,GILLMANS SERVICE,C-H33400-3102,Sheltered.Hsg-Equipment rental,23-Mar-11,46.60
http://statistics.data.gov.uk/id/local-authority-district/23UB,Cheltenham Borough Council,444964,RND1179/02/11,GILLMANS SERVICE,C-H33400-3102,Sheltered.Hsg-Equipment rental,23-Mar-11,60.09
http://statistics.data.gov.uk/id/local-authority-district/23UB,Cheltenham Borough Council,444963,RND1211/02/11,GILLMANS SERVICE,C-H33400-3102,Sheltered.Hsg-Equipment rental,23-Mar-11,62.62
http://statistics.data.gov.uk/id/local-authority-district/23UB,Cheltenham Borough Council,444962,RND1144/02/11,GILLMANS SERVICE,C-H33400-3102,Sheltered.Hsg-Equipment rental,23-Mar-11,75.00
http://statistics.data.gov.uk/id/local-authority-district/23UB,Cheltenham Borough Council,444961,RND192,GILLMANS SERVICE,C-H33400-3102,Sheltered.Hsg-Equipment rental,23-Mar-11,49.50
http://statistics.data.gov.uk/id/local-authority-district/23UB,Cheltenham Borough Council,444960,RND115/02/11,GILLMANS SERVICE,C-H33400-3102,Sheltered.Hsg-Equipment rental,23-Mar-11,40.13
http://statistics.data.gov.uk/id/local-authority-district/23UB,Cheltenham Borough Council,444959,RND115/01/11,GILLMANS SERVICE,C-H33400-3102,Sheltered.Hsg-Equipment rental,23-Mar-11,40.13
http://statistics.data.gov.uk/id/local-authority-district/23UB,Cheltenham Borough Council,444958,RND192/01/11,GILLMANS SERVICE,C-H33400-3102,Sheltered.Hsg-Equipment rental,23-Mar-11,49.50
http://statistics.data.gov.uk/id/local-authority-district/23UB,Cheltenham Borough Council,444957,RND1144/01/11,GILLMANS SERVICE,C-H33400-3102,Sheltered.Hsg-Equipment rental,23-Mar-11,75.00
http://statistics.data.gov.uk/id/local-authority-district/23UB,Cheltenham Borough Council,444956,RND1180/01/11,GILLMANS SERVICE,C-H33400-3102,Sheltered.Hsg-Equipment rental,23-Mar-11,50.55
http://statistics.data.gov.uk/id/local-authority-district/23UB,Cheltenham Borough Council,444936,RND182/02/11,GILLMANS SERVICE,C-H33400-3102,Sheltered.Hsg-Equipment rental,23-Mar-11,73.65
http://statistics.data.gov.uk/id/local-authority-district/23UB,Cheltenham Borough Council,444935,RND190/02/11,GILLMANS SERVICE,C-H33400-3102,Sheltered.Hsg-Equipment rental,23-Mar-11,35.00
http://statistics.data.gov.uk/id/local-authority-district/23UB,Cheltenham Borough Council,445368,CSD1686431,GILLMANS SERVICE,C-HC4068-C302,Sheltered Hsg-Building Contractor,30-Mar-11,"1,116.00"
http://statistics.data.gov.uk/id/local-authority-district/23UB,Cheltenham Borough Council,444719,1102011,GLAS PRODUCTIONS LTD,C-0T19L1-3568,Mercury-Artist Fees,23-Mar-11,"5,251.76"
http://statistics.data.gov.uk/id/local-authority-district/23UB,Cheltenham Borough Council,444643,19367,GLEVUM SECURITY,C-E21100-3501,Car Prks-Off St-Hire of outside services,24-Mar-11,29.00
http://statistics.data.gov.uk/id/local-authority-district/23UB,Cheltenham Borough Council,444644,19366,GLEVUM SECURITY,C-E21100-3501,Car Prks-Off St-Hire of outside services,24-Mar-11,"2,319.95"
http://statistics.data.gov.uk/id/local-authority-district/23UB,Cheltenham Borough Council,444644,19366,GLEVUM SECURITY,C-E21100-3501,Car Prks-Off St-Hire of outside services,24-Mar-11,435.00
http://statistics.data.gov.uk/id/local-authority-district/23UB,Cheltenham Borough Council,444644,19366,GLEVUM SECURITY,C-E21100-3501,Car Prks-Off St-Hire of outside services,24-Mar-11,435.00
http://statistics.data.gov.uk/id/local-authority-district/23UB,Cheltenham Borough Council,444645,19195,GLEVUM SECURITY,C-E21100-3501,Car Prks-Off St-Hire of outside services,24-Mar-11,450.00
http://statistics.data.gov.uk/id/local-authority-district/23UB,Cheltenham Borough Council,444647,19196,GLEVUM SECURITY,C-E21100-3501,Car Prks-Off St-Hire of outside services,24-Mar-11,360.00
http://statistics.data.gov.uk/id/local-authority-district/23UB,Cheltenham Borough Council,444647,19196,GLEVUM SECURITY,C-E21100-3501,Car Prks-Off St-Hire of outside services,24-Mar-11,504.00
http://statistics.data.gov.uk/id/local-authority-district/23UB,Cheltenham Borough Council,444646,19194,GLEVUM SECURITY,C-E21100-3501,Car Prks-Off St-Hire of outside services,24-Mar-11,405.00
http://statistics.data.gov.uk/id/local-authority-district/23UB,Cheltenham Borough Council,444646,19194,GLEVUM SECURITY,C-E21100-3501,Car Prks-Off St-Hire of outside services,24-Mar-11,405.00
http://statistics.data.gov.uk/id/local-authority-district/23UB,Cheltenham Borough Council,444646,19194,GLEVUM SECURITY,C-E21100-3501,Car Prks-Off St-Hire of outside services,24-Mar-11,405.00
http://statistics.data.gov.uk/id/local-authority-district/23UB,Cheltenham Borough Council,444646,19194,GLEVUM SECURITY,C-E21100-3501,Car Prks-Off St-Hire of outside services,24-Mar-11,405.00
http://statistics.data.gov.uk/id/local-authority-district/23UB,Cheltenham Borough Council,444646,19194,GLEVUM SECURITY,C-E21100-3501,Car Prks-Off St-Hire of outside services,24-Mar-11,"2,268.00"
http://statistics.data.gov.uk/id/local-authority-district/23UB,Cheltenham Borough Council,444645,19195,GLEVUM SECURITY,C-E21100-3501,Car Prks-Off St-Hire of outside services,24-Mar-11,7.50
http://statistics.data.gov.uk/id/local-authority-district/23UB,Cheltenham Borough Council,444645,19195,GLEVUM SECURITY,C-E21100-3501,Car Prks-Off St-Hire of outside services,24-Mar-11,435.00
http://statistics.data.gov.uk/id/local-authority-district/23UB,Cheltenham Borough Council,444645,19195,GLEVUM SECURITY,C-E21100-3501,Car Prks-Off St-Hire of outside services,24-Mar-11,450.00
http://statistics.data.gov.uk/id/local-authority-district/23UB,Cheltenham Borough Council,444645,19195,GLEVUM SECURITY,C-E21100-3501,Car Prks-Off St-Hire of outside services,24-Mar-11,450.00
http://statistics.data.gov.uk/id/local-authority-district/23UB,Cheltenham Borough Council,444645,19195,GLEVUM SECURITY,C-E21100-3501,Car Prks-Off St-Hire of outside services,24-Mar-11,"2,520.00"
http://statistics.data.gov.uk/id/local-authority-district/23UB,Cheltenham Borough Council,444644,19366,GLEVUM SECURITY,C-E21100-3501,Car Prks-Off St-Hire of outside services,24-Mar-11,435.00
http://statistics.data.gov.uk/id/local-authority-district/23UB,Cheltenham Borough Council,444644,19366,GLEVUM SECURITY,C-E21100-3501,Car Prks-Off St-Hire of outside services,24-Mar-11,270.05
http://statistics.data.gov.uk/id/local-authority-district/23UB,Cheltenham Borough Council,444643,19367,GLEVUM SECURITY,C-E21100-3501,Car Prks-Off St-Hire of outside services,24-Mar-11,29.00
http://statistics.data.gov.uk/id/local-authority-district/23UB,Cheltenham Borough Council,444643,19367,GLEVUM SECURITY,C-E21100-3501,Car Prks-Off St-Hire of outside services,24-Mar-11,168.00
http://statistics.data.gov.uk/id/local-authority-district/23UB,Cheltenham Borough Council,444643,19367,GLEVUM SECURITY,C-E21100-3501,Car Prks-Off St-Hire of outside services,24-Mar-11,29.00
http://statistics.data.gov.uk/id/local-authority-district/23UB,Cheltenham Borough Council,444643,19367,GLEVUM SECURITY,C-E21100-3501,Car Prks-Off St-Hire of outside services,24-Mar-11,29.00
http://statistics.data.gov.uk/id/local-authority-district/23UB,Cheltenham Borough Council,445645,22908,GLIDE MEDIA MARKETING,C-0T30M1-3527,Philharmonia-Distribution/Mailing,30-Mar-11,62.79
http://statistics.data.gov.uk/id/local-authority-district/23UB,Cheltenham Borough Council,445418,22921,GLIDE MEDIA MARKETING,C-D30200-8802,Misc Props & Ld-Service charges,30-Mar-11,431.04
http://statistics.data.gov.uk/id/local-authority-district/23UB,Cheltenham Borough Council,445645,22908,GLIDE MEDIA MARKETING,C-NBS000-BI70,Distribution of Cheltenham Series,30-Mar-11,62.78
http://statistics.data.gov.uk/id/local-authority-district/23UB,Cheltenham Borough Council,445645,22908,GLIDE MEDIA MARKETING,C-NBS000-BI70,Distribution of Cheltenham Series,30-Mar-11,62.78
http://statistics.data.gov.uk/id/local-authority-district/23UB,Cheltenham Borough Council,445645,22908,GLIDE MEDIA MARKETING,C-NBS000-BI70,Distribution of Cheltenham Series,30-Mar-11,62.78
http://statistics.data.gov.uk/id/local-authority-district/23UB,Cheltenham Borough Council,444752,10881684,GLOUCESTER CITY COUNCIL,C-D35100-350A,Glos Airport-Consultants Fees,23-Mar-11,"2,762.00"
http://statistics.data.gov.uk/id/local-authority-district/23UB,Cheltenham Borough Council,444708,10879954,GLOUCESTER CITY COUNCIL,C-Z13300-3501,LAA - BSC Rev-Hire of outside services,23-Mar-11,170.00
http://statistics.data.gov.uk/id/local-authority-district/23UB,Cheltenham Borough Council,445608,CT & NNDR LEAF,GLOUCESTER CITY COUNCIL,C-D12445-3920,CT Leaflet-Advertising,30-Mar-11,"1,585.15"
http://statistics.data.gov.uk/id/local-authority-district/23UB,Cheltenham Borough Council,445719,03015930,GLOUCESTER CITY COUNCIL,C-D12490-3501,Sundry Debtors-Hire of outside services,31-Mar-11,"4,000.00"
http://statistics.data.gov.uk/id/local-authority-district/23UB,Cheltenham Borough Council,445719,03015930,GLOUCESTER CITY COUNCIL,C-D12490-3501,Sundry Debtors-Hire of outside services,31-Mar-11,"2,600.00"
http://statistics.data.gov.uk/id/local-authority-district/23UB,Cheltenham Borough Council,443710,1800172617,GLOUCESTERSHIRE COUNTY COUNCIL,C-B51145-3501,Joint Core Stra-Hire of outside services,04-Mar-11,"22,320.00"
http://statistics.data.gov.uk/id/local-authority-district/23UB,Cheltenham Borough Council,443884,1800175961,GLOUCESTERSHIRE COUNTY COUNCIL,C-D32400-3501,Elderly Trspt-Hire of outside services,09-Mar-11,"1,542.08"
http://statistics.data.gov.uk/id/local-authority-district/23UB,Cheltenham Borough Council,445103,41800175911,GLOUCESTERSHIRE COUNTY COUNCIL,C-D21600-3503,Land Charges-Fees,23-Mar-11,"1,220.00"
http://statistics.data.gov.uk/id/local-authority-district/23UB,Cheltenham Borough Council,445104,1800175920,GLOUCESTERSHIRE COUNTY COUNCIL,C-D21600-3503,Land Charges-Fees,23-Mar-11,"1,580.00"
http://statistics.data.gov.uk/id/local-authority-district/23UB,Cheltenham Borough Council,445671,1800169804,GLOUCESTERSHIRE COUNTY COUNCIL,C-C23100-3581,Refuse Collctn-Tipping charges,31-Mar-11,261.40
http://statistics.data.gov.uk/id/local-authority-district/23UB,Cheltenham Borough Council,445671,1800169804,GLOUCESTERSHIRE COUNTY COUNCIL,C-C23100-3581,Refuse Collctn-Tipping charges,31-Mar-11,136.45
http://statistics.data.gov.uk/id/local-authority-district/23UB,Cheltenham Borough Council,445671,1800169804,GLOUCESTERSHIRE COUNTY COUNCIL,C-C23100-3581,Refuse Collctn-Tipping charges,31-Mar-11,314.83
http://statistics.data.gov.uk/id/local-authority-district/23UB,Cheltenham Borough Council,445671,1800169804,GLOUCESTERSHIRE COUNTY COUNCIL,C-C23100-3581,Refuse Collctn-Tipping charges,31-Mar-11,230.98
http://statistics.data.gov.uk/id/local-authority-district/23UB,Cheltenham Borough Council,445671,1800169804,GLOUCESTERSHIRE COUNTY COUNCIL,C-C23100-3581,Refuse Collctn-Tipping charges,31-Mar-11,429.91
http://statistics.data.gov.uk/id/local-authority-district/23UB,Cheltenham Borough Council,445671,1800169804,GLOUCESTERSHIRE COUNTY COUNCIL,C-C23100-3581,Refuse Collctn-Tipping charges,31-Mar-11,0.39
http://statistics.data.gov.uk/id/local-authority-district/23UB,Cheltenham Borough Council,443750,DBCT00000433,GLOUCESTERSHIRE POLICE AUTHORITY,C-Z13300-3501,LAA - BSC Rev-Hire of outside services,04-Mar-11,573.07
http://statistics.data.gov.uk/id/local-authority-district/23UB,Cheltenham Borough Council,445194,ABCT00000496,GLOUCESTERSHIRE POLICE AUTHORITY,C-Z13500-3501,LAA - ASBO Rev-Hire of outside services,23-Mar-11,"2,483.12"
http://statistics.data.gov.uk/id/local-authority-district/23UB,Cheltenham Borough Council,445691,1436,GLOUCESTERSHIRE WILDLIFE TRUST,C-B51120-3501,Develt Con-Hire of outside services,31-Mar-11,"4,600.00"
http://statistics.data.gov.uk/id/local-authority-district/23UB,Cheltenham Borough Council,444890,00003432,GLOUCESTERSHIRE RURAL COMMUNITY COUNCIL,C-D34400-3801,Bus & Econ Dev-Grants,23-Mar-11,"5,000.00"
http://statistics.data.gov.uk/id/local-authority-district/23UB,Cheltenham Borough Council,445775,00003455,GLOUCESTERSHIRE RURAL COMMUNITY COUNCIL,C-D34400-3801,Bus & Econ Dev-Grants,31-Mar-11,"4,000.00"
http://statistics.data.gov.uk/id/local-authority-district/23UB,Cheltenham Borough Council,445782,00003454 ARCC 3,GLOUCESTERSHIRE RURAL COMMUNITY COUNCIL,C-D34400-3801,Bus & Econ Dev-Grants,31-Mar-11,"4,500.00"
http://statistics.data.gov.uk/id/local-authority-district/23UB,Cheltenham Borough Council,443633,3571,DOUG GOBEY TRANSPORT LIMITED,C-L41100-2701,AG & M-Hired transport,04-Mar-11,650.00
http://statistics.data.gov.uk/id/local-authority-district/23UB,Cheltenham Borough Council,443947,35002,GOLDINGHAM CONTRACTS,C-E63100-3110,Cemetery & Crem-Materials,09-Mar-11,499.00
http://statistics.data.gov.uk/id/local-authority-district/23UB,Cheltenham Borough Council,443948,35099,GOLDINGHAM CONTRACTS,C-E63100-3110,Cemetery & Crem-Materials,09-Mar-11,750.00
http://statistics.data.gov.uk/id/local-authority-district/23UB,Cheltenham Borough Council,445203,0133/11,GRAHAM HARPER ASSOCIATES,C-C22110-1301,Parks & Gardens-Routine grounds maint,24-Mar-11,"1,900.00"
http://statistics.data.gov.uk/id/local-authority-district/23UB,Cheltenham Borough Council,445205,0132/11,GRAHAM HARPER ASSOCIATES,C-C22110-1301,Parks & Gardens-Routine grounds maint,24-Mar-11,"2,000.00"
http://statistics.data.gov.uk/id/local-authority-district/23UB,Cheltenham Borough Council,444602,C3996-APP02,GRIMSHAW KINNEAR LTD,C-LC6023-C401,Gardners Lane-Civil Engineering Cntrctr ,16-Mar-11,"28,719.26"
http://statistics.data.gov.uk/id/local-authority-district/23UB,Cheltenham Borough Council,445506,101,STAN GYFORD,C-C23190-3501,Garden Collectn-Hire of outside services,30-Mar-11,"13,627.05"
http://statistics.data.gov.uk/id/local-authority-district/23UB,Cheltenham Borough Council,444783,1490000,HAKO MACHINES LTD,C-L11500-3167,Rec Facilities-Maintenance Agreements,23-Mar-11,216.50
http://statistics.data.gov.uk/id/local-authority-district/23UB,Cheltenham Borough Council,444783,1490000,HAKO MACHINES LTD,C-L11500-3167,Rec Facilities-Maintenance Agreements,23-Mar-11,182.58
http://statistics.data.gov.uk/id/local-authority-district/23UB,Cheltenham Borough Council,444783,1490000,HAKO MACHINES LTD,C-L11500-3167,Rec Facilities-Maintenance Agreements,23-Mar-11,182.58
http://statistics.data.gov.uk/id/local-authority-district/23UB,Cheltenham Borough Council,443362,W41434,HALCROW CONSULTING ENGINEERS,C-D21250-3973,Civil Emergency-EA FDGIA allocation,04-Mar-11,"4,739.85"
http://statistics.data.gov.uk/id/local-authority-district/23UB,Cheltenham Borough Council,443363,W41423,HALCROW CONSULTING ENGINEERS,C-D21250-3973,Civil Emergency-EA FDGIA allocation,04-Mar-11,"4,900.19"
http://statistics.data.gov.uk/id/local-authority-district/23UB,Cheltenham Borough Council,445239,6373,HALAROSE LIMITED,C-D21300-3623,District Elects-Cmpter-sftwre lic purch,24-Mar-11,734.52
http://statistics.data.gov.uk/id/local-authority-district/23UB,Cheltenham Borough Council,445239,6373,HALAROSE LIMITED,C-NBS000-BI70,District Elects-Cmpter-sftwre lic purch,24-Mar-11,"8,079.73"
http://statistics.data.gov.uk/id/local-authority-district/23UB,Cheltenham Borough Council,444194,P CERTI H01438,HALSALL  CONSTRUCTION LIMITED,C-HC4060-C302,Garage Imps-Building Contractor,11-Mar-11,"30,729.17"
http://statistics.data.gov.uk/id/local-authority-district/23UB,Cheltenham Borough Council,445421,TW4476,HALCROW GROUP LTD,C-PM0150-R145,Bridges-Malvern Road Bridge,30-Mar-11,"6,075.00"
http://statistics.data.gov.uk/id/local-authority-district/23UB,Cheltenham Borough Council,444589,0412/10,HANDSHAKE LIMITED,C-0T24M1-3568,Roy Chubby Brow-Artist Fees,16-Mar-11,"5,500.00"
http://statistics.data.gov.uk/id/local-authority-district/23UB,Cheltenham Borough Council,443988,REDACTED,HANOVER HOUSING ASSOCIATION,C-HC4100-C801,Dis.Adapt.HRA-Grants,09-Mar-11,"6,286.50"
http://statistics.data.gov.uk/id/local-authority-district/23UB,Cheltenham Borough Council,443990,REDACTED,HANOVER HOUSING ASSOCIATION,C-HC4100-C801,Dis.Adapt.HRA-Grants,09-Mar-11,"5,213.25"
http://statistics.data.gov.uk/id/local-authority-district/23UB,Cheltenham Borough Council,443987,REDACTED,HANOVER HOUSING ASSOCIATION,C-HC7440-C801,DFG.96.Act-Grants,09-Mar-11,"5,343.01"
http://statistics.data.gov.uk/id/local-authority-district/23UB,Cheltenham Borough Council,443989,REDACTED,HANOVER HOUSING ASSOCIATION,C-HC7440-C801,DFG.96.Act-Grants,09-Mar-11,"7,503.75"
